Workbook

Sheet Highstakes
A1: Der | B1: Draw | C1: Rider Name | D1: Horse Name | E1: Time | F1: Final Time | G1: Placing | H1: Money Earned
B2: 1 | C2: Jolene Montogmery | D2: Promise Me A Jet | F2: 15.727 | G2: 1st | H2: 912
B3: 2 | C3: Trina Murray | D3: Fuel For Dash | F3: 15.909 | G3: 2nd | H3: 608
B4: 3 | C4: Renee Stuckey | D4: Leo San Ta Fame | F4: 15.949
B5: 4 | C5: Danyelle Campbell | D5: Famous Dungarees | F5: 15.989
B6: 5 | C6: Jolene Montogmery | D6: Jets Heart N Soul | F6: 15.991
B7: 6 | C7: Phillip Kenyon | D7: Tillies Hayday | F7: 16.008
B8: 7 | C8: Sonyia Mcharge | D8: A Sharp French Guy | F8: 16.017
B9: 8 | C9: Danyelle Campbell | D9: Lady Ta Da | F9: 16.179
B10: 9 | C10: Denny Ralls | D10: Ease De Hank | F10: 16.187
B11: 10 | C11: Susan Agnew | D11: Jet N Ta Fame | F11: 16.295
B12: 11 | C12: Denny Ralls | D12: Sweet Movin Firewater | F12: 16.581
B13: 12 | C13: Sonyia Mcharge | D13: Ima Sharpdancinjudge | F13: 16.898
B14: 13 | C14: Tyesha Carroll | D14: Oh So French | F14: 18.972
B15: 14 | C15: Molli Montgomery | D15: Makin Ya Famous | F15: NT 15.797
B16: 15 | C16: Molli Montgomery | D16: Legsgonewild | F16: NT 16.060
B17: 16 | C17: Shea Lynn Leach | D17: Loui Bug | F17: nt15.906
B18: 17 | C18: Whitney Davison | D18: Confederateslastlady | F18: nt15.961
B19: 18 | C19: Kassie Mowry | D19: Girls Dig Fame | F19: nt16.116
B20: 19 | C20: Lynn Brown | D20: This Guys No Angel | F20: nt16.373
B21: 20
B22: 21
B23: 22
B24: 23
B25: 24
B26: 25
B27: 26
B28: 27
B29: 28
B30: 29
B31: 30
B32: 31
B33: 32
B34: 33
B35: 34 | F35: =IF(OR(#REF!=5,#REF!=10,#REF!= 15,#REF!= "BP",#REF!="SCR"),"NT",E35) -> 
B36: 35 | F36: =IF(OR(#REF!=5,#REF!=10,#REF!= 15,#REF!= "BP",#REF!="SCR"),"NT",E36) -> 
B37: 36 | F37: =IF(OR(#REF!=5,#REF!=10,#REF!= 15,#REF!= "BP",#REF!="SCR"),"NT",E37) -> 
B38: 37 | F38: =IF(OR(#REF!=5,#REF!=10,#REF!= 15,#REF!= "BP",#REF!="SCR"),"NT",E38) -> 
B39: 38 | F39: =IF(OR(#REF!=5,#REF!=10,#REF!= 15,#REF!= "BP",#REF!="SCR"),"NT",E39) -> 
B40: 39 | F40: =IF(OR(#REF!=5,#REF!=10,#REF!= 15,#REF!= "BP",#REF!="SCR"),"NT",E40) -> 
B41: 40 | F41: =IF(OR(#REF!=5,#REF!=10,#REF!= 15,#REF!= "BP",#REF!="SCR"),"NT",E41) -> 
B42: 41 | F42: =IF(OR(#REF!=5,#REF!=10,#REF!= 15,#REF!= "BP",#REF!="SCR"),"NT",E42) -> 
B43: 42 | F43: =IF(OR(#REF!=5,#REF!=10,#REF!= 15,#REF!= "BP",#REF!="SCR"),"NT",E43) -> 
B44: 43 | F44: =IF(OR(#REF!=5,#REF!=10,#REF!= 15,#REF!= "BP",#REF!="SCR"),"NT",E44) -> 
B45: 44 | F45: =IF(OR(#REF!=5,#REF!=10,#REF!= 15,#REF!= "BP",#REF!="SCR"),"NT",E45) -> 
B46: 45 | F46: =IF(OR(#REF!=5,#REF!=10,#REF!= 15,#REF!= "BP",#REF!="SCR"),"NT",E46) -> 
B47: 46 | F47: =IF(OR(#REF!=5,#REF!=10,#REF!= 15,#REF!= "BP",#REF!="SCR"),"NT",E47) -> 
B48: 47 | F48: =IF(OR(#REF!=5,#REF!=10,#REF!= 15,#REF!= "BP",#REF!="SCR"),"NT",E48) -> 
B49: 48 | F49: =IF(OR(#REF!=5,#REF!=10,#REF!= 15,#REF!= "BP",#REF!="SCR"),"NT",E49) -> 
B50: 49 | F50: =IF(OR(#REF!=5,#REF!=10,#REF!= 15,#REF!= "BP",#REF!="SCR"),"NT",E50) -> 
B51: 50 | F51: =IF(OR(#REF!=5,#REF!=10,#REF!= 15,#REF!= "BP",#REF!="SCR"),"NT",E51) -> 
B52: 51 | F52: =IF(OR(#REF!=5,#REF!=10,#REF!= 15,#REF!= "BP",#REF!="SCR"),"NT",E52) -> 
B53: 52 | F53: =IF(OR(#REF!=5,#REF!=10,#REF!= 15,#REF!= "BP",#REF!="SCR"),"NT",E53) -> 
B54: 53 | F54: =IF(OR(#REF!=5,#REF!=10,#REF!= 15,#REF!= "BP",#REF!="SCR"),"NT",E54) -> 
B55: 54 | F55: =IF(OR(#REF!=5,#REF!=10,#REF!= 15,#REF!= "BP",#REF!="SCR"),"NT",E55) -> 
B56: 55 | F56: =IF(OR(#REF!=5,#REF!=10,#REF!= 15,#REF!= "BP",#REF!="SCR"),"NT",E56) -> 
B57: 56 | F57: =IF(OR(#REF!=5,#REF!=10,#REF!= 15,#REF!= "BP",#REF!="SCR"),"NT",E57) -> 
B58: 57 | F58: =IF(OR(#REF!=5,#REF!=10,#REF!= 15,#REF!= "BP",#REF!="SCR"),"NT",E58) -> 
B59: 58 | F59: =IF(OR(#REF!=5,#REF!=10,#REF!= 15,#REF!= "BP",#REF!="SCR"),"NT",E59) -> 
B60: 59 | F60: =IF(OR(#REF!=5,#REF!=10,#REF!= 15,#REF!= "BP",#REF!="SCR"),"NT",E60) -> 
B61: 60 | F61: =IF(OR(#REF!=5,#REF!=10,#REF!= 15,#REF!= "BP",#REF!="SCR"),"NT",E61) -> 
B62: 61 | F62: =IF(OR(#REF!=5,#REF!=10,#REF!= 15,#REF!= "BP",#REF!="SCR"),"NT",E62) -> 
B63: 62 | F63: =IF(OR(#REF!=5,#REF!=10,#REF!= 15,#REF!= "BP",#REF!="SCR"),"NT",E63) -> 
B64: 63 | F64: =IF(OR(#REF!=5,#REF!=10,#REF!= 15,#REF!= "BP",#REF!="SCR"),"NT",E64) -> 
B65: 64 | F65: =IF(OR(#REF!=5,#REF!=10,#REF!= 15,#REF!= "BP",#REF!="SCR"),"NT",E65) -> 
B66: 65 | F66: =IF(OR(#REF!=5,#REF!=10,#REF!= 15,#REF!= "BP",#REF!="SCR"),"NT",E66) -> 
B67: 66 | F67: =IF(OR(#REF!=5,#REF!=10,#REF!= 15,#REF!= "BP",#REF!="SCR"),"NT",E67) -> 
B68: 67 | F68: =IF(OR(#REF!=5,#REF!=10,#REF!= 15,#REF!= "BP",#REF!="SCR"),"NT",E68) -> 
B69: 68 | F69: =IF(OR(#REF!=5,#REF!=10,#REF!= 15,#REF!= "BP",#REF!="SCR"),"NT",E69) -> 
B70: 69 | F70: =IF(OR(#REF!=5,#REF!=10,#REF!= 15,#REF!= "BP",#REF!="SCR"),"NT",E70) -> 
B71: 70 | F71: =IF(OR(#REF!=5,#REF!=10,#REF!= 15,#REF!= "BP",#REF!="SCR"),"NT",E71) -> 
B72: 71 | F72: =IF(OR(#REF!=5,#REF!=10,#REF!= 15,#REF!= "BP",#REF!="SCR"),"NT",E72) -> 
B73: 72 | F73: =IF(OR(#REF!=5,#REF!=10,#REF!= 15,#REF!= "BP",#REF!="SCR"),"NT",E73) -> 
B74: 73 | F74: =IF(OR(#REF!=5,#REF!=10,#REF!= 15,#REF!= "BP",#REF!="SCR"),"NT",E74) -> 
B75: 74 | F75: =IF(OR(#REF!=5,#REF!=10,#REF!= 15,#REF!= "BP",#REF!="SCR"),"NT",E75) -> 
B76: 75 | F76: =IF(OR(#REF!=5,#REF!=10,#REF!= 15,#REF!= "BP",#REF!="SCR"),"NT",E76) -> 
B77: 76 | F77: =IF(OR(#REF!=5,#REF!=10,#REF!= 15,#REF!= "BP",#REF!="SCR"),"NT",E77) -> 
B78: 77 | F78: =IF(OR(#REF!=5,#REF!=10,#REF!= 15,#REF!= "BP",#REF!="SCR"),"NT",E78) -> 
B79: 78 | F79: =IF(OR(#REF!=5,#REF!=10,#REF!= 15,#REF!= "BP",#REF!="SCR"),"NT",E79) -> 
B80: 79 | F80: =IF(OR(#REF!=5,#REF!=10,#REF!= 15,#REF!= "BP",#REF!="SCR"),"NT",E80) -> 
B81: 80 | F81: =IF(OR(#REF!=5,#REF!=10,#REF!= 15,#REF!= "BP",#REF!="SCR"),"NT",E81) -> 
B82: 81 | F82: =IF(OR(#REF!=5,#REF!=10,#REF!= 15,#REF!= "BP",#REF!="SCR"),"NT",E82) -> 
B83: 82 | F83: =IF(OR(#REF!=5,#REF!=10,#REF!= 15,#REF!= "BP",#REF!="SCR"),"NT",E83) -> 
B84: 83 | F84: =IF(OR(#REF!=5,#REF!=10,#REF!= 15,#REF!= "BP",#REF!="SCR"),"NT",E84) -> 
B85: 84 | F85: =IF(OR(#REF!=5,#REF!=10,#REF!= 15,#REF!= "BP",#REF!="SCR"),"NT",E85) -> 
B86: 85 | F86: =IF(OR(#REF!=5,#REF!=10,#REF!= 15,#REF!= "BP",#REF!="SCR"),"NT",E86) -> 
B87: 86 | F87: =IF(OR(#REF!=5,#REF!=10,#REF!= 15,#REF!= "BP",#REF!="SCR"),"NT",E87) -> 
B88: 87 | F88: =IF(OR(#REF!=5,#REF!=10,#REF!= 15,#REF!= "BP",#REF!="SCR"),"NT",E88) -> 
B89: 88 | F89: =IF(OR(#REF!=5,#REF!=10,#REF!= 15,#REF!= "BP",#REF!="SCR"),"NT",E89) -> 
B90: 89 | F90: =IF(OR(#REF!=5,#REF!=10,#REF!= 15,#REF!= "BP",#REF!="SCR"),"NT",E90) -> 
B91: 90 | F91: =IF(OR(#REF!=5,#REF!=10,#REF!= 15,#REF!= "BP",#REF!="SCR"),"NT",E91) -> 
B92: 91 | F92: =IF(OR(#REF!=5,#REF!=10,#REF!= 15,#REF!= "BP",#REF!="SCR"),"NT",E92) -> 
B93: 92 | F93: =IF(OR(#REF!=5,#REF!=10,#REF!= 15,#REF!= "BP",#REF!="SCR"),"NT",E93) -> 
B94: 93 | F94: =IF(OR(#REF!=5,#REF!=10,#REF!= 15,#REF!= "BP",#REF!="SCR"),"NT",E94) -> 
B95: 94 | F95: =IF(OR(#REF!=5,#REF!=10,#REF!= 15,#REF!= "BP",#REF!="SCR"),"NT",E95) -> 
B96: 95 | F96: =IF(OR(#REF!=5,#REF!=10,#REF!= 15,#REF!= "BP",#REF!="SCR"),"NT",E96) -> 
B97: 96 | F97: =IF(OR(#REF!=5,#REF!=10,#REF!= 15,#REF!= "BP",#REF!="SCR"),"NT",E97) -> 
B98: 97 | F98: =IF(OR(#REF!=5,#REF!=10,#REF!= 15,#REF!= "BP",#REF!="SCR"),"NT",E98) -> 
B99: 98 | F99: =IF(OR(#REF!=5,#REF!=10,#REF!= 15,#REF!= "BP",#REF!="SCR"),"NT",E99) -> 
B100: 99 | F100: =IF(OR(#REF!=5,#REF!=10,#REF!= 15,#REF!= "BP",#REF!="SCR"),"NT",E100) -> 
B101: 100 | F101: =IF(OR(#REF!=5,#REF!=10,#REF!= 15,#REF!= "BP",#REF!="SCR"),"NT",E101) -> 
B102: 101 | F102: =IF(OR(#REF!=5,#REF!=10,#REF!= 15,#REF!= "BP",#REF!="SCR"),"NT",E102) -> 
B103: 102 | F103: =IF(OR(#REF!=5,#REF!=10,#REF!= 15,#REF!= "BP",#REF!="SCR"),"NT",E103) -> 
B104: 103 | F104: =IF(OR(#REF!=5,#REF!=10,#REF!= 15,#REF!= "BP",#REF!="SCR"),"NT",E104) -> 
B105: 104 | F105: =IF(OR(#REF!=5,#REF!=10,#REF!= 15,#REF!= "BP",#REF!="SCR"),"NT",E105) -> 
B106: 105 | F106: =IF(OR(#REF!=5,#REF!=10,#REF!= 15,#REF!= "BP",#REF!="SCR"),"NT",E106) -> 
B107: 106 | F107: =IF(OR(#REF!=5,#REF!=10,#REF!= 15,#REF!= "BP",#REF!="SCR"),"NT",E107) -> 
B108: 107 | F108: =IF(OR(#REF!=5,#REF!=10,#REF!= 15,#REF!= "BP",#REF!="SCR"),"NT",E108) -> 
B109: 108 | F109: =IF(OR(#REF!=5,#REF!=10,#REF!= 15,#REF!= "BP",#REF!="SCR"),"NT",E109) -> 
B110: 109 | F110: =IF(OR(#REF!=5,#REF!=10,#REF!= 15,#REF!= "BP",#REF!="SCR"),"NT",E110) -> 
B111: 110 | F111: =IF(OR(#REF!=5,#REF!=10,#REF!= 15,#REF!= "BP",#REF!="SCR"),"NT",E111) -> 
B112: 111 | F112: =IF(OR(#REF!=5,#REF!=10,#REF!= 15,#REF!= "BP",#REF!="SCR"),"NT",E112) -> 
B113: 112 | F113: =IF(OR(#REF!=5,#REF!=10,#REF!= 15,#REF!= "BP",#REF!="SCR"),"NT",E113) -> 
B114: 113 | F114: =IF(OR(#REF!=5,#REF!=10,#REF!= 15,#REF!= "BP",#REF!="SCR"),"NT",E114) -> 
B115: 114 | F115: =IF(OR(#REF!=5,#REF!=10,#REF!= 15,#REF!= "BP",#REF!="SCR"),"NT",E115) -> 
B116: 115 | F116: =IF(OR(#REF!=5,#REF!=10,#REF!= 15,#REF!= "BP",#REF!="SCR"),"NT",E116) -> 
B117: 116 | F117: =IF(OR(#REF!=5,#REF!=10,#REF!= 15,#REF!= "BP",#REF!="SCR"),"NT",E117) -> 
B118: 117 | F118: =IF(OR(#REF!=5,#REF!=10,#REF!= 15,#REF!= "BP",#REF!="SCR"),"NT",E118) -> 
B119: 118 | F119: =IF(OR(#REF!=5,#REF!=10,#REF!= 15,#REF!= "BP",#REF!="SCR"),"NT",E119) -> 
B120: 119 | F120: =IF(OR(#REF!=5,#REF!=10,#REF!= 15,#REF!= "BP",#REF!="SCR"),"NT",E120) -> 
B121: 120 | F121: =IF(OR(#REF!=5,#REF!=10,#REF!= 15,#REF!= "BP",#REF!="SCR"),"NT",E121) -> 
B122: 121 | F122: =IF(OR(#REF!=5,#REF!=10,#REF!= 15,#REF!= "BP",#REF!="SCR"),"NT",E122) -> 
B123: 122 | F123: =IF(OR(#REF!=5,#REF!=10,#REF!= 15,#REF!= "BP",#REF!="SCR"),"NT",E123) -> 
B124: 123 | F124: =IF(OR(#REF!=5,#REF!=10,#REF!= 15,#REF!= "BP",#REF!="SCR"),"NT",E124) -> 
B125: 124 | F125: =IF(OR(#REF!=5,#REF!=10,#REF!= 15,#REF!= "BP",#REF!="SCR"),"NT",E125) -> 
B126: 125 | F126: =IF(OR(#REF!=5,#REF!=10,#REF!= 15,#REF!= "BP",#REF!="SCR"),"NT",E126) -> 
B127: 126 | F127: =IF(OR(#REF!=5,#REF!=10,#REF!= 15,#REF!= "BP",#REF!="SCR"),"NT",E127) -> 
B128: 127 | F128: =IF(OR(#REF!=5,#REF!=10,#REF!= 15,#REF!= "BP",#REF!="SCR"),"NT",E128) -> 
B129: 128 | F129: =IF(OR(#REF!=5,#REF!=10,#REF!= 15,#REF!= "BP",#REF!="SCR"),"NT",E129) -> 
B130: 129 | F130: =IF(OR(#REF!=5,#REF!=10,#REF!= 15,#REF!= "BP",#REF!="SCR"),"NT",E130) -> 
B131: 130 | F131: =IF(OR(#REF!=5,#REF!=10,#REF!= 15,#REF!= "BP",#REF!="SCR"),"NT",E131) -> 
B132: 131 | F132: =IF(OR(#REF!=5,#REF!=10,#REF!= 15,#REF!= "BP",#REF!="SCR"),"NT",E132) -> 
B133: 132 | F133: =IF(OR(#REF!=5,#REF!=10,#REF!= 15,#REF!= "BP",#REF!="SCR"),"NT",E133) -> 
B134: 133 | F134: =IF(OR(#REF!=5,#REF!=10,#REF!= 15,#REF!= "BP",#REF!="SCR"),"NT",E134) -> 
B135: 134 | F135: =IF(OR(#REF!=5,#REF!=10,#REF!= 15,#REF!= "BP",#REF!="SCR"),"NT",E135) -> 
B136: 135 | F136: =IF(OR(#REF!=5,#REF!=10,#REF!= 15,#REF!= "BP",#REF!="SCR"),"NT",E136) -> 
B137: 136 | F137: =IF(OR(#REF!=5,#REF!=10,#REF!= 15,#REF!= "BP",#REF!="SCR"),"NT",E137) -> 
B138: 137 | F138: =IF(OR(#REF!=5,#REF!=10,#REF!= 15,#REF!= "BP",#REF!="SCR"),"NT",E138) -> 
B139: 138 | F139: =IF(OR(#REF!=5,#REF!=10,#REF!= 15,#REF!= "BP",#REF!="SCR"),"NT",E139) -> 
B140: 139 | F140: =IF(OR(#REF!=5,#REF!=10,#REF!= 15,#REF!= "BP",#REF!="SCR"),"NT",E140) -> 
B141: 140 | F141: =IF(OR(#REF!=5,#REF!=10,#REF!= 15,#REF!= "BP",#REF!="SCR"),"NT",E141) -> 
B142: 141 | F142: =IF(OR(#REF!=5,#REF!=10,#REF!= 15,#REF!= "BP",#REF!="SCR"),"NT",E142) -> 
B143: 142 | F143: =IF(OR(#REF!=5,#REF!=10,#REF!= 15,#REF!= "BP",#REF!="SCR"),"NT",E143) -> 
B144: 143 | F144: =IF(OR(#REF!=5,#REF!=10,#REF!= 15,#REF!= "BP",#REF!="SCR"),"NT",E144) -> 
B145: 144 | F145: =IF(OR(#REF!=5,#REF!=10,#REF!= 15,#REF!= "BP",#REF!="SCR"),"NT",E145) -> 
B146: 145 | F146: =IF(OR(#REF!=5,#REF!=10,#REF!= 15,#REF!= "BP",#REF!="SCR"),"NT",E146) -> 
B147: 146 | F147: =IF(OR(#REF!=5,#REF!=10,#REF!= 15,#REF!= "BP",#REF!="SCR"),"NT",E147) -> 
B148: 147 | F148: =IF(OR(#REF!=5,#REF!=10,#REF!= 15,#REF!= "BP",#REF!="SCR"),"NT",E148) -> 
B149: 148 | F149: =IF(OR(#REF!=5,#REF!=10,#REF!= 15,#REF!= "BP",#REF!="SCR"),"NT",E149) -> 
B150: 149 | F150: =IF(OR(#REF!=5,#REF!=10,#REF!= 15,#REF!= "BP",#REF!="SCR"),"NT",E150) -> 
B151: 150 | F151: =IF(OR(#REF!=5,#REF!=10,#REF!= 15,#REF!= "BP",#REF!="SCR"),"NT",E151) -> 
B152: 151 | F152: =IF(OR(#REF!=5,#REF!=10,#REF!= 15,#REF!= "BP",#REF!="SCR"),"NT",E152) -> 
B153: 152 | F153: =IF(OR(#REF!=5,#REF!=10,#REF!= 15,#REF!= "BP",#REF!="SCR"),"NT",E153) -> 
B154: 153 | F154: =IF(OR(#REF!=5,#REF!=10,#REF!= 15,#REF!= "BP",#REF!="SCR"),"NT",E154) -> 
B155: 154 | F155: =IF(OR(#REF!=5,#REF!=10,#REF!= 15,#REF!= "BP",#REF!="SCR"),"NT",E155) -> 
B156: 155 | F156: =IF(OR(#REF!=5,#REF!=10,#REF!= 15,#REF!= "BP",#REF!="SCR"),"NT",E156) -> 
B157: 156 | F157: =IF(OR(#REF!=5,#REF!=10,#REF!= 15,#REF!= "BP",#REF!="SCR"),"NT",E157) -> 
B158: 157 | F158: =IF(OR(#REF!=5,#REF!=10,#REF!= 15,#REF!= "BP",#REF!="SCR"),"NT",E158) -> 
B159: 158 | F159: =IF(OR(#REF!=5,#REF!=10,#REF!= 15,#REF!= "BP",#REF!="SCR"),"NT",E159) -> 
B160: 159 | F160: =IF(OR(#REF!=5,#REF!=10,#REF!= 15,#REF!= "BP",#REF!="SCR"),"NT",E160) -> 
B161: 160 | F161: =IF(OR(#REF!=5,#REF!=10,#REF!= 15,#REF!= "BP",#REF!="SCR"),"NT",E161) -> 
B162: 161 | F162: =IF(OR(#REF!=5,#REF!=10,#REF!= 15,#REF!= "BP",#REF!="SCR"),"NT",E162) -> 
B163: 162 | F163: =IF(OR(#REF!=5,#REF!=10,#REF!= 15,#REF!= "BP",#REF!="SCR"),"NT",E163) -> 
B164: 163 | F164: =IF(OR(#REF!=5,#REF!=10,#REF!= 15,#REF!= "BP",#REF!="SCR"),"NT",E164) -> 
B165: 164 | F165: =IF(OR(#REF!=5,#REF!=10,#REF!= 15,#REF!= "BP",#REF!="SCR"),"NT",E165) -> 
B166: 165 | F166: =IF(OR(#REF!=5,#REF!=10,#REF!= 15,#REF!= "BP",#REF!="SCR"),"NT",E166) -> 
B167: 166 | F167: =IF(OR(#REF!=5,#REF!=10,#REF!= 15,#REF!= "BP",#REF!="SCR"),"NT",E167) -> 
B168: 167 | F168: =IF(OR(#REF!=5,#REF!=10,#REF!= 15,#REF!= "BP",#REF!="SCR"),"NT",E168) -> 
B169: 168 | F169: =IF(OR(#REF!=5,#REF!=10,#REF!= 15,#REF!= "BP",#REF!="SCR"),"NT",E169) -> 
B170: 169 | F170: =IF(OR(#REF!=5,#REF!=10,#REF!= 15,#REF!= "BP",#REF!="SCR"),"NT",E170) -> 
B171: 170 | F171: =IF(OR(#REF!=5,#REF!=10,#REF!= 15,#REF!= "BP",#REF!="SCR"),"NT",E171) -> 
B172: 171 | F172: =IF(OR(#REF!=5,#REF!=10,#REF!= 15,#REF!= "BP",#REF!="SCR"),"NT",E172) -> 
B173: 172 | F173: =IF(OR(#REF!=5,#REF!=10,#REF!= 15,#REF!= "BP",#REF!="SCR"),"NT",E173) -> 
B174: 173 | F174: =IF(OR(#REF!=5,#REF!=10,#REF!= 15,#REF!= "BP",#REF!="SCR"),"NT",E174) -> 
B175: 174 | F175: =IF(OR(#REF!=5,#REF!=10,#REF!= 15,#REF!= "BP",#REF!="SCR"),"NT",E175) -> 
B176: 175 | F176: =IF(OR(#REF!=5,#REF!=10,#REF!= 15,#REF!= "BP",#REF!="SCR"),"NT",E176) -> 
B177: 176 | F177: =IF(OR(#REF!=5,#REF!=10,#REF!= 15,#REF!= "BP",#REF!="SCR"),"NT",E177) -> 
B178: 177 | F178: =IF(OR(#REF!=5,#REF!=10,#REF!= 15,#REF!= "BP",#REF!="SCR"),"NT",E178) -> 
B179: 178 | F179: =IF(OR(#REF!=5,#REF!=10,#REF!= 15,#REF!= "BP",#REF!="SCR"),"NT",E179) -> 
B180: 179 | F180: =IF(OR(#REF!=5,#REF!=10,#REF!= 15,#REF!= "BP",#REF!="SCR"),"NT",E180) -> 
B181: 180 | F181: =IF(OR(#REF!=5,#REF!=10,#REF!= 15,#REF!= "BP",#REF!="SCR"),"NT",E181) -> 
B182: 181 | F182: =IF(OR(#REF!=5,#REF!=10,#REF!= 15,#REF!= "BP",#REF!="SCR"),"NT",E182) -> 
B183: 182 | F183: =IF(OR(#REF!=5,#REF!=10,#REF!= 15,#REF!= "BP",#REF!="SCR"),"NT",E183) -> 
B184: 183 | F184: =IF(OR(#REF!=5,#REF!=10,#REF!= 15,#REF!= "BP",#REF!="SCR"),"NT",E184) -> 
B185: 184 | F185: =IF(OR(#REF!=5,#REF!=10,#REF!= 15,#REF!= "BP",#REF!="SCR"),"NT",E185) -> 
B186: 185 | F186: =IF(OR(#REF!=5,#REF!=10,#REF!= 15,#REF!= "BP",#REF!="SCR"),"NT",E186) -> 
B187: 186 | F187: =IF(OR(#REF!=5,#REF!=10,#REF!= 15,#REF!= "BP",#REF!="SCR"),"NT",E187) -> 
B188: 187 | F188: =IF(OR(#REF!=5,#REF!=10,#REF!= 15,#REF!= "BP",#REF!="SCR"),"NT",E188) -> 
B189: 188 | F189: =IF(OR(#REF!=5,#REF!=10,#REF!= 15,#REF!= "BP",#REF!="SCR"),"NT",E189) -> 
B190: 189 | F190: =IF(OR(#REF!=5,#REF!=10,#REF!= 15,#REF!= "BP",#REF!="SCR"),"NT",E190) -> 
B191: 190 | F191: =IF(OR(#REF!=5,#REF!=10,#REF!= 15,#REF!= "BP",#REF!="SCR"),"NT",E191) -> 
B192: 191 | F192: =IF(OR(#REF!=5,#REF!=10,#REF!= 15,#REF!= "BP",#REF!="SCR"),"NT",E192) -> 
B193: 192 | F193: =IF(OR(#REF!=5,#REF!=10,#REF!= 15,#REF!= "BP",#REF!="SCR"),"NT",E193) -> 
B194: 193 | F194: =IF(OR(#REF!=5,#REF!=10,#REF!= 15,#REF!= "BP",#REF!="SCR"),"NT",E194) -> 
B195: 194 | F195: =IF(OR(#REF!=5,#REF!=10,#REF!= 15,#REF!= "BP",#REF!="SCR"),"NT",E195) -> 
B196: 195 | F196: =IF(OR(#REF!=5,#REF!=10,#REF!= 15,#REF!= "BP",#REF!="SCR"),"NT",E196) -> 
B197: 196 | F197: =IF(OR(#REF!=5,#REF!=10,#REF!= 15,#REF!= "BP",#REF!="SCR"),"NT",E197) -> 
B198: 197 | F198: =IF(OR(#REF!=5,#REF!=10,#REF!= 15,#REF!= "BP",#REF!="SCR"),"NT",E198) -> 
B199: 198 | F199: =IF(OR(#REF!=5,#REF!=10,#REF!= 15,#REF!= "BP",#REF!="SCR"),"NT",E199) -> 
B200: 199 | F200: =IF(OR(#REF!=5,#REF!=10,#REF!= 15,#REF!= "BP",#REF!="SCR"),"NT",E200) -> 
... 101 more rows

Sheet Open
A2: SUNDAY Open
A3: Futurity | B3: HS | C3: Der | D3: Age Inct. | E3: Am | F3: Carry | G3: T/C | H3: F/F | I3: Mem | J3: Nom | K3: Av | L3: BBR | M3: WPRA | N3: Draw | O3: Rider Name | P3: Horse Name | Q3: Pen | R3: Time | S3: Final Time | T3: Placing | U3: Money Earned | W3: D Placing | Y3: Split
M4: 20401 | N4: 131 | O4: Ryann Pedone | P4: Feel The Sting | R4: 15.497 | T4: 1D 1st | U4: 1056.96 | W4: 1D | X4: 15.497
A5: X | B5: X | D5: A | M5: 20165L | N5: 308 | O5: Jolene Montogmery | P5: Promise Me A Jet | R5: 15.727 | T5: 1D 1st | U5: 881 | W5: 2D | X5: 15.997 | Y5: 0.5
N6: 209 | O6: Kathy Fields | P6: Regarding Numbers | R6: 15.789 | T6: 1D 3rd | U6: 748.68 | W6: 3D | X6: 16.497 | Y6: 0.5
N7: 10 | O7: Wendy Suhn | P7: HLH Streakin A Fling | R7: 15.891 | T7: 1D 4th | U7: 572.52 | W7: 4D | X7: 16.997 | Y7: 0.5
M8: 26789 | N8: 252 | O8: Shannon Pearson | P8: Reds Roany Pony | R8: 15.894 | T8: 1D 5th | U8: 440.4 | W8: 5D | X8: 17.497 | Y8: 0.5
B9: X | M9: 23088 | N9: 77 | O9: Trina Murray | P9: Fuel For Dash | R9: 15.909 | T9: 1D 6th | U9: 308.28
A10: X | M10: W24490 | N10: 144 | O10: Davie King | P10: Brook | R10: 15.947 | T10: 1D 7th | U10: 220.2 | W10: # Entered
B11: X | C11: X | D11: S | N11: 302 | O11: Renee Stuckey | P11: Leo San Ta Fame | R11: 15.949 | T11: 1D 8th | U11: 176.16 | W11: 318
N12: 191 | O12: Megan Archino | P12: Montana Blue Drift | R12: 15.953
A13: X | D13: A | M13: 20165L | N13: 275 | O13: Jolene Montogmery | P13: Double Dipped In Fame | R13: 15.96 | W13: # Ran
D14: S | N14: 233 | O14: Martha Smith | P14: Firewater Make Me Happy | R14: 15.964 | W14: 318
N15: 219 | O15: Chaney Speight | P15: KN Alice | R15: 15.969
A16: X | D16: A | M16: 4585 | N16: 37 | O16: Kelly Allen | P16: Miss JB 133 | R16: 15.975 | W16: # Left
B17: X | J17: Laura Pearson | N17: 262 | O17: Danyelle Campbell | P17: Famous Dungarees | R17: 15.989 | W17: =$W$11-$W$14 -> 0
A18: X | B18: X | D18: A | M18: 20165L | N18: 292 | O18: Jolene Montogmery | P18: Jets Heart N Soul | R18: 15.991
N19: 150 | O19: Taylor Langdon | P19: Sneak | R19: 15.999 | T19: 2D 1st | U19: 880.8
B20: X | N20: 202 | O20: Phillip Kenyon | P20: Tillies Hayday | R20: 16.008 | T20: 2D 2nd | U20: 734
B21: X | D21: A | M21: R26485 | N21: 247 | O21: Sonyia Mcharge | P21: A Sharp French Guy | R21: 16.017 | T21: 2D 3rd | U21: 623.9
N22: 228 | O22: Justine Botner | P22: Hel on Socks | R22: 16.067 | T22: 2D 4th | U22: 477.1
D23: S | M23: 4650 | N23: 33 | O23: Raylene Cox | P23: Ya Give Me Fever | R23: 16.091 | T23: 2D 5th | U23: 367
M24: 21228 | N24: 175 | O24: Lisa Wernli | P24: Dashondownsue | R24: 16.109 | T24: 2D 6th | U24: 256.9
M25: W24490 | N25: 201 | O25: Davie King | P25: Tom | R25: 16.116 | T25: 2D 7th | U25: 183.5
C26: X | N26: 148 | O26: Phillip Kenyon | P26: SV Sun Kinda Wonder | R26: 16.117 | T26: 2D 8th | U26: 146.8
N27: 265 | O27: Shari Taggart | P27: UX Flit N Fabulous | R27: 16.131
D28: A | N28: 215 | O28: Rebba Wright | P28: Ceo Kinda Beautiful | R28: 16.151
N29: 122 | O29: Cindy Stone | P29: Super Sonic Corona | R29: 16.165
D30: A | N30: 236 | O30: Rebba Wright | P30: Ceo Kinda Sassy Gal | R30: 16.173
A31: X | B31: X | N31: 271 | O31: Danyelle Campbell | P31: Lady Ta Da | R31: 16.179
N32: 208 | O32: Nicki Zimmerman | P32: John Wayne | R32: 16.184
N33: 116 | O33: Taylor Langdon | P33: Vegas | R33: 16.185
M34: W24490 | N34: 172 | O34: Davie King | P34: Alvin | R34: 16.185
B35: X | D35: A | N35: 39 | O35: Denny Ralls | P35: Ease De Hank | R35: 16.187
C36: X | D36: A | M36: 4298 | N36: 83 | O36: Andrea Cline | P36: J Lo Fame | R36: 16.191
A37: X | M37: 20401 | N37: 97 | O37: Ryann Pedone | P37: Elmers On Fire | R37: 16.21
M38: R23024 | N38: 56 | O38: Riley Chown | P38: Slate | R38: 16.245
A39: X | M39: 4298 | N39: 45 | O39: Andrea Cline | P39: Fame Us First Lady | R39: 16.266
D40: S | N40: 226 | O40: Donna Ramsey | P40: BB's Royal Dream | R40: 16.267
D41: S | N41: 118 | O41: Martha Reeves | P41: No Pressure On Me | R41: 16.279
N42: 288 | O42: Emily Mangione | P42: Wild Rock | R42: 16.283
N43: 22 | O43: Betina Felton | P43: Takeminewithatwist | R43: 16.284
A44: X | M44: 20401 | N44: 60 | O44: Ryann Pedone | P44: Coco Bongo | R44: 16.285
D45: S | N45: 277 | O45: Lynn Saunders | P45: Popcorn | R45: 16.291
B46: X | C46: X | D46: A | N46: 249 | O46: Susan Agnew | P46: Jet N Ta Fame | R46: 16.295
D47: S | N47: 140 | O47: Tamet Gould | P47: The Final Donut | R47: 16.306
A48: X | D48: A | M48: 20165L | N48: 257 | O48: Jolene Montogmery | P48: Send Me Send Me | R48: 16.315
N49: 29 | O49: Jana Kurosky | P49: Winnie Reds Kai | R49: 16.322
N50: 214 | O50: Tessa Ruberg | P50: Rulls Little Lady Go | R50: 16.328
A51: X | D51: A | M51: 20165L | N51: 241 | O51: Jolene Montogmery | P51: Chicados Bully | R51: 16.332
N52: 246 | O52: Sherri Barnes | P52: Famous Little Jet | R52: 16.334
N53: 132 | O53: Janee Ornelas | P53: Drifter | R53: 16.351
N54: 224 | O54: Kylee Cook | P54: GHJAG07 | R54: 16.37
C55: X | N55: 139 | O55: Kelsey Gordon | P55: Prada | R55: 16.376
N56: 78 | O56: Tori Volk | P56: Stompinoutthefire | R56: 16.389
N57: 126 | O57: Pete Oen | P57: H2 | R57: 16.401
M58: W24490 | N58: 119 | O58: Davie King | P58: Blizard | R58: 16.412
M59: R22073 | N59: 133 | O59: Natalie Kurosky | P59: Nelson | R59: 16.415
A60: X | M60: 20401 | N60: 4 | O60: Ryann Pedone | P60: Turn N With Ease | R60: 16.418
N61: 232 | O61: Kassie Mowry | P61: Hallellujah Epic | R61: 16.425
N62: 210 | O62: Belinda Coppinger | P62: Knox | R62: 16.443
D63: A | M63: 4598 | N63: 170 | O63: Holly Fenoglio | P63: Flame of Fame | R63: 16.451
D64: S | N64: 153 | O64: Terry Vogel | P64: Frenchman | R64: 16.456
N65: 109 | O65: Pattie Mackie | P65: Sterling | R65: 16.457
D66: S | M66: 21228 | N66: 152 | O66: Lisa Wernli | P66: Flashs Fine Effort | R66: 16.46
N67: 13 | O67: Charlotte Edwards | P67: VF Temtations | R67: 16.474
D68: S | N68: 197 | O68: Martha Smith | P68: Victory Blue Moon | R68: 16.487
D69: A | N69: 14 | O69: Jade Crago | P69: CM Bubblin Dynamite | R69: 16.492
M70: R26603L | N70: 70 | O70: Annabelle Martin | P70: DTF Makinf My Way | R70: 16.492
A71: X | M71: 20401 | N71: 38 | O71: Ryann Pedone | P71: NNN Sixums Firewater | R71: 16.497 | T71: 3D 1st | U71: 704.64
M72: 21228 | N72: 117 | O72: Lisa Wernli | P72: Real Famous Lill | R72: 16.507 | T72: 3D 2nd | U72: 587.2
N73: 36 | O73: Alex Stokes | P73: Mo Sugar Bars Bee | R73: 16.511 | T73: 3D 3rd | U73: 499.12
N74: 306 | O74: Courtney Schiel | P74: Ghetto | R74: 16.522 | T74: 3D 4th/5th | U74: 338
N75: 314 | O75: Justice Phillips | P75: Reys Of Blonde | R75: 16.522 | T75: 3D 4th/5th | U75: 338
D76: S | N76: 227 | O76: Donna Tippen | P76: Lyla | R76: 16.536 | T76: 3D 6th | U76: 205.52
D77: A | N77: 74 | O77: Tianti Carter | P77: Rocking Wilma | R77: 16.538 | T77: 3D 7th/8th | U77: 132
N78: 92 | O78: Victoria Alexander | P78: Frostbite | R78: 16.538 | T78: 3D 7th/8th | U78: 132
N79: 217 | O79: Darcie Moody | P79: RGR Marble Magic | R79: 16.546
N80: 187 | O80: Kathy Warren | P80: Gonnagetluckytonight | R80: 16.553
N81: 318 | O81: Gabbie Grothe | P81: DJ | R81: 16.555
A82: X | D82: A | M82: 4585 | N82: 9 | O82: Kelly Allen | P82: Miss JB 1315 | R82: 16.559
N83: 156 | O83: Jo Fisher | P83: Marla | R83: 16.56
N84: 316 | O84: Keeley Buhrmester | P84: Boston Black Bear | R84: 16.561
N85: 99 | O85: Missy Piper | P85: Boomer | R85: 16.562
N86: 88 | O86: Karly Houser | P86: Hobbys Lil Stinker | R86: 16.573
B87: X | D87: A | N87: 6 | O87: Denny Ralls | P87: Sweet Movin Firewater | R87: 16.581
N88: 250 | O88: Emily Mangione | P88: Rock Roll N Repete | R88: 16.599
N89: 157 | O89: Chelsea Young | P89: Hemi | R89: 16.603
N90: 24 | O90: Shannon Black | P90: TS Jets Blazin Lena | R90: 16.604
A91: X | M91: 4298 | N91: 2 | O91: Andrea Cline | P91: Freighttrain C | R91: 16.606
M92: R23024 | N92: 30 | O92: Riley Chown | P92: Heza Dash Ta Honor | R92: 16.621
N93: 309 | O93: Bryan Taylor | P93: Choo | R93: 16.622
D94: A | N94: 165 | O94: Jaime Sealock | P94: Jesta Poco Dash | R94: 16.625
D95: A | M95: 20875 | N95: 12 | O95: Cassidy Rabb | P95: VF Coup Fulla Coins | R95: 16.634
N96: 286 | O96: Bryan Taylor | P96: Gypsy | R96: 16.636
N97: 127 | O97: Kelsey Ornelas | P97: Frosty | R97: 16.638
C98: X | D98: A | M98: 26483 | N98: 283 | O98: Ali Armstrong | P98: Anniesgonnarunorelse | R98: 16.639
N99: 225 | O99: Dristin Dorman | P99: Easy | R99: 16.639
M100: W1407 | N100: 121 | O100: Erin Reich | P100: Pie | R100: 16.64
N101: 200 | O101: Jolene Jones | P101: Streakin Louie | R101: 16.653
D102: Y | N102: 143 | O102: Haley Hunt | P102: Shez Jettn Speed | R102: 16.655
N103: 130 | O103: Alexis Barfield | P103: Colonel Lexi Frost | R103: 16.659
D104: S | N104: 16 | O104: Simone Elmore | P104: Badger A Conchadrift | R104: 16.663
D105: S | N105: 57 | O105: Jodi Stovall | P105: Miss French Drifter | R105: 16.664
M106: R23024 | N106: 87 | O106: Riley Chown | P106: Lady Frost Te | R106: 16.664
N107: 171 | O107: Ashley Alligood | P107: TF Savage Sissy | R107: 16.665
N108: 193 | O108: Daisy Baird | P108: Elisha's Arrow | R108: 16.669
N109: 183 | O109: Kaela Morgan | P109: Yes We Can | R109: 16.679
D110: S | N110: 28 | O110: Sydney Ryan | P110: Lyndis Sonny Lights | R110: 16.683
N111: 104 | O111: Pete Oen | P111: H1 | R111: 16.683
N112: 167 | O112: Daryll Kessler | P112: Irish Firewater | R112: 16.688
D113: A | N113: 124 | O113: Adelita Tyson | P113: H1 | R113: 16.702
N114: 207 | O114: Janee Ornelas | P114: Lackey | R114: 16.703
N115: 206 | O115: Kassie Mowry | P115: Heavens Illuminator | R115: 16.704
D116: S | M116: 15602 | N116: 18 | O116: Lisa Cotter | P116: Outlaw John Dillenger | R116: 16.714
D117: S | N117: 68 | O117: Cindy Ware | P117: Jackies Parr Three | R117: 16.725
N118: 81 | O118: Heather Veld | P118: BA Daddy Wuza Rocker | R118: 16.726
N119: 223 | O119: Gretchen Goedeken | P119: Fine Whatever | R119: 16.758
D120: Y | N120: 199 | O120: Esmeralda Garcia | P120: Earl | R120: 16.768
N121: 264 | O121: Kayli Morris | P121: Fortune In Fuel | R121: 16.768
M122: 23470 | N122: 40 | O122: Dani Buhler | P122: Boons Scooter | R122: 16.77
N123: 327 | O123: Kylena Hager | P123: Barbie | R123: 16.772
N124: 220 | O124: Lauren Merica | P124: Rhetas Rheta | R124: 16.778
N125: 313 | O125: Lauren Russell | P125: Streaken For Fun | R125: 16.779
N126: 54 | O126: Jessica Dahl | P126: Peppy Wimpy Cutter | R126: 16.781
N127: 311 | O127: Shannon Iverson | P127: Tuff | R127: 16.782
N128: 125 | O128: Tyler Rivette | P128: H2 | R128: 16.783
N129: 62 | O129: Kristi Tuinei | P129: Zippys Cash Ta Fame | R129: 16.785
D130: S | N130: 303 | O130: Lynn Saunders | P130: Chumly | R130: 16.79
N131: 102 | O131: Tyler Rivette | P131: H1 | R131: 16.79
N132: 259 | O132: Karen Rego | P132: Echosrunnawaybay | R132: 16.794
N133: 151 | O133: Pete Oen | P133: H3 | R133: 16.797
N134: 222 | O134: Anna Byer | P134: Bahama | R134: 16.81
M135: 25907 | N135: 94 | O135: Kacey Kirby | P135: VVR Corona Dash | R135: 16.819
N136: 238 | O136: Lauren Merica | P136: Jess Imagine That | R136: 16.821
N137: 196 | O137: Alex Hall | P137: Rocket Star Bay | R137: 16.822
N138: 310 | O138: Jennifer Fite | P138: Firewater Edition | R138: 16.836
N139: 20 | O139: Kristi Tuinei | P139: Luckys Doubletrouble | R139: 16.839
C140: X | N140: 90 | O140: Cody Hornbuckle | P140: Mountain Of Fame | R140: 16.845
N141: 205 | O141: Pam Smith | P141: Elkie | R141: 16.846
N142: 66 | O142: Jade Crago | P142: CM Bubblin Barbie | R142: 16.863
D143: Y | N143: 76 | O143: Rebekah McQueen | P143: Leo San Peppy Belle | R143: 16.864
N144: 168 | O144: Lacy Billingsley | P144: Fireant | R144: 16.87
D145: S | N145: 73 | O145: Connie Randolph | P145: Hot Rod Kitty | R145: 16.873
N146: 305 | O146: JT Cooper | P146: The Master Himself | R146: 16.873
D147: A | N147: 256 | O147: Alisha Todd | P147: Sheza Amarillo Doc | R147: 16.877
N148: 17 | O148: Misty Peak | P148: Amos | R148: 16.884
D149: Y | N149: 120 | O149: Madison Reich | P149: Kit | R149: 16.886
N150: 284 | O150: Sally Preston | P150: Cee U Later Gator | R150: 16.894
N151: 96 | O151: Kelsey Gordon | P151: Pete | R151: 16.895
C152: X | N152: 49 | O152: Reenie Wahlert | P152: Famous Little Pistol | R152: 16.897
B153: X | D153: A | M153: R26485 | N153: 285 | O153: Sonyia Mcharge | P153: Ima Sharpdancinjudge | R153: 16.898
M154: 20401 | N154: 174 | O154: Ryann Pedone | P154: Preacher | R154: 16.906
N155: 95 | O155: Brooke Sully | P155: EZ | R155: 16.908
N156: 50 | O156: Victoria Alexander | P156: JD Diamonds Drift | R156: 16.93
D157: A | N157: 84 | O157: Lorinda Van Newkirk | P157: Hot N On Fire | R157: 16.944
N158: 235 | O158: Tessa Ruberg | P158: Rita | R158: 16.953
N159: 177 | O159: Kylee Cook | P159: Executing the Cause | R159: 16.955
A160: X | M160: R23848L | N160: 7 | O160: Krista Lucas | P160: Crown Royal Jet | R160: 16.962
D161: A | N161: 251 | O161: Brandi Williams | P161: Frosted Mini Chex | R161: 16.965
D162: Y | N162: 112 | O162: Stormi Branch | P162: Demon | R162: 16.965
D163: A | N163: 103 | O163: Tiffany Cox | P163: Lacy | R163: 17.007 | T163: 4D 1st | U163: 528.48
D164: S | N164: 155 | O164: Karen Manning | P164: Shut the Flamin Door | R164: 17.008 | T164: 4D 2nd | U164: 440.4
N165: 145 | O165: Maddi Hickmon | P165: Missy | R165: 17.021 | T165: 4D 3rd | U165: 374.34
N166: 75 | O166: Chandler Fletcher | P166: Journey | R166: 17.025 | T166: 4D 4th | U166: 286.26
D167: S | M167: 22281 | N167: 59 | O167: Debbie Raab | P167: Easy Talent | R167: 17.03 | T167: 4D 5th/6th | U167: 187
D168: Y | N168: 162 | O168: Esmeralda Garcia | P168: Romeo Mills | R168: 17.03 | T168: 4D 5th/6th | U168: 187
D169: S | N169: 1 | O169: Kathy Minteer | P169: Little Bit | R169: 17.036 | T169: 4D 7th/8th | U169: 99
N170: 216 | O170: Jessica Patanella | P170: SMJ Madagascars First | R170: 17.036 | T170: 4D 7th/8th | U170: 99
N171: 328 | O171: Bailey Lodermeier | P171: Willies at the Bar | R171: 17.043
N172: 268 | O172: Jessica Byrn | P172: PC Frosty Remnic | R172: 17.059
A173: X | N173: 67 | O173: Jeff Amsden | P173: Dez On Firewater | R173: 17.074
N174: 190 | O174: Summer Kutchera | P174: FC Classic Sunday | R174: 17.096
N175: 274 | O175: Terri Stitle | P175: Rapido Rose | R175: 17.098
D176: Y | N176: 269 | O176: Kaylee Berry | P176: Smart Lil Dulce 101 | R176: 17.099
N177: 181 | O177: Terry Vogel | P177: All Night Corona | R177: 17.114
N178: 105 | O178: Emily Williams | P178: Nic Goes Hollywood | R178: 17.117
N179: 85 | O179: Lori Zabel | P179: Unfaded Fame | R179: 17.134
D180: S | N180: 188 | O180: Jay Jay McMahan | P180: A Cats Playmate | R180: 17.143
D181: Y | N181: 319 | O181: Summer Sanders | P181: Too Tall | R181: 17.143
D182: S | N182: 25 | O182: Jan Davis | P182: Woody B Perky | R182: 17.16
N183: 69 | O183: Missy Piper | P183: Abby | R183: 17.163
C184: X | N184: 240 | O184: Phillip Kenyon | P184: Contagious Charm | R184: 17.167
D185: S | N185: 27 | O185: Holly Pritchard | P185: Bogies French Moon | R185: 17.17
N186: 270 | O186: Bryan Taylor | P186: Snooky | R186: 17.175
N187: 248 | O187: Bryan Taylor | P187: Badger | R187: 17.191
N188: 107 | O188: Chandler Fletcher | P188: Rues Black Night | R188: 17.211
D189: S | N189: 245 | O189: Elaine Foreman | P189: Boogies Moon Pie | R189: 17.224
M190: R23848L | N190: 55 | O190: Krista Lucas | P190: Hand Off My Streaker | R190: 17.226
N191: 185 | O191: Karen Heward | P191: Runnin Booger | R191: 17.226
A192: x | N192: 299 | O192: Danyelle Campbell | P192: JL Tularosa | R192: 17.231
N193: 158 | O193: Trudy Holloway | P193: LR Peppy Lynx Chex | R193: 17.239
D194: S | N194: 129 | O194: Dana Chaddick | P194: Nikki | R194: 17.245
N195: 258 | O195: Shannon Iverson | P195: Willie | R195: 17.251
N196: 61 | O196: Shawn Smith | P196: Jacko | R196: 17.265
N197: 234 | O197: Belinda Coppinger | P197: Crush | R197: 17.268
N198: 123 | O198: Cody Hornbuckle | P198: Big Bulls In Cowtown | R198: 17.272
N199: 161 | O199: Curt Watson | P199: Peppy Fire Frost | R199: 17.279
N200: 31 | O200: Chelsie Petty | P200: Jade | R200: 17.28
N201: 147 | O201: Mary Carter | P201: Just Flit Me | R201: 17.288
... 299 more rows

Sheet Senior
A1: Futurity | B1: Der | C1: Age Inct. | D1: BBR | E1: Draw | F1: Rider Name | G1: Horse Name | H1: Time | I1: Placing | J1: Money Earned
E2: 1 | F2: Renee Stuckey | G2: Leo San Ta Fame | H2: 15.949 | I2: 1D 1st | J2: 160
E3: 2 | F3: Martha Smith | G3: Firewater Make Me Happy | H3: 15.964 | I3: 1D 2nd | J3: 106
E4: 3 | F4: Raylene Cox | G4: Ya Give Me Fever | H4: 16.091
E5: 4 | F5: Donna Ramsey | G5: BB's Royal Dream | H5: 16.267
E6: 5 | F6: Martha Reeves | G6: No Pressure On Me | H6: 16.279
E7: 6 | F7: Lynn Saunders | G7: Popcorn | H7: 16.291
E8: 7 | F8: Tamet Gould | G8: The Final Donut | H8: 16.306
E9: 8 | F9: Terry Vogel | G9: Frenchman | H9: 16.456 | I9: 2D 1st | J9: 130
E10: 9 | F10: Lisa Wernli | G10: Flashs Fine Effort | H10: 16.46 | I10: 2D 2nd | J10: 86
E11: 10 | F11: Martha Smith | G11: Victory Blue Moon | H11: 16.487
E12: 11 | F12: Donna Tippen | G12: Lyla | H12: 16.536
E13: 12 | F13: Simone Elmore | G13: Badger A Conchadrift | H13: 16.663
E14: 13 | F14: Jodi Stovall | G14: Miss French Drifter | H14: 16.664
E15: 14 | F15: Sydney Ryan | G15: Lyndis Sonny Lights | H15: 16.683
E16: 15 | F16: Lisa Cotter | G16: Outlaw John Dillenger | H16: 16.714
E17: 16 | F17: Cindy Ware | G17: Jackies Parr Three | H17: 16.725
E18: 17 | F18: Lynn Saunders | G18: Chumly | H18: 16.79
E19: 18 | F19: Connie Randolph | G19: Hot Rod Kitty | H19: 16.873
E20: 19 | F20: Karen Manning | G20: Shut the Flamin Door | H20: 17.008 | I20: 3D 1st | J20: 86
E21: 20 | F21: Debbie Raab | G21: Easy Talent | H21: 17.03 | I21: 3D 2nd | J21: 58
E22: 21 | F22: Kathy Minteer | G22: Little Bit | H22: 17.036
E23: 22 | F23: Jay Jay McMahan | G23: A Cats Playmate | H23: 17.143
E24: 23 | F24: Jan Davis | G24: Woody B Perky | H24: 17.16
E25: 24 | F25: Holly Pritchard | G25: Bogies French Moon | H25: 17.17
E26: 25 | F26: Elaine Foreman | G26: Boogies Moon Pie | H26: 17.224
E27: 26 | F27: Dana Chaddick | G27: Nikki | H27: 17.245
E28: 27 | F28: Marj Dahle | G28: JCS Mito Cutter | H28: 17.457 | I28: 4D 1st | J28: 65
E29: 28 | F29: Cheryl Chown | G29: PC Vanilla Ice | H29: 17.551 | I29: 4D 2nd | J29: 43
E30: 29 | F30: Katy Holloway | G30: Namgis D 18 | H30: 17.912
E31: 30 | F31: Terry Weeks | G31: Streak Ta Da Sky | H31: nt
E32: 31 | F32: Stacey Gates | G32: Johnny On The Rocks | H32: NT 16.078
E33: 32 | F33: Elaine Foreman | G33: Ta Fame Ina Dash | H33: NT 16.900
E34: 33 | F34: Liz Holder | G34: Honorey Angel | H34: NT 17.346
E35: 34 | F35: Carolyn Uhler | G35: Lil Pep O Gold | H35: nt16.023
E36: 35 | F36: Karen Manning | G36: Shut the Blazin Door | H36: nt16.241
E37: 36 | F37: Kelly Bruner | G37: Hollywood | H37: nt16.302
E38: 37 | F38: Charlie Colella | G38: Dashin Red Charger | H38: nt24.893
E39: 38 | F39: Melanie Self | G39: Ole Mans Aloha | H39: scratch
E40: 39
E41: 40
E42: 41
E43: 42
E44: 43
E45: 44
E46: 45
E47: 46
E48: 47
E49: 48
E50: 49
E51: 50
E52: 51
E53: 52
E54: 53
E55: 54
E56: 55
E57: 56
E58: 57
E59: 58
E60: 59
E61: 60
E62: 61
E63: 62
E64: 63
E65: 64
E66: 65
E67: 66
E68: 67
E69: 68
E70: 69
E71: 70
E72: 71
E73: 72
E74: 73
E75: 74
E76: 75
E77: 76
E78: 77
E79: 78
E80: 79
E81: 80
E82: 81
E83: 82
E84: 83
E85: 84
E86: 85
E87: 86
E88: 87
E89: 88
E90: 89
E91: 90
E92: 91
E93: 92
E94: 93
E95: 94
E96: 95
E97: 96
E98: 97
E99: 98
E100: 99
E101: 100
E102: 101
E103: 102
E104: 103
E105: 104
E106: 105
E107: 106
E108: 107
E109: 108
E110: 109
E111: 110
E112: 111
E113: 112
E114: 113
E115: 114
E116: 115
E117: 116
E118: 117
E119: 118
E120: 119
E121: 120
E122: 121
E123: 122
E124: 123
E125: 124
E126: 125
E127: 126
E128: 127
E129: 128
E130: 129
E131: 130
E132: 131
E133: 132
E134: 133
E135: 134
E136: 135
E137: 136
E138: 137
E139: 138
E140: 139
E141: 140
E142: 141
E143: 142
E144: 143
E145: 144
E146: 145
E147: 146
E148: 147
E149: 148
E150: 149
E151: 150
E152: 151
E153: 152
E154: 153
E155: 154
E156: 155
E157: 156
E158: 157
E159: 158
E160: 159
E161: 160
E162: 161
E163: 162
E164: 163
E165: 164
E166: 165
E167: 166
E168: 167
E169: 168
E170: 169
E171: 170
E172: 171
E173: 172
E174: 173
E175: 174
E176: 175
E177: 176
E178: 177
E179: 178
E180: 179
E181: 180
E182: 181
E183: 182
E184: 183
E185: 184
E186: 185
E187: 186
E188: 187
E189: 188
E190: 189
E191: 190
E192: 191
E193: 192
E194: 193
E195: 194
E196: 195
E197: 196
E198: 197
E199: 198
E200: 199
... 101 more rows

Sheet Adult
A1: Futurity | B1: Der | C1: Age Inct. | D1: BBR | E1: Draw | F1: Rider Name | G1: Horse Name | H1: Time | I1: Placing | J1: Money Earned
E2: 1 | F2: Jolene Montogmery | G2: Promise Me A Jet | H2: 15.727 | I2: 1D 1st | J2: 168
E3: 2 | F3: Jolene Montogmery | G3: Double Dipped In Fame | H3: 15.96 | I3: 2D 2nd | J3: 112
E4: 3 | F4: Kelly Allen | G4: Miss JB 133 | H4: 15.975
E5: 4 | F5: Jolene Montogmery | G5: Jets Heart N Soul | H5: 15.991
E6: 5 | F6: Sonyia Mcharge | G6: A Sharp French Guy | H6: 16.017
E7: 6 | F7: Rebba Wright | G7: Ceo Kinda Beautiful | H7: 16.151
E8: 7 | F8: Rebba Wright | G8: Ceo Kinda Sassy Gal | H8: 16.173
E9: 8 | F9: Denny Ralls | G9: Ease De Hank | H9: 16.187
E10: 9 | F10: Andrea Cline | G10: J Lo Fame | H10: 16.191
E11: 10 | F11: Susan Agnew | G11: Jet N Ta Fame | H11: 16.295 | I11: 2D 1st | J11: 144
E12: 11 | F12: Jolene Montogmery | G12: Send Me Send Me | H12: 16.315 | I12: 2D 2nd | J12: 96
E13: 12 | F13: Jolene Montogmery | G13: Chicados Bully | H13: 16.332
E14: 13 | F14: Holly Fenoglio | G14: Flame of Fame | H14: 16.451
E15: 14 | F15: Lisa Wernli | G15: Flashs Fine Effort | H15: 16.46
E16: 15 | F16: Jade Crago | G16: CM Bubblin Dynamite | H16: 16.492
E17: 16 | F17: Tianti Carter | G17: Rocking Wilma | H17: 16.538
E18: 17 | F18: Kelly Allen | G18: Miss JB 1315 | H18: 16.559
E19: 18 | F19: Denny Ralls | G19: Sweet Movin Firewater | H19: 16.581
E20: 19 | F20: Cassidy Rabb | G20: VF Coup Fulla Coins | H20: 16.634
E21: 20 | F21: Ali Armstrong | G21: Anniesgonnarunorelse | H21: 16.639
E22: 21 | F22: Adelita Tyson | G22: H1 | H22: 16.702
E23: 22 | F23: Alisha Todd | G23: Sheza Amarillo Doc | H23: 16.877 | I23: 3D 1st | J23: 96
E24: 23 | F24: Sonyia Mcharge | G24: Ima Sharpdancinjudge | H24: 16.898 | I24: 3D 2nd | J24: 64
E25: 24 | F25: Lorinda Van Newkirk | G25: Hot N On Fire | H25: 16.944
E26: 25 | F26: Brandi Williams | G26: Frosted Mini Chex | H26: 16.965
E27: 26 | F27: Tiffany Cox | G27: Lacy | H27: 17.007
E28: 27 | F28: Tracey McCollough | G28: Fast Fishin Cash | H28: 17.324 | I28: 4D 1st | J28: 72
E29: 28 | F29: Dee Dee Jordan | G29: First Rappin Judge | H29: 17.427 | I29: 4D 2nd | J29: 48
E30: 29 | F30: Lynn Whisenant | G30: Heza Wonder Streakin | H30: 17.489
E31: 30 | F31: Brandi Williams | G31: Cha Cha Shorty | H31: 17.753
E32: 31 | F32: Kellie Autry | G32: Array For First Team | H32: 17.845
E33: 32 | F33: Dee Dee Jordan | G33: Blazin Corona Cutie | H33: 17.969
E34: 33 | F34: Susan Agnew | G34: Splash Da Firewater | H34: 18.108
E35: 34 | F35: Payton Schoonover | G35: Phantom | H35: 18.183
E36: 35 | F36: Karissa Jones | G36: Anita Lot A Cash | H36: NT
E37: 36 | F37: Molli Montgomery | G37: Makin Ya Famous | H37: NT 15.797
E38: 37 | F38: Molli Montgomery | G38: Legsgonewild | H38: NT 16.060
E39: 38 | F39: Abby Youngblood | G39: TDN Duster Blue | H39: NT 16.429
E40: 39 | F40: Molli Montgomery | G40: Strawflyin The Gold | H40: NT 16.573
E41: 40 | F41: Kassie Mowry | G41: Girls Dig Fame | H41: nt16.116
E42: 41
E43: 42
E44: 43
E45: 44
E46: 45
E47: 46
E48: 47
E49: 48
E50: 49
E51: 50
E52: 51
E53: 52
E54: 53
E55: 54
E56: 55
E57: 56
E58: 57
E59: 58
E60: 59
E61: 60
E62: 61
E63: 62
E64: 63
E65: 64
E66: 65
E67: 66
E68: 67
E69: 68
E70: 69
E71: 70
E72: 71
E73: 72
E74: 73
E75: 74
E76: 75
E77: 76
E78: 77
E79: 78
E80: 79
E81: 80
E82: 81
E83: 82
E84: 83
E85: 84
E86: 85
E87: 86
E88: 87
E89: 88
E90: 89
E91: 90
E92: 91
E93: 92
E94: 93
E95: 94
E96: 95
E97: 96
E98: 97
E99: 98
E100: 99
E101: 100
E102: 101
E103: 102
E104: 103
E105: 104
E106: 105
E107: 106
E108: 107
E109: 108
E110: 109
E111: 110
E112: 111
E113: 112
E114: 113
E115: 114
E116: 115
E117: 116
E118: 117
E119: 118
E120: 119
E121: 120
E122: 121
E123: 122
E124: 123
E125: 124
E126: 125
E127: 126
E128: 127
E129: 128
E130: 129
E131: 130
E132: 131
E133: 132
E134: 133
E135: 134
E136: 135
E137: 136
E138: 137
E139: 138
E140: 139
E141: 140
E142: 141
E143: 142
E144: 143
E145: 144
E146: 145
E147: 146
E148: 147
E149: 148
E150: 149
E151: 150
E152: 151
E153: 152
E154: 153
E155: 154
E156: 155
E157: 156
E158: 157
E159: 158
E160: 159
E161: 160
E162: 161
E163: 162
E164: 163
E165: 164
E166: 165
E167: 166
E168: 167
E169: 168
E170: 169
E171: 170
E172: 171
E173: 172
E174: 173
E175: 174
E176: 175
E177: 176
E178: 177
E179: 178
E180: 179
E181: 180
E182: 181
E183: 182
E184: 183
E185: 184
E186: 185
E187: 186
E188: 187
E189: 188
E190: 189
E191: 190
E192: 191
E193: 192
E194: 193
E195: 194
E196: 195
E197: 196
E198: 197
E199: 198
E200: 199
... 101 more rows

Sheet 8&under
A1: Draw | B1: Rider Name | C1: Horse Name | D1: Pen | E1: Time | F1: Final Time | G1: Placing | H1: Money Earned
A2: 2 | B2: Kyndall Pedone | C2: Termite
A3: 5 | B3: Breelyn Black | C3: Poptart
A4: 4 | B4: Cooper Peak | C4: Dolly | F4: =IF(OR(D4=5,D4=10, D4=15, D4="BP",D4="SCR"),"NT",E4) -> 0
A5: 3 | B5: Brinley Howard | C5: Sassy
A6: 1
A7: 6 | F7: =IF(OR(D7=5,D7=10, D7=15, D7="BP",D7="SCR"),"NT",E7) -> 0
A8: 7 | F8: 0
A9: 8 | F9: 0
A10: 9 | F10: 0
A11: 10 | F11: 0
A12: 11 | F12: 0
A13: 12 | F13: 0
A14: 13 | F14: 0
A15: 14 | F15: 0
A16: 15 | F16: 0
A17: 16 | F17: 0
A18: 17 | F18: 0
A19: 18 | F19: 0
A20: 19 | F20: 0
A21: 20 | F21: 0

Sheet Youth
A1: Futurity | B1: Der | C1: Age Inct. | D1: BBR | E1: Draw | F1: Rider Name | G1: Horse Name | H1: Time | I1: Placing | J1: Money Earned
E2: 1 | F2: Haley Hunt | G2: Shez Jettn Speed | H2: 16.655 | I2: 1D 1st | J2: 200
E3: 2 | F3: Esmeralda Garcia | G3: Earl | H3: 16.768
E4: 3 | F4: Rebekah McQueen | G4: Leo San Peppy Belle | H4: 16.864
E5: 4 | F5: Madison Reich | G5: Kit | H5: 16.886
E6: 5 | F6: Stormi Branch | G6: Demon | H6: 16.965
E7: 6 | F7: Esmeralda Garcia | G7: Romeo Mills | H7: 17.03
E8: 7 | F8: Kaylee Berry | G8: Smart Lil Dulce 101 | H8: 17.099
E9: 8 | F9: Summer Sanders | G9: Too Tall | H9: 17.143
E10: 9 | F10: Sydney Wollet | G10: Hooked On Firewater | H10: 17.414 | I10: 2D 1st | J10: 120
E11: 10 | F11: Summer Sanders | G11: Delta | H11: 17.625
E12: 11 | F12: Haley Wright | G12: Rockin C Angel | H12: 17.628
E13: 12 | F13: Payton Schoonover | G13: Phantom | H13: 18.183 | I13: 4D 1st | J13: 80
E14: 13 | F14: Maddy Myers | G14: Graves Tassie Pepper | H14: 18.342
E15: 14 | F15: Mikayla Cearley | G15: Docs Part Bueno Bar | H15: 18.43
E16: 15 | F16: Brynn Owens | G16: Oakley | H16: 18.7
E17: 16 | F17: Sofia Caballero | G17: Pa Jones Perks | H17: NT
E18: 17 | F18: Brynn Owens | G18: Jr | H18: NT 17.175
E19: 18 | F19: Biloxi Shultz | G19: Sheza Peasa Pie | H19: nt16.204
E20: 19 | F20: Biloxi Shultz | G20: Missan Lena | H20: nt16.317
E21: 20 | F21: Biloxi Shultz | G21: Senor La Jolla | H21: nt16.385
E22: 21
E23: 22
E24: 23
E25: 24
E26: 25
E27: 26
E28: 27
E29: 28
E30: 29
E31: 30
E32: 31
E33: 32
E34: 33
E35: 34
E36: 35
E37: 36
E38: 37
E39: 38
E40: 39
E41: 40
E42: 41
E43: 42
E44: 43
E45: 44
E46: 45
E47: 46
E48: 47
E49: 48
E50: 49
E51: 50
E52: 51
E53: 52
E54: 53
E55: 54
E56: 55
E57: 56
E58: 57
E59: 58
E60: 59
E61: 60
E62: 61
E63: 62
E64: 63
E65: 64
E66: 65
E67: 66
E68: 67
E69: 68
E70: 69
E71: 70
E72: 71
E73: 72
E74: 73
E75: 74
E76: 75
E77: 76
E78: 77
E79: 78
E80: 79
E81: 80
E82: 81
E83: 82
E84: 83
E85: 84
E86: 85
E87: 86
E88: 87
E89: 88
E90: 89
E91: 90
E92: 91
E93: 92
E94: 93
E95: 94
E96: 95
E97: 96
E98: 97
E99: 98
E100: 99
E101: 100
E102: 101
E103: 102
E104: 103
E105: 104
E106: 105
E107: 106
E108: 107
E109: 108
E110: 109
E111: 110
E112: 111
E113: 112
E114: 113
E115: 114
E116: 115
E117: 116
E118: 117
E119: 118
E120: 119
E121: 120
E122: 121
E123: 122
E124: 123
E125: 124
E126: 125
E127: 126
E128: 127
E129: 128
E130: 129
E131: 130
E132: 131
E133: 132
E134: 133
E135: 134
E136: 135
E137: 136
E138: 137
E139: 138
E140: 139
E141: 140
E142: 141
E143: 142
E144: 143
E145: 144
E146: 145
E147: 146
E148: 147
E149: 148
E150: 149
E151: 150
E152: 151
E153: 152
E154: 153
E155: 154
E156: 155
E157: 156
E158: 157
E159: 158
E160: 159
E161: 160
E162: 161
E163: 162
E164: 163
E165: 164
E166: 165
E167: 166
E168: 167
E169: 168
E170: 169
E171: 170
E172: 171
E173: 172
E174: 173
E175: 174
E176: 175
E177: 176
E178: 177
E179: 178
E180: 179
E181: 180
E182: 181
E183: 182
E184: 183
E185: 184
E186: 185
E187: 186
E188: 187
E189: 188
E190: 189
E191: 190
E192: 191
E193: 192
E194: 193
E195: 194
E196: 195
E197: 196
E198: 197
E199: 198
E200: 199
... 101 more rows

Sheet Derby
A1: Der | B1: Draw | C1: Rider Name | D1: Horse Name | E1: Time | F1: Final Time | G1: Placing | H1: Money Earned
B2: 1 | C2: Renee Stuckey | D2: Leo San Ta Fame | F2: 15.949 | G2: 1D 1st | H2: 224
B3: 2 | C3: Phillip Kenyon | D3: SV Sun Kinda Wonder | F3: 16.117
B4: 3 | C4: Andrea Cline | D4: J Lo Fame | F4: 16.191
B5: 4 | C5: Susan Agnew | D5: Jet N Ta Fame | F5: 16.295
B6: 5 | C6: Kelsey Gordon | D6: Prada | F6: 16.376
B7: 6 | C7: Ali Armstrong | D7: Anniesgonnarunorelse | F7: 16.639 | G7: 2D 1st | H7: 96
B8: 7 | C8: Cody Hornbuckle | D8: Mountain Of Fame | F8: 16.845
B9: 8 | C9: Reenie Wahlert | D9: Famous Little Pistol | F9: 16.897
B10: 9 | C10: Phillip Kenyon | D10: Contagious Charm | F10: 17.167
B11: 10 | C11: Dani Buhler | D11: Cheers To That | F11: 17.85
B12: 11 | C12: Molli Montgomery | D12: Makin Ya Famous | F12: NT 15.797
B13: 12 | C13: Molli Montgomery | D13: Legsgonewild | F13: NT 16.060
B14: 13 | C14: Shea Lynn Leach | D14: Loui Bug | F14: nt15.906
B15: 14 | C15: Kassie Mowry | D15: Girls Dig Fame | F15: nt16.116
B16: 15 | C16: Karen Manning | D16: Shut the Blazin Door | F16: nt16.241
B17: 16 | C17: Glenn Stodart | D17: Heaven Doosey Daisy | F17: scratch
B18: 17
B19: 18
B20: 19
B21: 20
B22: 21
B23: 22
B24: 23
B25: 24
B26: 25
B27: 26
B28: 27
B29: 28
B30: 29
B31: 30
B32: 31
B33: 32
B34: 33
B35: 34 | F35: =IF(OR(#REF!=5,#REF!=10,#REF!= 15,#REF!= "BP",#REF!="SCR"),"NT",E35) -> 
B36: 35 | F36: =IF(OR(#REF!=5,#REF!=10,#REF!= 15,#REF!= "BP",#REF!="SCR"),"NT",E36) -> 
B37: 36 | F37: =IF(OR(#REF!=5,#REF!=10,#REF!= 15,#REF!= "BP",#REF!="SCR"),"NT",E37) -> 
B38: 37 | F38: =IF(OR(#REF!=5,#REF!=10,#REF!= 15,#REF!= "BP",#REF!="SCR"),"NT",E38) -> 
B39: 38 | F39: =IF(OR(#REF!=5,#REF!=10,#REF!= 15,#REF!= "BP",#REF!="SCR"),"NT",E39) -> 
B40: 39 | F40: =IF(OR(#REF!=5,#REF!=10,#REF!= 15,#REF!= "BP",#REF!="SCR"),"NT",E40) -> 
B41: 40 | F41: =IF(OR(#REF!=5,#REF!=10,#REF!= 15,#REF!= "BP",#REF!="SCR"),"NT",E41) -> 
B42: 41 | F42: =IF(OR(#REF!=5,#REF!=10,#REF!= 15,#REF!= "BP",#REF!="SCR"),"NT",E42) -> 
B43: 42 | F43: =IF(OR(#REF!=5,#REF!=10,#REF!= 15,#REF!= "BP",#REF!="SCR"),"NT",E43) -> 
B44: 43 | F44: =IF(OR(#REF!=5,#REF!=10,#REF!= 15,#REF!= "BP",#REF!="SCR"),"NT",E44) -> 
B45: 44 | F45: =IF(OR(#REF!=5,#REF!=10,#REF!= 15,#REF!= "BP",#REF!="SCR"),"NT",E45) -> 
B46: 45 | F46: =IF(OR(#REF!=5,#REF!=10,#REF!= 15,#REF!= "BP",#REF!="SCR"),"NT",E46) -> 
B47: 46 | F47: =IF(OR(#REF!=5,#REF!=10,#REF!= 15,#REF!= "BP",#REF!="SCR"),"NT",E47) -> 
B48: 47 | F48: =IF(OR(#REF!=5,#REF!=10,#REF!= 15,#REF!= "BP",#REF!="SCR"),"NT",E48) -> 
B49: 48 | F49: =IF(OR(#REF!=5,#REF!=10,#REF!= 15,#REF!= "BP",#REF!="SCR"),"NT",E49) -> 
B50: 49 | F50: =IF(OR(#REF!=5,#REF!=10,#REF!= 15,#REF!= "BP",#REF!="SCR"),"NT",E50) -> 
B51: 50 | F51: =IF(OR(#REF!=5,#REF!=10,#REF!= 15,#REF!= "BP",#REF!="SCR"),"NT",E51) -> 
B52: 51 | F52: =IF(OR(#REF!=5,#REF!=10,#REF!= 15,#REF!= "BP",#REF!="SCR"),"NT",E52) -> 
B53: 52 | F53: =IF(OR(#REF!=5,#REF!=10,#REF!= 15,#REF!= "BP",#REF!="SCR"),"NT",E53) -> 
B54: 53 | F54: =IF(OR(#REF!=5,#REF!=10,#REF!= 15,#REF!= "BP",#REF!="SCR"),"NT",E54) -> 
B55: 54 | F55: =IF(OR(#REF!=5,#REF!=10,#REF!= 15,#REF!= "BP",#REF!="SCR"),"NT",E55) -> 
B56: 55 | F56: =IF(OR(#REF!=5,#REF!=10,#REF!= 15,#REF!= "BP",#REF!="SCR"),"NT",E56) -> 
B57: 56 | F57: =IF(OR(#REF!=5,#REF!=10,#REF!= 15,#REF!= "BP",#REF!="SCR"),"NT",E57) -> 
B58: 57 | F58: =IF(OR(#REF!=5,#REF!=10,#REF!= 15,#REF!= "BP",#REF!="SCR"),"NT",E58) -> 
B59: 58 | F59: =IF(OR(#REF!=5,#REF!=10,#REF!= 15,#REF!= "BP",#REF!="SCR"),"NT",E59) -> 
B60: 59 | F60: =IF(OR(#REF!=5,#REF!=10,#REF!= 15,#REF!= "BP",#REF!="SCR"),"NT",E60) -> 
B61: 60 | F61: =IF(OR(#REF!=5,#REF!=10,#REF!= 15,#REF!= "BP",#REF!="SCR"),"NT",E61) -> 
B62: 61 | F62: =IF(OR(#REF!=5,#REF!=10,#REF!= 15,#REF!= "BP",#REF!="SCR"),"NT",E62) -> 
B63: 62 | F63: =IF(OR(#REF!=5,#REF!=10,#REF!= 15,#REF!= "BP",#REF!="SCR"),"NT",E63) -> 
B64: 63 | F64: =IF(OR(#REF!=5,#REF!=10,#REF!= 15,#REF!= "BP",#REF!="SCR"),"NT",E64) -> 
B65: 64 | F65: =IF(OR(#REF!=5,#REF!=10,#REF!= 15,#REF!= "BP",#REF!="SCR"),"NT",E65) -> 
B66: 65 | F66: =IF(OR(#REF!=5,#REF!=10,#REF!= 15,#REF!= "BP",#REF!="SCR"),"NT",E66) -> 
B67: 66 | F67: =IF(OR(#REF!=5,#REF!=10,#REF!= 15,#REF!= "BP",#REF!="SCR"),"NT",E67) -> 
B68: 67 | F68: =IF(OR(#REF!=5,#REF!=10,#REF!= 15,#REF!= "BP",#REF!="SCR"),"NT",E68) -> 
B69: 68 | F69: =IF(OR(#REF!=5,#REF!=10,#REF!= 15,#REF!= "BP",#REF!="SCR"),"NT",E69) -> 
B70: 69 | F70: =IF(OR(#REF!=5,#REF!=10,#REF!= 15,#REF!= "BP",#REF!="SCR"),"NT",E70) -> 
B71: 70 | F71: =IF(OR(#REF!=5,#REF!=10,#REF!= 15,#REF!= "BP",#REF!="SCR"),"NT",E71) -> 
B72: 71 | F72: =IF(OR(#REF!=5,#REF!=10,#REF!= 15,#REF!= "BP",#REF!="SCR"),"NT",E72) -> 
B73: 72 | F73: =IF(OR(#REF!=5,#REF!=10,#REF!= 15,#REF!= "BP",#REF!="SCR"),"NT",E73) -> 
B74: 73 | F74: =IF(OR(#REF!=5,#REF!=10,#REF!= 15,#REF!= "BP",#REF!="SCR"),"NT",E74) -> 
B75: 74 | F75: =IF(OR(#REF!=5,#REF!=10,#REF!= 15,#REF!= "BP",#REF!="SCR"),"NT",E75) -> 
B76: 75 | F76: =IF(OR(#REF!=5,#REF!=10,#REF!= 15,#REF!= "BP",#REF!="SCR"),"NT",E76) -> 
B77: 76 | F77: =IF(OR(#REF!=5,#REF!=10,#REF!= 15,#REF!= "BP",#REF!="SCR"),"NT",E77) -> 
B78: 77 | F78: =IF(OR(#REF!=5,#REF!=10,#REF!= 15,#REF!= "BP",#REF!="SCR"),"NT",E78) -> 
B79: 78 | F79: =IF(OR(#REF!=5,#REF!=10,#REF!= 15,#REF!= "BP",#REF!="SCR"),"NT",E79) -> 
B80: 79 | F80: =IF(OR(#REF!=5,#REF!=10,#REF!= 15,#REF!= "BP",#REF!="SCR"),"NT",E80) -> 
B81: 80 | F81: =IF(OR(#REF!=5,#REF!=10,#REF!= 15,#REF!= "BP",#REF!="SCR"),"NT",E81) -> 
B82: 81 | F82: =IF(OR(#REF!=5,#REF!=10,#REF!= 15,#REF!= "BP",#REF!="SCR"),"NT",E82) -> 
B83: 82 | F83: =IF(OR(#REF!=5,#REF!=10,#REF!= 15,#REF!= "BP",#REF!="SCR"),"NT",E83) -> 
B84: 83 | F84: =IF(OR(#REF!=5,#REF!=10,#REF!= 15,#REF!= "BP",#REF!="SCR"),"NT",E84) -> 
B85: 84 | F85: =IF(OR(#REF!=5,#REF!=10,#REF!= 15,#REF!= "BP",#REF!="SCR"),"NT",E85) -> 
B86: 85 | F86: =IF(OR(#REF!=5,#REF!=10,#REF!= 15,#REF!= "BP",#REF!="SCR"),"NT",E86) -> 
B87: 86 | F87: =IF(OR(#REF!=5,#REF!=10,#REF!= 15,#REF!= "BP",#REF!="SCR"),"NT",E87) -> 
B88: 87 | F88: =IF(OR(#REF!=5,#REF!=10,#REF!= 15,#REF!= "BP",#REF!="SCR"),"NT",E88) -> 
B89: 88 | F89: =IF(OR(#REF!=5,#REF!=10,#REF!= 15,#REF!= "BP",#REF!="SCR"),"NT",E89) -> 
B90: 89 | F90: =IF(OR(#REF!=5,#REF!=10,#REF!= 15,#REF!= "BP",#REF!="SCR"),"NT",E90) -> 
B91: 90 | F91: =IF(OR(#REF!=5,#REF!=10,#REF!= 15,#REF!= "BP",#REF!="SCR"),"NT",E91) -> 
B92: 91 | F92: =IF(OR(#REF!=5,#REF!=10,#REF!= 15,#REF!= "BP",#REF!="SCR"),"NT",E92) -> 
B93: 92 | F93: =IF(OR(#REF!=5,#REF!=10,#REF!= 15,#REF!= "BP",#REF!="SCR"),"NT",E93) -> 
B94: 93 | F94: =IF(OR(#REF!=5,#REF!=10,#REF!= 15,#REF!= "BP",#REF!="SCR"),"NT",E94) -> 
B95: 94 | F95: =IF(OR(#REF!=5,#REF!=10,#REF!= 15,#REF!= "BP",#REF!="SCR"),"NT",E95) -> 
B96: 95 | F96: =IF(OR(#REF!=5,#REF!=10,#REF!= 15,#REF!= "BP",#REF!="SCR"),"NT",E96) -> 
B97: 96 | F97: =IF(OR(#REF!=5,#REF!=10,#REF!= 15,#REF!= "BP",#REF!="SCR"),"NT",E97) -> 
B98: 97 | F98: =IF(OR(#REF!=5,#REF!=10,#REF!= 15,#REF!= "BP",#REF!="SCR"),"NT",E98) -> 
B99: 98 | F99: =IF(OR(#REF!=5,#REF!=10,#REF!= 15,#REF!= "BP",#REF!="SCR"),"NT",E99) -> 
B100: 99 | F100: =IF(OR(#REF!=5,#REF!=10,#REF!= 15,#REF!= "BP",#REF!="SCR"),"NT",E100) -> 
B101: 100 | F101: =IF(OR(#REF!=5,#REF!=10,#REF!= 15,#REF!= "BP",#REF!="SCR"),"NT",E101) -> 
B102: 101 | F102: =IF(OR(#REF!=5,#REF!=10,#REF!= 15,#REF!= "BP",#REF!="SCR"),"NT",E102) -> 
B103: 102 | F103: =IF(OR(#REF!=5,#REF!=10,#REF!= 15,#REF!= "BP",#REF!="SCR"),"NT",E103) -> 
B104: 103 | F104: =IF(OR(#REF!=5,#REF!=10,#REF!= 15,#REF!= "BP",#REF!="SCR"),"NT",E104) -> 
B105: 104 | F105: =IF(OR(#REF!=5,#REF!=10,#REF!= 15,#REF!= "BP",#REF!="SCR"),"NT",E105) -> 
B106: 105 | F106: =IF(OR(#REF!=5,#REF!=10,#REF!= 15,#REF!= "BP",#REF!="SCR"),"NT",E106) -> 
B107: 106 | F107: =IF(OR(#REF!=5,#REF!=10,#REF!= 15,#REF!= "BP",#REF!="SCR"),"NT",E107) -> 
B108: 107 | F108: =IF(OR(#REF!=5,#REF!=10,#REF!= 15,#REF!= "BP",#REF!="SCR"),"NT",E108) -> 
B109: 108 | F109: =IF(OR(#REF!=5,#REF!=10,#REF!= 15,#REF!= "BP",#REF!="SCR"),"NT",E109) -> 
B110: 109 | F110: =IF(OR(#REF!=5,#REF!=10,#REF!= 15,#REF!= "BP",#REF!="SCR"),"NT",E110) -> 
B111: 110 | F111: =IF(OR(#REF!=5,#REF!=10,#REF!= 15,#REF!= "BP",#REF!="SCR"),"NT",E111) -> 
B112: 111 | F112: =IF(OR(#REF!=5,#REF!=10,#REF!= 15,#REF!= "BP",#REF!="SCR"),"NT",E112) -> 
B113: 112 | F113: =IF(OR(#REF!=5,#REF!=10,#REF!= 15,#REF!= "BP",#REF!="SCR"),"NT",E113) -> 
B114: 113 | F114: =IF(OR(#REF!=5,#REF!=10,#REF!= 15,#REF!= "BP",#REF!="SCR"),"NT",E114) -> 
B115: 114 | F115: =IF(OR(#REF!=5,#REF!=10,#REF!= 15,#REF!= "BP",#REF!="SCR"),"NT",E115) -> 
B116: 115 | F116: =IF(OR(#REF!=5,#REF!=10,#REF!= 15,#REF!= "BP",#REF!="SCR"),"NT",E116) -> 
B117: 116 | F117: =IF(OR(#REF!=5,#REF!=10,#REF!= 15,#REF!= "BP",#REF!="SCR"),"NT",E117) -> 
B118: 117 | F118: =IF(OR(#REF!=5,#REF!=10,#REF!= 15,#REF!= "BP",#REF!="SCR"),"NT",E118) -> 
B119: 118 | F119: =IF(OR(#REF!=5,#REF!=10,#REF!= 15,#REF!= "BP",#REF!="SCR"),"NT",E119) -> 
B120: 119 | F120: =IF(OR(#REF!=5,#REF!=10,#REF!= 15,#REF!= "BP",#REF!="SCR"),"NT",E120) -> 
B121: 120 | F121: =IF(OR(#REF!=5,#REF!=10,#REF!= 15,#REF!= "BP",#REF!="SCR"),"NT",E121) -> 
B122: 121 | F122: =IF(OR(#REF!=5,#REF!=10,#REF!= 15,#REF!= "BP",#REF!="SCR"),"NT",E122) -> 
B123: 122 | F123: =IF(OR(#REF!=5,#REF!=10,#REF!= 15,#REF!= "BP",#REF!="SCR"),"NT",E123) -> 
B124: 123 | F124: =IF(OR(#REF!=5,#REF!=10,#REF!= 15,#REF!= "BP",#REF!="SCR"),"NT",E124) -> 
B125: 124 | F125: =IF(OR(#REF!=5,#REF!=10,#REF!= 15,#REF!= "BP",#REF!="SCR"),"NT",E125) -> 
B126: 125 | F126: =IF(OR(#REF!=5,#REF!=10,#REF!= 15,#REF!= "BP",#REF!="SCR"),"NT",E126) -> 
B127: 126 | F127: =IF(OR(#REF!=5,#REF!=10,#REF!= 15,#REF!= "BP",#REF!="SCR"),"NT",E127) -> 
B128: 127 | F128: =IF(OR(#REF!=5,#REF!=10,#REF!= 15,#REF!= "BP",#REF!="SCR"),"NT",E128) -> 
B129: 128 | F129: =IF(OR(#REF!=5,#REF!=10,#REF!= 15,#REF!= "BP",#REF!="SCR"),"NT",E129) -> 
B130: 129 | F130: =IF(OR(#REF!=5,#REF!=10,#REF!= 15,#REF!= "BP",#REF!="SCR"),"NT",E130) -> 
B131: 130 | F131: =IF(OR(#REF!=5,#REF!=10,#REF!= 15,#REF!= "BP",#REF!="SCR"),"NT",E131) -> 
B132: 131 | F132: =IF(OR(#REF!=5,#REF!=10,#REF!= 15,#REF!= "BP",#REF!="SCR"),"NT",E132) -> 
B133: 132 | F133: =IF(OR(#REF!=5,#REF!=10,#REF!= 15,#REF!= "BP",#REF!="SCR"),"NT",E133) -> 
B134: 133 | F134: =IF(OR(#REF!=5,#REF!=10,#REF!= 15,#REF!= "BP",#REF!="SCR"),"NT",E134) -> 
B135: 134 | F135: =IF(OR(#REF!=5,#REF!=10,#REF!= 15,#REF!= "BP",#REF!="SCR"),"NT",E135) -> 
B136: 135 | F136: =IF(OR(#REF!=5,#REF!=10,#REF!= 15,#REF!= "BP",#REF!="SCR"),"NT",E136) -> 
B137: 136 | F137: =IF(OR(#REF!=5,#REF!=10,#REF!= 15,#REF!= "BP",#REF!="SCR"),"NT",E137) -> 
B138: 137 | F138: =IF(OR(#REF!=5,#REF!=10,#REF!= 15,#REF!= "BP",#REF!="SCR"),"NT",E138) -> 
B139: 138 | F139: =IF(OR(#REF!=5,#REF!=10,#REF!= 15,#REF!= "BP",#REF!="SCR"),"NT",E139) -> 
B140: 139 | F140: =IF(OR(#REF!=5,#REF!=10,#REF!= 15,#REF!= "BP",#REF!="SCR"),"NT",E140) -> 
B141: 140 | F141: =IF(OR(#REF!=5,#REF!=10,#REF!= 15,#REF!= "BP",#REF!="SCR"),"NT",E141) -> 
B142: 141 | F142: =IF(OR(#REF!=5,#REF!=10,#REF!= 15,#REF!= "BP",#REF!="SCR"),"NT",E142) -> 
B143: 142 | F143: =IF(OR(#REF!=5,#REF!=10,#REF!= 15,#REF!= "BP",#REF!="SCR"),"NT",E143) -> 
B144: 143 | F144: =IF(OR(#REF!=5,#REF!=10,#REF!= 15,#REF!= "BP",#REF!="SCR"),"NT",E144) -> 
B145: 144 | F145: =IF(OR(#REF!=5,#REF!=10,#REF!= 15,#REF!= "BP",#REF!="SCR"),"NT",E145) -> 
B146: 145 | F146: =IF(OR(#REF!=5,#REF!=10,#REF!= 15,#REF!= "BP",#REF!="SCR"),"NT",E146) -> 
B147: 146 | F147: =IF(OR(#REF!=5,#REF!=10,#REF!= 15,#REF!= "BP",#REF!="SCR"),"NT",E147) -> 
B148: 147 | F148: =IF(OR(#REF!=5,#REF!=10,#REF!= 15,#REF!= "BP",#REF!="SCR"),"NT",E148) -> 
B149: 148 | F149: =IF(OR(#REF!=5,#REF!=10,#REF!= 15,#REF!= "BP",#REF!="SCR"),"NT",E149) -> 
B150: 149 | F150: =IF(OR(#REF!=5,#REF!=10,#REF!= 15,#REF!= "BP",#REF!="SCR"),"NT",E150) -> 
B151: 150 | F151: =IF(OR(#REF!=5,#REF!=10,#REF!= 15,#REF!= "BP",#REF!="SCR"),"NT",E151) -> 
B152: 151 | F152: =IF(OR(#REF!=5,#REF!=10,#REF!= 15,#REF!= "BP",#REF!="SCR"),"NT",E152) -> 
B153: 152 | F153: =IF(OR(#REF!=5,#REF!=10,#REF!= 15,#REF!= "BP",#REF!="SCR"),"NT",E153) -> 
B154: 153 | F154: =IF(OR(#REF!=5,#REF!=10,#REF!= 15,#REF!= "BP",#REF!="SCR"),"NT",E154) -> 
B155: 154 | F155: =IF(OR(#REF!=5,#REF!=10,#REF!= 15,#REF!= "BP",#REF!="SCR"),"NT",E155) -> 
B156: 155 | F156: =IF(OR(#REF!=5,#REF!=10,#REF!= 15,#REF!= "BP",#REF!="SCR"),"NT",E156) -> 
B157: 156 | F157: =IF(OR(#REF!=5,#REF!=10,#REF!= 15,#REF!= "BP",#REF!="SCR"),"NT",E157) -> 
B158: 157 | F158: =IF(OR(#REF!=5,#REF!=10,#REF!= 15,#REF!= "BP",#REF!="SCR"),"NT",E158) -> 
B159: 158 | F159: =IF(OR(#REF!=5,#REF!=10,#REF!= 15,#REF!= "BP",#REF!="SCR"),"NT",E159) -> 
B160: 159 | F160: =IF(OR(#REF!=5,#REF!=10,#REF!= 15,#REF!= "BP",#REF!="SCR"),"NT",E160) -> 
B161: 160 | F161: =IF(OR(#REF!=5,#REF!=10,#REF!= 15,#REF!= "BP",#REF!="SCR"),"NT",E161) -> 
B162: 161 | F162: =IF(OR(#REF!=5,#REF!=10,#REF!= 15,#REF!= "BP",#REF!="SCR"),"NT",E162) -> 
B163: 162 | F163: =IF(OR(#REF!=5,#REF!=10,#REF!= 15,#REF!= "BP",#REF!="SCR"),"NT",E163) -> 
B164: 163 | F164: =IF(OR(#REF!=5,#REF!=10,#REF!= 15,#REF!= "BP",#REF!="SCR"),"NT",E164) -> 
B165: 164 | F165: =IF(OR(#REF!=5,#REF!=10,#REF!= 15,#REF!= "BP",#REF!="SCR"),"NT",E165) -> 
B166: 165 | F166: =IF(OR(#REF!=5,#REF!=10,#REF!= 15,#REF!= "BP",#REF!="SCR"),"NT",E166) -> 
B167: 166 | F167: =IF(OR(#REF!=5,#REF!=10,#REF!= 15,#REF!= "BP",#REF!="SCR"),"NT",E167) -> 
B168: 167 | F168: =IF(OR(#REF!=5,#REF!=10,#REF!= 15,#REF!= "BP",#REF!="SCR"),"NT",E168) -> 
B169: 168 | F169: =IF(OR(#REF!=5,#REF!=10,#REF!= 15,#REF!= "BP",#REF!="SCR"),"NT",E169) -> 
B170: 169 | F170: =IF(OR(#REF!=5,#REF!=10,#REF!= 15,#REF!= "BP",#REF!="SCR"),"NT",E170) -> 
B171: 170 | F171: =IF(OR(#REF!=5,#REF!=10,#REF!= 15,#REF!= "BP",#REF!="SCR"),"NT",E171) -> 
B172: 171 | F172: =IF(OR(#REF!=5,#REF!=10,#REF!= 15,#REF!= "BP",#REF!="SCR"),"NT",E172) -> 
B173: 172 | F173: =IF(OR(#REF!=5,#REF!=10,#REF!= 15,#REF!= "BP",#REF!="SCR"),"NT",E173) -> 
B174: 173 | F174: =IF(OR(#REF!=5,#REF!=10,#REF!= 15,#REF!= "BP",#REF!="SCR"),"NT",E174) -> 
B175: 174 | F175: =IF(OR(#REF!=5,#REF!=10,#REF!= 15,#REF!= "BP",#REF!="SCR"),"NT",E175) -> 
B176: 175 | F176: =IF(OR(#REF!=5,#REF!=10,#REF!= 15,#REF!= "BP",#REF!="SCR"),"NT",E176) -> 
B177: 176 | F177: =IF(OR(#REF!=5,#REF!=10,#REF!= 15,#REF!= "BP",#REF!="SCR"),"NT",E177) -> 
B178: 177 | F178: =IF(OR(#REF!=5,#REF!=10,#REF!= 15,#REF!= "BP",#REF!="SCR"),"NT",E178) -> 
B179: 178 | F179: =IF(OR(#REF!=5,#REF!=10,#REF!= 15,#REF!= "BP",#REF!="SCR"),"NT",E179) -> 
B180: 179 | F180: =IF(OR(#REF!=5,#REF!=10,#REF!= 15,#REF!= "BP",#REF!="SCR"),"NT",E180) -> 
B181: 180 | F181: =IF(OR(#REF!=5,#REF!=10,#REF!= 15,#REF!= "BP",#REF!="SCR"),"NT",E181) -> 
B182: 181 | F182: =IF(OR(#REF!=5,#REF!=10,#REF!= 15,#REF!= "BP",#REF!="SCR"),"NT",E182) -> 
B183: 182 | F183: =IF(OR(#REF!=5,#REF!=10,#REF!= 15,#REF!= "BP",#REF!="SCR"),"NT",E183) -> 
B184: 183 | F184: =IF(OR(#REF!=5,#REF!=10,#REF!= 15,#REF!= "BP",#REF!="SCR"),"NT",E184) -> 
B185: 184 | F185: =IF(OR(#REF!=5,#REF!=10,#REF!= 15,#REF!= "BP",#REF!="SCR"),"NT",E185) -> 
B186: 185 | F186: =IF(OR(#REF!=5,#REF!=10,#REF!= 15,#REF!= "BP",#REF!="SCR"),"NT",E186) -> 
B187: 186 | F187: =IF(OR(#REF!=5,#REF!=10,#REF!= 15,#REF!= "BP",#REF!="SCR"),"NT",E187) -> 
B188: 187 | F188: =IF(OR(#REF!=5,#REF!=10,#REF!= 15,#REF!= "BP",#REF!="SCR"),"NT",E188) -> 
B189: 188 | F189: =IF(OR(#REF!=5,#REF!=10,#REF!= 15,#REF!= "BP",#REF!="SCR"),"NT",E189) -> 
B190: 189 | F190: =IF(OR(#REF!=5,#REF!=10,#REF!= 15,#REF!= "BP",#REF!="SCR"),"NT",E190) -> 
B191: 190 | F191: =IF(OR(#REF!=5,#REF!=10,#REF!= 15,#REF!= "BP",#REF!="SCR"),"NT",E191) -> 
B192: 191 | F192: =IF(OR(#REF!=5,#REF!=10,#REF!= 15,#REF!= "BP",#REF!="SCR"),"NT",E192) -> 
B193: 192 | F193: =IF(OR(#REF!=5,#REF!=10,#REF!= 15,#REF!= "BP",#REF!="SCR"),"NT",E193) -> 
B194: 193 | F194: =IF(OR(#REF!=5,#REF!=10,#REF!= 15,#REF!= "BP",#REF!="SCR"),"NT",E194) -> 
B195: 194 | F195: =IF(OR(#REF!=5,#REF!=10,#REF!= 15,#REF!= "BP",#REF!="SCR"),"NT",E195) -> 
B196: 195 | F196: =IF(OR(#REF!=5,#REF!=10,#REF!= 15,#REF!= "BP",#REF!="SCR"),"NT",E196) -> 
B197: 196 | F197: =IF(OR(#REF!=5,#REF!=10,#REF!= 15,#REF!= "BP",#REF!="SCR"),"NT",E197) -> 
B198: 197 | F198: =IF(OR(#REF!=5,#REF!=10,#REF!= 15,#REF!= "BP",#REF!="SCR"),"NT",E198) -> 
B199: 198 | F199: =IF(OR(#REF!=5,#REF!=10,#REF!= 15,#REF!= "BP",#REF!="SCR"),"NT",E199) -> 
B200: 199 | F200: =IF(OR(#REF!=5,#REF!=10,#REF!= 15,#REF!= "BP",#REF!="SCR"),"NT",E200) -> 
... 101 more rows

Sheet Futurity
A1: Futurity | B1: Draw | C1: Rider Name | D1: Horse Name | E1: Final Time | F1: Placing | G1: Money Earned
B2: 1 | C2: Jolene Montogmery | D2: Promise Me A Jet | E2: 15.727 | F2: 1D 1st | G2: 185
B3: 2 | C3: Davie King | D3: Brook | E3: 15.947 | F3: 1D 1st | G3: 123
B4: 3 | C4: Jolene Montogmery | D4: Double Dipped In Fame | E4: 15.96
B5: 4 | C5: Kelly Allen | D5: Miss JB 133 | E5: 15.975
B6: 5 | C6: Jolene Montogmery | D6: Jets Heart N Soul | E6: 15.991
B7: 6 | C7: Danyelle Campbell | D7: Lady Ta Da | E7: 16.179
B8: 7 | C8: Ryann Pedone | D8: Elmers On Fire | E8: 16.21
B9: 8 | C9: Andrea Cline | D9: Fame Us First Lady | E9: 16.266 | F9: 2D 1st | G9: 79
B10: 9 | C10: Ryann Pedone | D10: Coco Bongo | E10: 16.285 | F10: 2D 2nd | G10: 53
B11: 10 | C11: Jolene Montogmery | D11: Send Me Send Me | E11: 16.315
B12: 11 | C12: Jolene Montogmery | D12: Chicados Bully | E12: 16.332
B13: 12 | C13: Ryann Pedone | D13: Turn N With Ease | E13: 16.418
B14: 13 | C14: Ryann Pedone | D14: NNN Sixums Firewater | E14: 16.497
B15: 14 | C15: Kelly Allen | D15: Miss JB 1315 | E15: 16.559
B16: 15 | C16: Andrea Cline | D16: Freighttrain C | E16: 16.606
B17: 16 | C17: Krista Lucas | D17: Crown Royal Jet | E17: 16.962
B18: 17 | C18: Jeff Amsden | D18: Dez On Firewater | E18: 17.074
B19: 18 | C19: Danyelle Campbell | D19: JL Tularosa | E19: 17.231
B20: 19 | C20: Lacy Billingsley | D20: VF High N Famous | E20: 17.591
B21: 20 | C21: Susan Agnew | D21: Splash Da Firewater | E21: 18.108
B22: 21 | C22: Jessi Thompson | D22: Hitting Hennessy | E22: 19.653
B23: 22 | C23: Molli Montgomery | D23: Strawflyin The Gold | E23: NT 16.573
B24: 23
B25: 24
B26: 25
B27: 26
B28: 27
B29: 28
B30: 29
B31: 30 | E31: =IF(OR(#REF!=5,#REF!=10,#REF!= 15,#REF!= "BP",#REF!="SCR"),"NT",#REF!) -> 
B32: 31 | E32: =IF(OR(#REF!=5,#REF!=10,#REF!= 15,#REF!= "BP",#REF!="SCR"),"NT",#REF!) -> 
B33: 32 | E33: =IF(OR(#REF!=5,#REF!=10,#REF!= 15,#REF!= "BP",#REF!="SCR"),"NT",#REF!) -> 
B34: 33 | E34: =IF(OR(#REF!=5,#REF!=10,#REF!= 15,#REF!= "BP",#REF!="SCR"),"NT",#REF!) -> 
B35: 34 | E35: =IF(OR(#REF!=5,#REF!=10,#REF!= 15,#REF!= "BP",#REF!="SCR"),"NT",#REF!) -> 
B36: 35 | E36: =IF(OR(#REF!=5,#REF!=10,#REF!= 15,#REF!= "BP",#REF!="SCR"),"NT",#REF!) -> 
B37: 36 | E37: =IF(OR(#REF!=5,#REF!=10,#REF!= 15,#REF!= "BP",#REF!="SCR"),"NT",#REF!) -> 
B38: 37 | E38: =IF(OR(#REF!=5,#REF!=10,#REF!= 15,#REF!= "BP",#REF!="SCR"),"NT",#REF!) -> 
B39: 38 | E39: =IF(OR(#REF!=5,#REF!=10,#REF!= 15,#REF!= "BP",#REF!="SCR"),"NT",#REF!) -> 
B40: 39 | E40: =IF(OR(#REF!=5,#REF!=10,#REF!= 15,#REF!= "BP",#REF!="SCR"),"NT",#REF!) -> 
B41: 40 | E41: =IF(OR(#REF!=5,#REF!=10,#REF!= 15,#REF!= "BP",#REF!="SCR"),"NT",#REF!) -> 
B42: 41 | E42: =IF(OR(#REF!=5,#REF!=10,#REF!= 15,#REF!= "BP",#REF!="SCR"),"NT",#REF!) -> 
B43: 42 | E43: =IF(OR(#REF!=5,#REF!=10,#REF!= 15,#REF!= "BP",#REF!="SCR"),"NT",#REF!) -> 
B44: 43 | E44: =IF(OR(#REF!=5,#REF!=10,#REF!= 15,#REF!= "BP",#REF!="SCR"),"NT",#REF!) -> 
B45: 44 | E45: =IF(OR(#REF!=5,#REF!=10,#REF!= 15,#REF!= "BP",#REF!="SCR"),"NT",#REF!) -> 
B46: 45 | E46: =IF(OR(#REF!=5,#REF!=10,#REF!= 15,#REF!= "BP",#REF!="SCR"),"NT",#REF!) -> 
B47: 46 | E47: =IF(OR(#REF!=5,#REF!=10,#REF!= 15,#REF!= "BP",#REF!="SCR"),"NT",#REF!) -> 
B48: 47 | E48: =IF(OR(#REF!=5,#REF!=10,#REF!= 15,#REF!= "BP",#REF!="SCR"),"NT",#REF!) -> 
B49: 48 | E49: =IF(OR(#REF!=5,#REF!=10,#REF!= 15,#REF!= "BP",#REF!="SCR"),"NT",#REF!) -> 
B50: 49 | E50: =IF(OR(#REF!=5,#REF!=10,#REF!= 15,#REF!= "BP",#REF!="SCR"),"NT",#REF!) -> 
B51: 50 | E51: =IF(OR(#REF!=5,#REF!=10,#REF!= 15,#REF!= "BP",#REF!="SCR"),"NT",#REF!) -> 
B52: 51 | E52: =IF(OR(#REF!=5,#REF!=10,#REF!= 15,#REF!= "BP",#REF!="SCR"),"NT",#REF!) -> 
B53: 52 | E53: =IF(OR(#REF!=5,#REF!=10,#REF!= 15,#REF!= "BP",#REF!="SCR"),"NT",#REF!) -> 
B54: 53 | E54: =IF(OR(#REF!=5,#REF!=10,#REF!= 15,#REF!= "BP",#REF!="SCR"),"NT",#REF!) -> 
B55: 54 | E55: =IF(OR(#REF!=5,#REF!=10,#REF!= 15,#REF!= "BP",#REF!="SCR"),"NT",#REF!) -> 
B56: 55 | E56: =IF(OR(#REF!=5,#REF!=10,#REF!= 15,#REF!= "BP",#REF!="SCR"),"NT",#REF!) -> 
B57: 56 | E57: =IF(OR(#REF!=5,#REF!=10,#REF!= 15,#REF!= "BP",#REF!="SCR"),"NT",#REF!) -> 
B58: 57 | E58: =IF(OR(#REF!=5,#REF!=10,#REF!= 15,#REF!= "BP",#REF!="SCR"),"NT",#REF!) -> 
B59: 58 | E59: =IF(OR(#REF!=5,#REF!=10,#REF!= 15,#REF!= "BP",#REF!="SCR"),"NT",#REF!) -> 
B60: 59 | E60: =IF(OR(#REF!=5,#REF!=10,#REF!= 15,#REF!= "BP",#REF!="SCR"),"NT",#REF!) -> 
B61: 60 | E61: =IF(OR(#REF!=5,#REF!=10,#REF!= 15,#REF!= "BP",#REF!="SCR"),"NT",#REF!) -> 
B62: 61 | E62: =IF(OR(#REF!=5,#REF!=10,#REF!= 15,#REF!= "BP",#REF!="SCR"),"NT",#REF!) -> 
B63: 62 | E63: =IF(OR(#REF!=5,#REF!=10,#REF!= 15,#REF!= "BP",#REF!="SCR"),"NT",#REF!) -> 
B64: 63 | E64: =IF(OR(#REF!=5,#REF!=10,#REF!= 15,#REF!= "BP",#REF!="SCR"),"NT",#REF!) -> 
B65: 64 | E65: =IF(OR(#REF!=5,#REF!=10,#REF!= 15,#REF!= "BP",#REF!="SCR"),"NT",#REF!) -> 
B66: 65 | E66: =IF(OR(#REF!=5,#REF!=10,#REF!= 15,#REF!= "BP",#REF!="SCR"),"NT",#REF!) -> 
B67: 66 | E67: =IF(OR(#REF!=5,#REF!=10,#REF!= 15,#REF!= "BP",#REF!="SCR"),"NT",#REF!) -> 
B68: 67 | E68: =IF(OR(#REF!=5,#REF!=10,#REF!= 15,#REF!= "BP",#REF!="SCR"),"NT",#REF!) -> 
B69: 68 | E69: =IF(OR(#REF!=5,#REF!=10,#REF!= 15,#REF!= "BP",#REF!="SCR"),"NT",#REF!) -> 
B70: 69 | E70: =IF(OR(#REF!=5,#REF!=10,#REF!= 15,#REF!= "BP",#REF!="SCR"),"NT",#REF!) -> 
B71: 70 | E71: =IF(OR(#REF!=5,#REF!=10,#REF!= 15,#REF!= "BP",#REF!="SCR"),"NT",#REF!) -> 
B72: 71 | E72: =IF(OR(#REF!=5,#REF!=10,#REF!= 15,#REF!= "BP",#REF!="SCR"),"NT",#REF!) -> 
B73: 72 | E73: =IF(OR(#REF!=5,#REF!=10,#REF!= 15,#REF!= "BP",#REF!="SCR"),"NT",#REF!) -> 
B74: 73 | E74: =IF(OR(#REF!=5,#REF!=10,#REF!= 15,#REF!= "BP",#REF!="SCR"),"NT",#REF!) -> 
B75: 74 | E75: =IF(OR(#REF!=5,#REF!=10,#REF!= 15,#REF!= "BP",#REF!="SCR"),"NT",#REF!) -> 
B76: 75 | E76: =IF(OR(#REF!=5,#REF!=10,#REF!= 15,#REF!= "BP",#REF!="SCR"),"NT",#REF!) -> 
B77: 76 | E77: =IF(OR(#REF!=5,#REF!=10,#REF!= 15,#REF!= "BP",#REF!="SCR"),"NT",#REF!) -> 
B78: 77 | E78: =IF(OR(#REF!=5,#REF!=10,#REF!= 15,#REF!= "BP",#REF!="SCR"),"NT",#REF!) -> 
B79: 78 | E79: =IF(OR(#REF!=5,#REF!=10,#REF!= 15,#REF!= "BP",#REF!="SCR"),"NT",#REF!) -> 
B80: 79 | E80: =IF(OR(#REF!=5,#REF!=10,#REF!= 15,#REF!= "BP",#REF!="SCR"),"NT",#REF!) -> 
B81: 80 | E81: =IF(OR(#REF!=5,#REF!=10,#REF!= 15,#REF!= "BP",#REF!="SCR"),"NT",#REF!) -> 
B82: 81 | E82: =IF(OR(#REF!=5,#REF!=10,#REF!= 15,#REF!= "BP",#REF!="SCR"),"NT",#REF!) -> 
B83: 82 | E83: =IF(OR(#REF!=5,#REF!=10,#REF!= 15,#REF!= "BP",#REF!="SCR"),"NT",#REF!) -> 
B84: 83 | E84: =IF(OR(#REF!=5,#REF!=10,#REF!= 15,#REF!= "BP",#REF!="SCR"),"NT",#REF!) -> 
B85: 84 | E85: =IF(OR(#REF!=5,#REF!=10,#REF!= 15,#REF!= "BP",#REF!="SCR"),"NT",#REF!) -> 
B86: 85 | E86: =IF(OR(#REF!=5,#REF!=10,#REF!= 15,#REF!= "BP",#REF!="SCR"),"NT",#REF!) -> 
B87: 86 | E87: =IF(OR(#REF!=5,#REF!=10,#REF!= 15,#REF!= "BP",#REF!="SCR"),"NT",#REF!) -> 
B88: 87 | E88: =IF(OR(#REF!=5,#REF!=10,#REF!= 15,#REF!= "BP",#REF!="SCR"),"NT",#REF!) -> 
B89: 88 | E89: =IF(OR(#REF!=5,#REF!=10,#REF!= 15,#REF!= "BP",#REF!="SCR"),"NT",#REF!) -> 
B90: 89 | E90: =IF(OR(#REF!=5,#REF!=10,#REF!= 15,#REF!= "BP",#REF!="SCR"),"NT",#REF!) -> 
B91: 90 | E91: =IF(OR(#REF!=5,#REF!=10,#REF!= 15,#REF!= "BP",#REF!="SCR"),"NT",#REF!) -> 
B92: 91 | E92: =IF(OR(#REF!=5,#REF!=10,#REF!= 15,#REF!= "BP",#REF!="SCR"),"NT",#REF!) -> 
B93: 92 | E93: =IF(OR(#REF!=5,#REF!=10,#REF!= 15,#REF!= "BP",#REF!="SCR"),"NT",#REF!) -> 
B94: 93 | E94: =IF(OR(#REF!=5,#REF!=10,#REF!= 15,#REF!= "BP",#REF!="SCR"),"NT",#REF!) -> 
B95: 94 | E95: =IF(OR(#REF!=5,#REF!=10,#REF!= 15,#REF!= "BP",#REF!="SCR"),"NT",#REF!) -> 
B96: 95 | E96: =IF(OR(#REF!=5,#REF!=10,#REF!= 15,#REF!= "BP",#REF!="SCR"),"NT",#REF!) -> 
B97: 96 | E97: =IF(OR(#REF!=5,#REF!=10,#REF!= 15,#REF!= "BP",#REF!="SCR"),"NT",#REF!) -> 
B98: 97 | E98: =IF(OR(#REF!=5,#REF!=10,#REF!= 15,#REF!= "BP",#REF!="SCR"),"NT",#REF!) -> 
B99: 98 | E99: =IF(OR(#REF!=5,#REF!=10,#REF!= 15,#REF!= "BP",#REF!="SCR"),"NT",#REF!) -> 
B100: 99 | E100: =IF(OR(#REF!=5,#REF!=10,#REF!= 15,#REF!= "BP",#REF!="SCR"),"NT",#REF!) -> 
B101: 100 | E101: =IF(OR(#REF!=5,#REF!=10,#REF!= 15,#REF!= "BP",#REF!="SCR"),"NT",#REF!) -> 
B102: 101 | E102: =IF(OR(#REF!=5,#REF!=10,#REF!= 15,#REF!= "BP",#REF!="SCR"),"NT",#REF!) -> 
B103: 102 | E103: =IF(OR(#REF!=5,#REF!=10,#REF!= 15,#REF!= "BP",#REF!="SCR"),"NT",#REF!) -> 
B104: 103 | E104: =IF(OR(#REF!=5,#REF!=10,#REF!= 15,#REF!= "BP",#REF!="SCR"),"NT",#REF!) -> 
B105: 104 | E105: =IF(OR(#REF!=5,#REF!=10,#REF!= 15,#REF!= "BP",#REF!="SCR"),"NT",#REF!) -> 
B106: 105 | E106: =IF(OR(#REF!=5,#REF!=10,#REF!= 15,#REF!= "BP",#REF!="SCR"),"NT",#REF!) -> 
B107: 106 | E107: =IF(OR(#REF!=5,#REF!=10,#REF!= 15,#REF!= "BP",#REF!="SCR"),"NT",#REF!) -> 
B108: 107 | E108: =IF(OR(#REF!=5,#REF!=10,#REF!= 15,#REF!= "BP",#REF!="SCR"),"NT",#REF!) -> 
B109: 108 | E109: =IF(OR(#REF!=5,#REF!=10,#REF!= 15,#REF!= "BP",#REF!="SCR"),"NT",#REF!) -> 
B110: 109 | E110: =IF(OR(#REF!=5,#REF!=10,#REF!= 15,#REF!= "BP",#REF!="SCR"),"NT",#REF!) -> 
B111: 110 | E111: =IF(OR(#REF!=5,#REF!=10,#REF!= 15,#REF!= "BP",#REF!="SCR"),"NT",#REF!) -> 
B112: 111 | E112: =IF(OR(#REF!=5,#REF!=10,#REF!= 15,#REF!= "BP",#REF!="SCR"),"NT",#REF!) -> 
B113: 112 | E113: =IF(OR(#REF!=5,#REF!=10,#REF!= 15,#REF!= "BP",#REF!="SCR"),"NT",#REF!) -> 
B114: 113 | E114: =IF(OR(#REF!=5,#REF!=10,#REF!= 15,#REF!= "BP",#REF!="SCR"),"NT",#REF!) -> 
B115: 114 | E115: =IF(OR(#REF!=5,#REF!=10,#REF!= 15,#REF!= "BP",#REF!="SCR"),"NT",#REF!) -> 
B116: 115 | E116: =IF(OR(#REF!=5,#REF!=10,#REF!= 15,#REF!= "BP",#REF!="SCR"),"NT",#REF!) -> 
B117: 116 | E117: =IF(OR(#REF!=5,#REF!=10,#REF!= 15,#REF!= "BP",#REF!="SCR"),"NT",#REF!) -> 
B118: 117 | E118: =IF(OR(#REF!=5,#REF!=10,#REF!= 15,#REF!= "BP",#REF!="SCR"),"NT",#REF!) -> 
B119: 118 | E119: =IF(OR(#REF!=5,#REF!=10,#REF!= 15,#REF!= "BP",#REF!="SCR"),"NT",#REF!) -> 
B120: 119 | E120: =IF(OR(#REF!=5,#REF!=10,#REF!= 15,#REF!= "BP",#REF!="SCR"),"NT",#REF!) -> 
B121: 120 | E121: =IF(OR(#REF!=5,#REF!=10,#REF!= 15,#REF!= "BP",#REF!="SCR"),"NT",#REF!) -> 
B122: 121 | E122: =IF(OR(#REF!=5,#REF!=10,#REF!= 15,#REF!= "BP",#REF!="SCR"),"NT",#REF!) -> 
B123: 122 | E123: =IF(OR(#REF!=5,#REF!=10,#REF!= 15,#REF!= "BP",#REF!="SCR"),"NT",#REF!) -> 
B124: 123 | E124: =IF(OR(#REF!=5,#REF!=10,#REF!= 15,#REF!= "BP",#REF!="SCR"),"NT",#REF!) -> 
B125: 124 | E125: =IF(OR(#REF!=5,#REF!=10,#REF!= 15,#REF!= "BP",#REF!="SCR"),"NT",#REF!) -> 
B126: 125 | E126: =IF(OR(#REF!=5,#REF!=10,#REF!= 15,#REF!= "BP",#REF!="SCR"),"NT",#REF!) -> 
B127: 126 | E127: =IF(OR(#REF!=5,#REF!=10,#REF!= 15,#REF!= "BP",#REF!="SCR"),"NT",#REF!) -> 
B128: 127 | E128: =IF(OR(#REF!=5,#REF!=10,#REF!= 15,#REF!= "BP",#REF!="SCR"),"NT",#REF!) -> 
B129: 128 | E129: =IF(OR(#REF!=5,#REF!=10,#REF!= 15,#REF!= "BP",#REF!="SCR"),"NT",#REF!) -> 
B130: 129 | E130: =IF(OR(#REF!=5,#REF!=10,#REF!= 15,#REF!= "BP",#REF!="SCR"),"NT",#REF!) -> 
B131: 130 | E131: =IF(OR(#REF!=5,#REF!=10,#REF!= 15,#REF!= "BP",#REF!="SCR"),"NT",#REF!) -> 
B132: 131 | E132: =IF(OR(#REF!=5,#REF!=10,#REF!= 15,#REF!= "BP",#REF!="SCR"),"NT",#REF!) -> 
B133: 132 | E133: =IF(OR(#REF!=5,#REF!=10,#REF!= 15,#REF!= "BP",#REF!="SCR"),"NT",#REF!) -> 
B134: 133 | E134: =IF(OR(#REF!=5,#REF!=10,#REF!= 15,#REF!= "BP",#REF!="SCR"),"NT",#REF!) -> 
B135: 134 | E135: =IF(OR(#REF!=5,#REF!=10,#REF!= 15,#REF!= "BP",#REF!="SCR"),"NT",#REF!) -> 
B136: 135 | E136: =IF(OR(#REF!=5,#REF!=10,#REF!= 15,#REF!= "BP",#REF!="SCR"),"NT",#REF!) -> 
B137: 136 | E137: =IF(OR(#REF!=5,#REF!=10,#REF!= 15,#REF!= "BP",#REF!="SCR"),"NT",#REF!) -> 
B138: 137 | E138: =IF(OR(#REF!=5,#REF!=10,#REF!= 15,#REF!= "BP",#REF!="SCR"),"NT",#REF!) -> 
B139: 138 | E139: =IF(OR(#REF!=5,#REF!=10,#REF!= 15,#REF!= "BP",#REF!="SCR"),"NT",#REF!) -> 
B140: 139 | E140: =IF(OR(#REF!=5,#REF!=10,#REF!= 15,#REF!= "BP",#REF!="SCR"),"NT",#REF!) -> 
B141: 140 | E141: =IF(OR(#REF!=5,#REF!=10,#REF!= 15,#REF!= "BP",#REF!="SCR"),"NT",#REF!) -> 
B142: 141 | E142: =IF(OR(#REF!=5,#REF!=10,#REF!= 15,#REF!= "BP",#REF!="SCR"),"NT",#REF!) -> 
B143: 142 | E143: =IF(OR(#REF!=5,#REF!=10,#REF!= 15,#REF!= "BP",#REF!="SCR"),"NT",#REF!) -> 
B144: 143 | E144: =IF(OR(#REF!=5,#REF!=10,#REF!= 15,#REF!= "BP",#REF!="SCR"),"NT",#REF!) -> 
B145: 144 | E145: =IF(OR(#REF!=5,#REF!=10,#REF!= 15,#REF!= "BP",#REF!="SCR"),"NT",#REF!) -> 
B146: 145 | E146: =IF(OR(#REF!=5,#REF!=10,#REF!= 15,#REF!= "BP",#REF!="SCR"),"NT",#REF!) -> 
B147: 146 | E147: =IF(OR(#REF!=5,#REF!=10,#REF!= 15,#REF!= "BP",#REF!="SCR"),"NT",#REF!) -> 
B148: 147 | E148: =IF(OR(#REF!=5,#REF!=10,#REF!= 15,#REF!= "BP",#REF!="SCR"),"NT",#REF!) -> 
B149: 148 | E149: =IF(OR(#REF!=5,#REF!=10,#REF!= 15,#REF!= "BP",#REF!="SCR"),"NT",#REF!) -> 
B150: 149 | E150: =IF(OR(#REF!=5,#REF!=10,#REF!= 15,#REF!= "BP",#REF!="SCR"),"NT",#REF!) -> 
B151: 150 | E151: =IF(OR(#REF!=5,#REF!=10,#REF!= 15,#REF!= "BP",#REF!="SCR"),"NT",#REF!) -> 
B152: 151 | E152: =IF(OR(#REF!=5,#REF!=10,#REF!= 15,#REF!= "BP",#REF!="SCR"),"NT",#REF!) -> 
B153: 152 | E153: =IF(OR(#REF!=5,#REF!=10,#REF!= 15,#REF!= "BP",#REF!="SCR"),"NT",#REF!) -> 
B154: 153 | E154: =IF(OR(#REF!=5,#REF!=10,#REF!= 15,#REF!= "BP",#REF!="SCR"),"NT",#REF!) -> 
B155: 154 | E155: =IF(OR(#REF!=5,#REF!=10,#REF!= 15,#REF!= "BP",#REF!="SCR"),"NT",#REF!) -> 
B156: 155 | E156: =IF(OR(#REF!=5,#REF!=10,#REF!= 15,#REF!= "BP",#REF!="SCR"),"NT",#REF!) -> 
B157: 156 | E157: =IF(OR(#REF!=5,#REF!=10,#REF!= 15,#REF!= "BP",#REF!="SCR"),"NT",#REF!) -> 
B158: 157 | E158: =IF(OR(#REF!=5,#REF!=10,#REF!= 15,#REF!= "BP",#REF!="SCR"),"NT",#REF!) -> 
B159: 158 | E159: =IF(OR(#REF!=5,#REF!=10,#REF!= 15,#REF!= "BP",#REF!="SCR"),"NT",#REF!) -> 
B160: 159 | E160: =IF(OR(#REF!=5,#REF!=10,#REF!= 15,#REF!= "BP",#REF!="SCR"),"NT",#REF!) -> 
B161: 160 | E161: =IF(OR(#REF!=5,#REF!=10,#REF!= 15,#REF!= "BP",#REF!="SCR"),"NT",#REF!) -> 
B162: 161 | E162: =IF(OR(#REF!=5,#REF!=10,#REF!= 15,#REF!= "BP",#REF!="SCR"),"NT",#REF!) -> 
B163: 162 | E163: =IF(OR(#REF!=5,#REF!=10,#REF!= 15,#REF!= "BP",#REF!="SCR"),"NT",#REF!) -> 
B164: 163 | E164: =IF(OR(#REF!=5,#REF!=10,#REF!= 15,#REF!= "BP",#REF!="SCR"),"NT",#REF!) -> 
B165: 164 | E165: =IF(OR(#REF!=5,#REF!=10,#REF!= 15,#REF!= "BP",#REF!="SCR"),"NT",#REF!) -> 
B166: 165 | E166: =IF(OR(#REF!=5,#REF!=10,#REF!= 15,#REF!= "BP",#REF!="SCR"),"NT",#REF!) -> 
B167: 166 | E167: =IF(OR(#REF!=5,#REF!=10,#REF!= 15,#REF!= "BP",#REF!="SCR"),"NT",#REF!) -> 
B168: 167 | E168: =IF(OR(#REF!=5,#REF!=10,#REF!= 15,#REF!= "BP",#REF!="SCR"),"NT",#REF!) -> 
B169: 168 | E169: =IF(OR(#REF!=5,#REF!=10,#REF!= 15,#REF!= "BP",#REF!="SCR"),"NT",#REF!) -> 
B170: 169 | E170: =IF(OR(#REF!=5,#REF!=10,#REF!= 15,#REF!= "BP",#REF!="SCR"),"NT",#REF!) -> 
B171: 170 | E171: =IF(OR(#REF!=5,#REF!=10,#REF!= 15,#REF!= "BP",#REF!="SCR"),"NT",#REF!) -> 
B172: 171 | E172: =IF(OR(#REF!=5,#REF!=10,#REF!= 15,#REF!= "BP",#REF!="SCR"),"NT",#REF!) -> 
B173: 172 | E173: =IF(OR(#REF!=5,#REF!=10,#REF!= 15,#REF!= "BP",#REF!="SCR"),"NT",#REF!) -> 
B174: 173 | E174: =IF(OR(#REF!=5,#REF!=10,#REF!= 15,#REF!= "BP",#REF!="SCR"),"NT",#REF!) -> 
B175: 174 | E175: =IF(OR(#REF!=5,#REF!=10,#REF!= 15,#REF!= "BP",#REF!="SCR"),"NT",#REF!) -> 
B176: 175 | E176: =IF(OR(#REF!=5,#REF!=10,#REF!= 15,#REF!= "BP",#REF!="SCR"),"NT",#REF!) -> 
B177: 176 | E177: =IF(OR(#REF!=5,#REF!=10,#REF!= 15,#REF!= "BP",#REF!="SCR"),"NT",#REF!) -> 
B178: 177 | E178: =IF(OR(#REF!=5,#REF!=10,#REF!= 15,#REF!= "BP",#REF!="SCR"),"NT",#REF!) -> 
B179: 178 | E179: =IF(OR(#REF!=5,#REF!=10,#REF!= 15,#REF!= "BP",#REF!="SCR"),"NT",#REF!) -> 
B180: 179 | E180: =IF(OR(#REF!=5,#REF!=10,#REF!= 15,#REF!= "BP",#REF!="SCR"),"NT",#REF!) -> 
B181: 180 | E181: =IF(OR(#REF!=5,#REF!=10,#REF!= 15,#REF!= "BP",#REF!="SCR"),"NT",#REF!) -> 
B182: 181 | E182: =IF(OR(#REF!=5,#REF!=10,#REF!= 15,#REF!= "BP",#REF!="SCR"),"NT",#REF!) -> 
B183: 182 | E183: =IF(OR(#REF!=5,#REF!=10,#REF!= 15,#REF!= "BP",#REF!="SCR"),"NT",#REF!) -> 
B184: 183 | E184: =IF(OR(#REF!=5,#REF!=10,#REF!= 15,#REF!= "BP",#REF!="SCR"),"NT",#REF!) -> 
B185: 184 | E185: =IF(OR(#REF!=5,#REF!=10,#REF!= 15,#REF!= "BP",#REF!="SCR"),"NT",#REF!) -> 
B186: 185 | E186: =IF(OR(#REF!=5,#REF!=10,#REF!= 15,#REF!= "BP",#REF!="SCR"),"NT",#REF!) -> 
B187: 186 | E187: =IF(OR(#REF!=5,#REF!=10,#REF!= 15,#REF!= "BP",#REF!="SCR"),"NT",#REF!) -> 
B188: 187 | E188: =IF(OR(#REF!=5,#REF!=10,#REF!= 15,#REF!= "BP",#REF!="SCR"),"NT",#REF!) -> 
B189: 188 | E189: =IF(OR(#REF!=5,#REF!=10,#REF!= 15,#REF!= "BP",#REF!="SCR"),"NT",#REF!) -> 
B190: 189 | E190: =IF(OR(#REF!=5,#REF!=10,#REF!= 15,#REF!= "BP",#REF!="SCR"),"NT",#REF!) -> 
B191: 190 | E191: =IF(OR(#REF!=5,#REF!=10,#REF!= 15,#REF!= "BP",#REF!="SCR"),"NT",#REF!) -> 
B192: 191 | E192: =IF(OR(#REF!=5,#REF!=10,#REF!= 15,#REF!= "BP",#REF!="SCR"),"NT",#REF!) -> 
B193: 192 | E193: =IF(OR(#REF!=5,#REF!=10,#REF!= 15,#REF!= "BP",#REF!="SCR"),"NT",#REF!) -> 
B194: 193 | E194: =IF(OR(#REF!=5,#REF!=10,#REF!= 15,#REF!= "BP",#REF!="SCR"),"NT",#REF!) -> 
B195: 194 | E195: =IF(OR(#REF!=5,#REF!=10,#REF!= 15,#REF!= "BP",#REF!="SCR"),"NT",#REF!) -> 
B196: 195 | E196: =IF(OR(#REF!=5,#REF!=10,#REF!= 15,#REF!= "BP",#REF!="SCR"),"NT",#REF!) -> 
B197: 196 | E197: =IF(OR(#REF!=5,#REF!=10,#REF!= 15,#REF!= "BP",#REF!="SCR"),"NT",#REF!) -> 
B198: 197 | E198: =IF(OR(#REF!=5,#REF!=10,#REF!= 15,#REF!= "BP",#REF!="SCR"),"NT",#REF!) -> 
B199: 198 | E199: =IF(OR(#REF!=5,#REF!=10,#REF!= 15,#REF!= "BP",#REF!="SCR"),"NT",#REF!) -> 
B200: 199 | E200: =IF(OR(#REF!=5,#REF!=10,#REF!= 15,#REF!= "BP",#REF!="SCR"),"NT",#REF!) -> 
... 101 more rows

Sheet 12 & Under (hidden)
A1: Futurity | B1: Der | C1: Age Inct. | D1: R/O | E1: Draw | F1: Rider Name | G1: Horse Name | H1: Time | I1: Final Time | J1: Placing | K1: Money Earned
E33: 32
E34: 33
E35: 34
E36: 35
E37: 36
E38: 37
E39: 38
E40: 39
E41: 40
E42: 41
E43: 42
E44: 43
E45: 44
E46: 45
E47: 46
E48: 47
E49: 48
E50: 49
E51: 50
E52: 51
E53: 52
E54: 53
E55: 54
E56: 55
E57: 56
E58: 57
E59: 58
E60: 59
E61: 60
E62: 61
E63: 62
E64: 63
E65: 64
E66: 65
E67: 66
E68: 67
E69: 68
E70: 69
E71: 70
E72: 71
E73: 72
E74: 73
E75: 74
E76: 75
E77: 76
E78: 77
E79: 78
E80: 79
E81: 80
E82: 81
E83: 82
E84: 83
E85: 84
E86: 85
E87: 86
E88: 87
E89: 88
E90: 89
E91: 90
E92: 91
E93: 92
E94: 93
E95: 94
E96: 95
E97: 96
E98: 97
E99: 98
E100: 99
E101: 100
E102: 101
E103: 102
E104: 103
E105: 104
E106: 105
E107: 106
E108: 107
E109: 108
E110: 109
E111: 110
E112: 111
E113: 112
E114: 113
E115: 114
E116: 115
E117: 116
E118: 117
E119: 118
E120: 119
E121: 120
E122: 121
E123: 122
E124: 123
E125: 124
E126: 125
E127: 126
E128: 127
E129: 128
E130: 129
E131: 130
E132: 131
E133: 132
E134: 133
E135: 134
E136: 135
E137: 136
E138: 137
E139: 138
E140: 139
E141: 140
E142: 141
E143: 142
E144: 143
E145: 144
E146: 145
E147: 146
E148: 147
E149: 148
E150: 149
E151: 150
E152: 151
E153: 152
E154: 153
E155: 154
E156: 155
E157: 156
E158: 157
E159: 158
E160: 159
E161: 160
E162: 161
E163: 162
E164: 163
E165: 164
E166: 165
E167: 166
E168: 167
E169: 168
E170: 169
E171: 170
E172: 171
E173: 172
E174: 173
E175: 174
E176: 175
E177: 176
E178: 177
E179: 178
E180: 179
E181: 180
E182: 181
E183: 182
E184: 183
E185: 184
E186: 185
E187: 186
E188: 187
E189: 188
E190: 189
E191: 190
E192: 191
E193: 192
E194: 193
E195: 194
E196: 195
E197: 196
E198: 197
E199: 198
E200: 199
E201: 200
E202: 201
E203: 202
E204: 203
E205: 204
E206: 205
E207: 206
E208: 207
E209: 208
E210: 209
E211: 210
E212: 211
E213: 212
E214: 213
E215: 214
E216: 215
E217: 216
E218: 217
E219: 218
E220: 219
E221: 220
E222: 221
E223: 222
E224: 223
E225: 224
E226: 225
E227: 226
E228: 227
E229: 228
E230: 229
E231: 230
... 70 more rows

Sheet Average
A1: Parker County Arena
A2: Open
A3: 4 Yr Fut | B3: 5 Yr Fut | C3: Der | D3: Age Inct. | E3: Am | F3: Carry | G3: T/C | H3: F/F | I3: Mem | J3: Nom | K3: Av | L3: BBR | M3: WPRA | N3: Draw | O3: Owner Name | P3: Rider Name | Q3: Horse Name | R3: Pen | S3: Time 1 | T3: Final Time 1 | U3: Pen | V3: Time 2 | W3: Final Time 2 | X3: Total Time | Y3: Average Time | Z3: Placing | AA3: Money Earned | AC3: D Placing | AE3: Split
N4: 1 | T4: =IF(OR(R4=5,R4=10, R4=15, R4="BP",R4="SCR"),"NT",S4) -> 0 | W4: =IF(OR(U4=5,U4=10, U4=15, U4="BP",U4="SCR"),"NT",V4) -> 0 | X4: =(T4+W4) -> 0 | Y4: =(T4+W4)/2 -> 0 | AC4: 1D
N5: 2 | T5: 0 | W5: 0 | X5: 0 | Y5: 0 | AC5: 2D | AD5: =$AD$4+$AE$5 -> 0.5 | AE5: 0.5
N6: 3 | T6: 0 | W6: 0 | X6: 0 | Y6: 0 | AC6: 3D | AD6: =$AD$5+$AE$6 -> 1 | AE6: 0.5
N7: 4 | T7: 0 | W7: 0 | X7: 0 | Y7: 0 | AC7: 4D | AD7: =$AD$6+$AE$7 -> 1.5 | AE7: 0.5
N8: 5 | T8: 0 | W8: 0 | X8: 0 | Y8: 0 | AC8: 5D | AD8: =$AD$7+$AE$8 -> 2 | AE8: 0.5
N9: 6 | T9: 0 | W9: 0 | X9: 0 | Y9: 0
N10: 7 | T10: 0 | W10: 0 | X10: 0 | Y10: 0 | AC10: # Entered
N11: 8 | T11: 0 | W11: 0 | X11: 0 | Y11: 0 | AC11: =COUNTA(P4:P503) -> 0
N12: 9 | T12: 0 | W12: 0 | X12: 0 | Y12: 0
N13: 10 | T13: 0 | W13: 0 | X13: 0 | Y13: 0
N14: 11 | T14: 0 | W14: 0 | X14: 0 | Y14: 0
N15: 12 | T15: 0 | W15: 0 | X15: 0 | Y15: 0
N16: 13 | T16: 0 | W16: 0 | X16: 0 | Y16: 0
N17: 14 | T17: =IF(OR(R17=5,R17=10, R17=15, R17="BP",R17="SCR"),"NT",S17) -> 0 | W17: =IF(OR(U17=5,U17=10, U17=15, U17="BP",U17="SCR"),"NT",V17) -> 0 | X17: =(T17+W17) -> 0 | Y17: =(T17+W17)/2 -> 0
N18: 15 | T18: 0 | W18: 0 | X18: 0 | Y18: 0
N19: 16 | T19: 0 | W19: 0 | X19: 0 | Y19: 0
N20: 17 | T20: 0 | W20: 0 | X20: 0 | Y20: 0
N21: 18 | T21: 0 | W21: 0 | X21: 0 | Y21: 0
N22: 19 | T22: 0 | W22: 0 | X22: 0 | Y22: 0
N23: 20 | T23: 0 | W23: 0 | X23: 0 | Y23: 0
N24: 21 | T24: 0 | W24: 0 | X24: 0 | Y24: 0
N25: 22 | T25: 0 | W25: 0 | X25: 0 | Y25: 0
N26: 23 | T26: 0 | W26: 0 | X26: 0 | Y26: 0
N27: 24 | T27: 0 | W27: 0 | X27: 0 | Y27: 0
N28: 25 | T28: 0 | W28: 0 | X28: 0 | Y28: 0
N29: 26 | T29: 0 | W29: 0 | X29: 0 | Y29: 0
N30: 27 | T30: 0 | W30: 0 | X30: 0 | Y30: 0
N31: 28 | T31: 0 | W31: 0 | X31: 0 | Y31: 0
N32: 29 | T32: 0 | W32: 0 | X32: 0 | Y32: 0
N33: 30 | T33: 0 | W33: 0 | X33: 0 | Y33: 0
N34: 31 | T34: 0 | W34: 0 | X34: 0 | Y34: 0
N35: 32 | T35: 0 | W35: 0 | X35: 0 | Y35: 0
N36: 33 | T36: 0 | W36: 0 | X36: 0 | Y36: 0
N37: 34 | T37: 0 | W37: 0 | X37: 0 | Y37: 0
N38: 35 | T38: 0 | W38: 0 | X38: 0 | Y38: 0
N39: 36 | T39: 0 | W39: 0 | X39: 0 | Y39: 0
N40: 37 | T40: 0 | W40: 0 | X40: 0 | Y40: 0
N41: 38 | T41: 0 | W41: 0 | X41: 0 | Y41: 0
N42: 39 | T42: 0 | W42: 0 | X42: 0 | Y42: 0
N43: 40 | T43: 0 | W43: 0 | X43: 0 | Y43: 0
N44: 41 | T44: 0 | W44: 0 | X44: 0 | Y44: 0
N45: 42 | T45: 0 | W45: 0 | X45: 0 | Y45: 0
N46: 43 | T46: 0 | W46: 0 | X46: 0 | Y46: 0
N47: 44 | T47: 0 | W47: 0 | X47: 0 | Y47: 0
N48: 45 | T48: 0 | W48: 0 | X48: 0 | Y48: 0
N49: 46 | T49: 0 | W49: 0 | X49: 0 | Y49: 0
N50: 47 | T50: 0 | W50: 0 | X50: 0 | Y50: 0
N51: 48 | T51: 0 | W51: 0 | X51: 0 | Y51: 0
N52: 49 | T52: 0 | W52: 0 | X52: 0 | Y52: 0
N53: 50 | T53: 0 | W53: 0 | X53: 0 | Y53: 0
N54: 51 | T54: 0 | W54: 0 | X54: 0 | Y54: 0
N55: 52 | T55: 0 | W55: 0 | X55: 0 | Y55: 0
N56: 53 | T56: 0 | W56: 0 | X56: 0 | Y56: 0
N57: 54 | T57: 0 | W57: 0 | X57: 0 | Y57: 0
N58: 55 | T58: 0 | W58: 0 | X58: 0 | Y58: 0
N59: 56 | T59: 0 | W59: 0 | X59: 0 | Y59: 0
N60: 57 | T60: 0 | W60: 0 | X60: 0 | Y60: 0
N61: 58 | T61: 0 | W61: 0 | X61: 0 | Y61: 0
N62: 59 | T62: 0 | W62: 0 | X62: 0 | Y62: 0
N63: 60 | T63: 0 | W63: 0 | X63: 0 | Y63: 0
N64: 61 | T64: 0 | W64: 0 | X64: 0 | Y64: 0
N65: 62 | T65: 0 | W65: 0 | X65: 0 | Y65: 0
N66: 63 | T66: 0 | W66: 0 | X66: 0 | Y66: 0
N67: 64 | T67: 0 | W67: 0 | X67: 0 | Y67: 0
N68: 65 | T68: 0 | W68: 0 | X68: 0 | Y68: 0
N69: 66 | T69: =IF(OR(R69=5,R69=10, R69=15, R69="BP",R69="SCR"),"NT",S69) -> 0 | W69: =IF(OR(U69=5,U69=10, U69=15, U69="BP",U69="SCR"),"NT",V69) -> 0 | X69: =(T69+W69) -> 0 | Y69: =(T69+W69)/2 -> 0
N70: 67 | T70: 0 | W70: 0 | X70: 0 | Y70: 0
N71: 68 | T71: 0 | W71: 0 | X71: 0 | Y71: 0
N72: 69 | T72: 0 | W72: 0 | X72: 0 | Y72: 0
N73: 70 | T73: 0 | W73: 0 | X73: 0 | Y73: 0
N74: 71 | T74: 0 | W74: 0 | X74: 0 | Y74: 0
N75: 72 | T75: 0 | W75: 0 | X75: 0 | Y75: 0
N76: 73 | T76: 0 | W76: 0 | X76: 0 | Y76: 0
N77: 74 | T77: 0 | W77: 0 | X77: 0 | Y77: 0
N78: 75 | T78: 0 | W78: 0 | X78: 0 | Y78: 0
N79: 76 | T79: 0 | W79: 0 | X79: 0 | Y79: 0
N80: 77 | T80: 0 | W80: 0 | X80: 0 | Y80: 0
N81: 78 | T81: 0 | W81: 0 | X81: 0 | Y81: 0
N82: 79 | T82: 0 | W82: 0 | X82: 0 | Y82: 0
N83: 80 | T83: 0 | W83: 0 | X83: 0 | Y83: 0
N84: 81 | T84: 0 | W84: 0 | X84: 0 | Y84: 0
N85: 82 | T85: 0 | W85: 0 | X85: 0 | Y85: 0
N86: 83 | T86: 0 | W86: 0 | X86: 0 | Y86: 0
N87: 84 | T87: 0 | W87: 0 | X87: 0 | Y87: 0
N88: 85 | T88: 0 | W88: 0 | X88: 0 | Y88: 0
N89: 86 | T89: 0 | W89: 0 | X89: 0 | Y89: 0
N90: 87 | T90: 0 | W90: 0 | X90: 0 | Y90: 0
N91: 88 | T91: 0 | W91: 0 | X91: 0 | Y91: 0
N92: 89 | T92: 0 | W92: 0 | X92: 0 | Y92: 0
N93: 90 | T93: 0 | W93: 0 | X93: 0 | Y93: 0
N94: 91 | T94: 0 | W94: 0 | X94: 0 | Y94: 0
N95: 92 | T95: 0 | W95: 0 | X95: 0 | Y95: 0
N96: 93 | T96: 0 | W96: 0 | X96: 0 | Y96: 0
N97: 94 | T97: 0 | W97: 0 | X97: 0 | Y97: 0
N98: 95 | T98: 0 | W98: 0 | X98: 0 | Y98: 0
N99: 96 | T99: 0 | W99: 0 | X99: 0 | Y99: 0
N100: 97 | T100: 0 | W100: 0 | X100: 0 | Y100: 0
N101: 98 | T101: 0 | W101: 0 | X101: 0 | Y101: 0
N102: 99 | T102: 0 | W102: 0 | X102: 0 | Y102: 0
N103: 100 | T103: 0 | W103: 0 | X103: 0 | Y103: 0
N104: 101 | T104: 0 | W104: 0 | X104: 0 | Y104: 0
N105: 102 | T105: 0 | W105: 0 | X105: 0 | Y105: 0
N106: 103 | T106: 0 | W106: 0 | X106: 0 | Y106: 0
N107: 104 | T107: 0 | W107: 0 | X107: 0 | Y107: 0
N108: 105 | T108: 0 | W108: 0 | X108: 0 | Y108: 0
N109: 106 | T109: 0 | W109: 0 | X109: 0 | Y109: 0
N110: 107 | T110: 0 | W110: 0 | X110: 0 | Y110: 0
N111: 108 | T111: 0 | W111: 0 | X111: 0 | Y111: 0
N112: 109 | T112: 0 | W112: 0 | X112: 0 | Y112: 0
N113: 110 | T113: 0 | W113: 0 | X113: 0 | Y113: 0
N114: 111 | T114: 0 | W114: 0 | X114: 0 | Y114: 0
N115: 112 | T115: 0 | W115: 0 | X115: 0 | Y115: 0
N116: 113 | T116: 0 | W116: 0 | X116: 0 | Y116: 0
N117: 114 | T117: 0 | W117: 0 | X117: 0 | Y117: 0
N118: 115 | T118: 0 | W118: 0 | X118: 0 | Y118: 0
N119: 116 | T119: 0 | W119: 0 | X119: 0 | Y119: 0
N120: 117 | T120: 0 | W120: 0 | X120: 0 | Y120: 0
N121: 118 | T121: 0 | W121: 0 | X121: 0 | Y121: 0
N122: 119 | T122: 0 | W122: 0 | X122: 0 | Y122: 0
N123: 120 | T123: 0 | W123: 0 | X123: 0 | Y123: 0
N124: 121 | T124: 0 | W124: 0 | X124: 0 | Y124: 0
N125: 122 | T125: 0 | W125: 0 | X125: 0 | Y125: 0
N126: 123 | T126: 0 | W126: 0 | X126: 0 | Y126: 0
N127: 124 | T127: 0 | W127: 0 | X127: 0 | Y127: 0
N128: 125 | T128: 0 | W128: 0 | X128: 0 | Y128: 0
N129: 126 | T129: 0 | W129: 0 | X129: 0 | Y129: 0
N130: 127 | T130: 0 | W130: 0 | X130: 0 | Y130: 0
N131: 128 | T131: 0 | W131: 0 | X131: 0 | Y131: 0
N132: 129 | T132: 0 | W132: 0 | X132: 0 | Y132: 0
N133: 130 | T133: =IF(OR(R133=5,R133=10, R133=15, R133="BP",R133="SCR"),"NT",S133) -> 0 | W133: =IF(OR(U133=5,U133=10, U133=15, U133="BP",U133="SCR"),"NT",V133) -> 0 | X133: =(T133+W133) -> 0 | Y133: =(T133+W133)/2 -> 0
N134: 131 | T134: 0 | W134: 0 | X134: 0 | Y134: 0
N135: 132 | T135: 0 | W135: 0 | X135: 0 | Y135: 0
N136: 133 | T136: 0 | W136: 0 | X136: 0 | Y136: 0
N137: 134 | T137: 0 | W137: 0 | X137: 0 | Y137: 0
N138: 135 | T138: 0 | W138: 0 | X138: 0 | Y138: 0
N139: 136 | T139: 0 | W139: 0 | X139: 0 | Y139: 0
N140: 137 | T140: 0 | W140: 0 | X140: 0 | Y140: 0
N141: 138 | T141: 0 | W141: 0 | X141: 0 | Y141: 0
N142: 139 | T142: 0 | W142: 0 | X142: 0 | Y142: 0
N143: 140 | T143: 0 | W143: 0 | X143: 0 | Y143: 0
N144: 141 | T144: 0 | W144: 0 | X144: 0 | Y144: 0
N145: 142 | T145: 0 | W145: 0 | X145: 0 | Y145: 0
N146: 143 | T146: 0 | W146: 0 | X146: 0 | Y146: 0
N147: 144 | T147: 0 | W147: 0 | X147: 0 | Y147: 0
N148: 145 | T148: 0 | W148: 0 | X148: 0 | Y148: 0
N149: 146 | T149: 0 | W149: 0 | X149: 0 | Y149: 0
N150: 147 | T150: 0 | W150: 0 | X150: 0 | Y150: 0
N151: 148 | T151: 0 | W151: 0 | X151: 0 | Y151: 0
N152: 149 | T152: 0 | W152: 0 | X152: 0 | Y152: 0
N153: 150 | T153: 0 | W153: 0 | X153: 0 | Y153: 0
N154: 151 | T154: 0 | W154: 0 | X154: 0 | Y154: 0
N155: 152 | T155: 0 | W155: 0 | X155: 0 | Y155: 0
N156: 153 | T156: 0 | W156: 0 | X156: 0 | Y156: 0
N157: 154 | T157: 0 | W157: 0 | X157: 0 | Y157: 0
N158: 155 | T158: 0 | W158: 0 | X158: 0 | Y158: 0
N159: 156 | T159: 0 | W159: 0 | X159: 0 | Y159: 0
N160: 157 | T160: 0 | W160: 0 | X160: 0 | Y160: 0
N161: 158 | T161: 0 | W161: 0 | X161: 0 | Y161: 0
N162: 159 | T162: 0 | W162: 0 | X162: 0 | Y162: 0
N163: 160 | T163: 0 | W163: 0 | X163: 0 | Y163: 0
N164: 161 | T164: 0 | W164: 0 | X164: 0 | Y164: 0
N165: 162 | T165: 0 | W165: 0 | X165: 0 | Y165: 0
N166: 163 | T166: 0 | W166: 0 | X166: 0 | Y166: 0
N167: 164 | T167: 0 | W167: 0 | X167: 0 | Y167: 0
N168: 165 | T168: 0 | W168: 0 | X168: 0 | Y168: 0
N169: 166 | T169: 0 | W169: 0 | X169: 0 | Y169: 0
N170: 167 | T170: 0 | W170: 0 | X170: 0 | Y170: 0
N171: 168 | T171: 0 | W171: 0 | X171: 0 | Y171: 0
N172: 169 | T172: 0 | W172: 0 | X172: 0 | Y172: 0
N173: 170 | T173: 0 | W173: 0 | X173: 0 | Y173: 0
N174: 171 | T174: 0 | W174: 0 | X174: 0 | Y174: 0
N175: 172 | T175: 0 | W175: 0 | X175: 0 | Y175: 0
N176: 173 | T176: 0 | W176: 0 | X176: 0 | Y176: 0
N177: 174 | T177: 0 | W177: 0 | X177: 0 | Y177: 0
N178: 175 | T178: 0 | W178: 0 | X178: 0 | Y178: 0
N179: 176 | T179: 0 | W179: 0 | X179: 0 | Y179: 0
N180: 177 | T180: 0 | W180: 0 | X180: 0 | Y180: 0
N181: 178 | T181: 0 | W181: 0 | X181: 0 | Y181: 0
N182: 179 | T182: 0 | W182: 0 | X182: 0 | Y182: 0
N183: 180 | T183: 0 | W183: 0 | X183: 0 | Y183: 0
N184: 181 | T184: 0 | W184: 0 | X184: 0 | Y184: 0
N185: 182 | T185: 0 | W185: 0 | X185: 0 | Y185: 0
N186: 183 | T186: 0 | W186: 0 | X186: 0 | Y186: 0
N187: 184 | T187: 0 | W187: 0 | X187: 0 | Y187: 0
N188: 185 | T188: 0 | W188: 0 | X188: 0 | Y188: 0
N189: 186 | T189: 0 | W189: 0 | X189: 0 | Y189: 0
N190: 187 | T190: 0 | W190: 0 | X190: 0 | Y190: 0
N191: 188 | T191: 0 | W191: 0 | X191: 0 | Y191: 0
N192: 189 | T192: 0 | W192: 0 | X192: 0 | Y192: 0
N193: 190 | T193: 0 | W193: 0 | X193: 0 | Y193: 0
N194: 191 | T194: 0 | W194: 0 | X194: 0 | Y194: 0
N195: 192 | T195: 0 | W195: 0 | X195: 0 | Y195: 0
N196: 193 | T196: 0 | W196: 0 | X196: 0 | Y196: 0
N197: 194 | T197: =IF(OR(R197=5,R197=10, R197=15, R197="BP",R197="SCR"),"NT",S197) -> 0 | W197: =IF(OR(U197=5,U197=10, U197=15, U197="BP",U197="SCR"),"NT",V197) -> 0 | X197: =(T197+W197) -> 0 | Y197: =(T197+W197)/2 -> 0
N198: 195 | T198: 0 | W198: 0 | X198: 0 | Y198: 0
N199: 196 | T199: 0 | W199: 0 | X199: 0 | Y199: 0
N200: 197 | T200: 0 | W200: 0 | X200: 0 | Y200: 0
... 303 more rows

Sheet BFA 2D Payout (hidden)
A1: BFA 2D Payout
A2: Entry Fee | B2: # Entries | C2: % Payback | D2: Added $ | E2: Total Payout | F2: Each Go
A3: 25 | B3: 19 | C3: 0.8 | D3: 200 | E3: =(A3*$C$3)*B3+D3 -> 580 | F3: 0.3
F4: =$E$3*$F$3 -> 174
A5: $5,000-7,500 Pays 5 Places 4 to 1D 1 to 2D
A6: Placings | B6: 1D | D6: 2D
A7: 1st | B7: =($F$4*$C$7) -> 57.42 | C7: 0.33 | D7: =$F$4*$E$7 -> 12.18 | E7: 0.07
A8: 2nd | B8: =$F$4*$C$8 -> 46.98 | C8: 0.27
A9: 3rd | B9: =$F$4*$C$9 -> 34.8 | C9: 0.2
A10: 4th | B10: =$F$4*$C$10 -> 22.62 | C10: 0.13
A11: Totals | B11: =SUM(B7:B10) -> 161.82 | D11: =SUM(D7:D10) -> 12.18 | E11: =(C7+C8+C9+C10+E7+E8) -> 1
A12: =B11+D11 -> 174
A13: $7,501 - 10,000 Pays 6 Places 4 to 1D, 2 to 2D
A14: Placings | B14: 1D | D14: 2D
A15: 1st | B15: =$F$4*$C$15 -> 50.46 | C15: 0.29 | D15: =$F$4*$E$15 -> 15.66 | E15: 0.09
A16: 2nd | B16: =+$F$4*$C$16 -> 41.76 | C16: 0.24 | D16: =F4*E16 -> 8.7 | E16: 0.05
A17: 3rd | B17: =$F$4*$C$17 -> 33.06 | C17: 0.19
A18: 4th | B18: =$F$4*$C$18 -> 24.36 | C18: 0.14
A19: Totals | B19: =SUM(B15:B18) -> 149.64 | D19: =D16+D15 -> 24.36 | E19: =SUM(C15+C16+C17+C18+E15+E16) -> 1
A20: =D19+B19 -> 174
A21: $10,001 - $15,000 Payes 8 Places 5 to 1D, 3 to 2D
A22: Placings | B22: 1D | D22: 2D
A23: 1st | B23: =F4*C23 -> 41.76 | C23: 0.24 | D23: =F4*E23 -> 12.18 | E23: 0.07
A24: 2nd | B24: =F4*C24 -> 34.8 | C24: 0.2 | D24: =F4*E24 -> 8.7 | E24: 0.05
A25: 3rd | B25: =F4*C25 -> 29.58 | C25: 0.17 | D25: =F4*E25 -> 6.96 | E25: 0.04
A26: 4th | B26: =F4*C26 -> 22.62 | C26: 0.13
A27: 5th | B27: =F4*C27 -> 17.4 | C27: 0.1
A28: Totals | B28: =SUM(B23:B27) -> 146.16 | D28: =SUM(D23:D27) -> 27.84 | E28: =C23+C24+C25+C26+C27+E23+E24+E25 -> 1
A29: =B28+D28 -> 174
A30: $15,001 - $25,000 Payes 11 Places 7 to 1D, 4 to 2D
A31: Placings | B31: 1D | D31: 2D
A32: 1st | B32: =$F$4*C32 -> 36.54 | C32: 0.21 | D32: =$F$4*E32 -> 8.7 | E32: 0.05
A33: 2nd | B33: =$F$4*C33 -> 31.32 | C33: 0.18 | D33: =$F$4*E33 -> 6.96 | E33: 0.04
A34: 3rd | B34: 26.1 | C34: 0.15 | D34: 5.22 | E34: 0.03
A35: 4th | B35: 19.14 | C35: 0.11 | D35: 3.48 | E35: 0.02
A36: 5th | B36: 13.92 | C36: 0.08
A37: 6th | B37: 12.18 | C37: 0.07
A38: 7th | B38: 10.44 | C38: 0.06
A39: Totals | B39: =SUM(B32:B38) -> 149.64 | D39: =SUM(D32:D38) -> 24.36 | E39: =C32+C33+C34+C35+C36+C37+C38+E32+E33+E34+E35 -> 1
A40: =SUM(B39+D39) -> 174
A41: $25,001 - $35,000 Payes 12 Places 8 to 1D, 4 to 2D
A42: Placings | B42: 1D | D42: 2D
A43: 1st | B43: =$F$4*C43 -> 33.06 | C43: 0.19 | D43: =$F$4*E43 -> 8.7 | E43: 0.05
A44: 2nd | B44: =$F$4*C44 -> 26.1 | C44: 0.15 | D44: =$F$4*E44 -> 6.96 | E44: 0.04
A45: 3rd | B45: 20.88 | C45: 0.12 | D45: 5.22 | E45: 0.03
A46: 4th | B46: 17.4 | C46: 0.1 | D46: 3.48 | E46: 0.02
A47: 5th | B47: 15.66 | C47: 0.09
A48: 6th | B48: 13.92 | C48: 0.08
A49: 7th | B49: 12.18 | C49: 0.07
A50: 8th | B50: 10.44 | C50: 0.06
A51: Totals | B51: =SUM(B43:B50) -> 149.64 | D51: =SUM(D43:D46) -> 24.36 | E51: =C43+C44+C45+C46+C47+C48+C49+C50+E43+E44+E45+E46 -> 1
A52: =D51+B51 -> 174

Sheet 2D Payout
A1: 2D Payout
A2: Entry Fee | B2: # Entries | C2: % Payback | D2: Added $ | E2: Total Payout
A3: 100 | B3: 19 | C3: 0.8 | D3: 0 | E3: =(A3*$C$3)*B3+D3 -> 1520
A5: % in each D | B5: 0.6 | C5: 0.4 | D5: Total % = | E5: =SUM(B5:C5) -> 1
B6: 1D | C6: 2D
B7: =(($A$3*$B$3*$C$3*$B$5)+($D$3*$B$5)) -> 912 | C7: =(($A$3*$B$3*$C$3*$C$5)+($D$3*$C$5)) -> 608
A8: Totals | B8: =SUM(B7) -> 912 | C8: =SUM(C7) -> 608 | D8: =SUM(B8:C8) -> 1520
A10: For 1-7 riders 1 place
A11: Placings | B11: 1D | C11: 2D
A12: 1st | B12: =$B$7*$E$12 -> 912 | C12: =$C$7*$E$5 -> 608 | D12: è | E12: 1
A13: Totals | B13: =SUM(B12:B12) -> 912 | C13: =SUM(C12:C12) -> 608 | D13: =SUM(B13:C13) -> 1520 | E13: =SUM(E12) -> 1
A15: For 8-11 riders 2 places
A16: Placings | B16: 1D | C16: 2D
A17: 1st | B17: =$B$7*$E$17 -> 638.4 | C17: =$C$7*$E$17 -> 425.6 | D17: è | E17: 0.7
A18: 2nd | B18: =$B$7*$E$18 -> 273.6 | C18: =$C$7*$E$18 -> 182.4 | D18: è | E18: 0.3
A19: Totals | B19: =SUM(B17:B18) -> 912 | C19: =SUM(C17:C18) -> 608 | D19: =SUM(B19:C19) -> 1520 | E19: =SUM(E17:E18) -> 1
A21: For 12-15 riders 3 places
A22: Placings | B22: 1D | C22: 2D
A23: 1st | B23: =$B$7*$E$23 -> 456 | C23: =$C$7*$E$23 -> 304 | D23: è | E23: 0.5
A24: 2nd | B24: =$B$7*$E$24 -> 273.6 | C24: =$C$7*$E$24 -> 182.4 | D24: è | E24: 0.3
A25: 3rd | B25: =$B$7*$E$25 -> 182.4 | C25: =$C$7*$E$25 -> 121.6 | D25: è | E25: 0.2
A26: Totals | B26: =SUM(B23:B25) -> 912 | C26: =SUM(C23:C25) -> 608 | D26: =SUM(B26:C26) -> 1520 | E26: =SUM(E23:E25) -> 1
A28: For 16-19 riders 4 places
A29: Placings | B29: 1D | C29: 2D
A30: 1st | B30: =$B$7*$E$30 -> 364.8 | C30: =$C$7*$E$30 -> 243.2 | D30: è | E30: 0.4
A31: 2nd | B31: =$B$7*$E$31 -> 273.6 | C31: =$C$7*$E$31 -> 182.4 | D31: è | E31: 0.3
A32: 3rd | B32: =$B$7*$E$32 -> 182.4 | C32: =$C$7*$E$32 -> 121.6 | D32: è | E32: 0.2
A33: 4th | B33: =$B$7*$E$33 -> 91.2 | C33: =$C$7*$E$33 -> 60.8 | D33: è | E33: 0.1
A34: Totals | B34: =SUM(B30:B33) -> 912 | C34: =SUM(C30:C33) -> 608 | D34: =SUM(B34:C34) -> 1520 | E34: =SUM(E30:E33) -> 1
A36: For 20-23 riders 5 places
A37: Placings | B37: 1D | C37: 2D
A38: 1st | B38: =$B$7*$E$38 -> 273.6 | C38: =$C$7*$E$38 -> 182.4 | D38: è | E38: 0.3
A39: 2nd | B39: =$B$7*$E$39 -> 228 | C39: =$C$7*$E$39 -> 152 | D39: è | E39: 0.25
A40: 3rd | B40: =$B$7*$E$40 -> 182.4 | C40: =$C$7*$E$40 -> 121.6 | D40: è | E40: 0.2
A41: 4th | B41: =$B$7*$E$41 -> 136.8 | C41: =$C$7*$E$41 -> 91.2 | D41: è | E41: 0.15
A42: 5th | B42: =$B$7*$E$42 -> 91.2 | C42: =$C$7*$E$42 -> 60.8 | D42: è | E42: 0.1
A43: Totals | B43: =SUM(B38:B42) -> 912 | C43: =SUM(C38:C42) -> 608 | D43: =SUM(B43:C43) -> 1520 | E43: =SUM(E38:E42) -> 1
A45: For 24-27 riders 6 places
A46: Placings | B46: 1D | C46: 2D
A47: 1st | B47: =$B$7*$E$47 -> 228 | C47: =$C$7*$E$47 -> 152 | D47: è | E47: 0.25
A48: 2nd | B48: =$B$7*$E$48 -> 182.4 | C48: =$C$7*$E$48 -> 121.6 | D48: è | E48: 0.2
A49: 3rd | B49: =$B$7*$E$49 -> 164.16 | C49: =$C$7*$E$49 -> 109.44 | D49: è | E49: 0.18
A50: 4th | B50: =$B$7*$E$50 -> 136.8 | C50: =$C$7*$E$50 -> 91.2 | D50: è | E50: 0.15
A51: 5th | B51: =$B$7*$E$51 -> 109.44 | C51: =$C$7*$E$51 -> 72.96 | D51: è | E51: 0.12
A52: 6th | B52: =$B$7*$E$52 -> 91.2 | C52: =$C$7*$E$52 -> 60.8 | D52: è | E52: 0.1
A53: Totals | B53: =SUM(B47:B52) -> 912 | C53: =SUM(C47:C52) -> 608 | D53: =SUM(B53:C53) -> 1520 | E53: =SUM(E47:E52) -> 1
A55: For 28-31 riders 7 places
A56: Placings | B56: 1D | C56: 2D
A57: 1st | B57: =$B$7*$E$57 -> 200.64 | C57: =$C$7*$E$57 -> 133.76 | D57: è | E57: 0.22
A58: 2nd | B58: =$B$7*$E$58 -> 164.16 | C58: =$C$7*$E$58 -> 109.44 | D58: è | E58: 0.18
A59: 3rd | B59: =$B$7*$E$59 -> 145.92 | C59: =$C$7*$E$59 -> 97.28 | D59: è | E59: 0.16
A60: 4th | B60: =$B$7*$E$60 -> 127.68 | C60: =$C$7*$E$60 -> 85.12 | D60: è | E60: 0.14
A61: 5th | B61: =$B$7*$E$61 -> 109.44 | C61: =$C$7*$E$61 -> 72.96 | D61: è | E61: 0.12
A62: 6th | B62: =$B$7*$E$62 -> 91.2 | C62: =$C$7*$E$62 -> 60.8 | D62: è | E62: 0.1
A63: 7th | B63: =$B$7*$E$63 -> 72.96 | C63: =$C$7*$E$63 -> 48.64 | D63: è | E63: 0.08
A64: Totals | B64: =SUM(B57:B63) -> 912 | C64: =SUM(C57:C63) -> 608 | D64: =SUM(B64:C64) -> 1520 | E64: =SUM(E57:E63) -> 1
A66: For 32 or more riders 8 places
A67: Placings | B67: 1D | C67: 2D
A68: 1st | B68: =$B$7*$E$68 -> 209.76 | C68: =$C$7*$E$68 -> 139.84 | D68: è | E68: 0.23
A69: 2nd | B69: =$B$7*$E$69 -> 182.4 | C69: =$C$7*$E$69 -> 121.6 | D69: è | E69: 0.2
A70: 3rd | B70: =$B$7*$E$70 -> 155.04 | C70: =$C$7*$E$70 -> 103.36 | D70: è | E70: 0.17
A71: 4th | B71: =$B$7*$E$71 -> 127.68 | C71: =$C$7*$E$71 -> 85.12 | D71: è | E71: 0.14
A72: 5th | B72: =$B$7*$E$72 -> 100.32 | C72: =$C$7*$E$72 -> 66.88 | D72: è | E72: 0.11
A73: 6th | B73: =$B$7*$E$73 -> 72.96 | C73: =$C$7*$E$73 -> 48.64 | D73: è | E73: 0.08
A74: 7th | B74: =$B$7*$E$74 -> 45.6 | C74: =$C$7*$E$74 -> 30.4 | D74: è | E74: 0.05
A75: 8th | B75: =$B$7*$E$75 -> 18.24 | C75: =$C$7*$E$75 -> 12.16 | D75: è | E75: 0.02
A76: Totals | B76: =SUM(B68:B75) -> 912 | C76: =SUM(C68:C75) -> 608 | D76: =SUM(B76:C76) -> 1520 | E76: =SUM(E68:E75) -> 1

Sheet 3D Payout (hidden)
A1: 3D Payout
A2: Entry Fee | B2: # Entries | C2: % Payback | D2: $ From Entry | E2: Added $ | F2: Total Payout
A3: 10 | B3: 3 | C3: 0.8 | D3: =$A$3*$C$3*$B$3 -> 24 | F3: =$D$3+$E$3 -> 24
A5: % in each D | B5: 0.5 | C5: 0.3 | D5: 0.2 | E5: Total % = | F5: =SUM(B5:D5) -> 1
B6: 1D | C6: 2D | D6: 3D
B7: =(($A$3*$B$3*$C$3*$B$5)+($E$3*$B$5)) -> 12 | C7: =(($A$3*$B$3*$C$3*$C$5)+($E$3*$C$5)) -> 7.2 | D7: =(($A$3*$B$3*$C$3*$D$5)+($E$3*$D$5)) -> 4.8
A8: Totals | B8: =SUM(B7) -> 12 | C8: =SUM(C7) -> 7.2 | D8: 4.8 | E8: =SUM(B8:D8) -> 24
A10: For 1-10 riders 1 place
A11: Placings | B11: 1D | C11: 2D | D11: 3D
A12: 1st | B12: =$B$7*$F$12 -> 12 | C12: =$C$7*$F$12 -> 7.2 | D12: =$D$7*$F$12 -> 4.8 | E12: è | F12: 1
A13: Totals | B13: =SUM(B12:B12) -> 12 | C13: =SUM(C12:C12) -> 7.2 | D13: =SUM(D12:D12) -> 4.8 | E13: =SUM(B13:D13) -> 24 | F13: =SUM(F12) -> 1
A15: For 11-15 riders 2 places
A16: Placings | B16: 1D | C16: 2D | D16: 3D
A17: 1st | B17: =$B$7*$F$17 -> 7.2 | C17: =$C$7*$F$17 -> 4.32 | D17: =$D$7*$F$17 -> 2.88 | E17: è | F17: 0.6
A18: 2nd | B18: =$B$7*$F$18 -> 4.8 | C18: =$C$7*$F$18 -> 2.88 | D18: =$D$7*$F$18 -> 1.92 | E18: è | F18: 0.4
A19: Totals | B19: =SUM(B17:B18) -> 12 | C19: =SUM(C17:C18) -> 7.2 | D19: =SUM(D17:D18) -> 4.8 | E19: =SUM(B19:D19) -> 24 | F19: =SUM(F17:F18) -> 1
A21: For 16-30 riders 3 places
A22: Placings | B22: 1D | C22: 2D | D22: 3D
A23: 1st | B23: =$B$7*$F$23 -> 6 | C23: =$C$7*$F$23 -> 3.6 | D23: =$D$7*$F$23 -> 2.4 | E23: è | F23: 0.5
A24: 2nd | B24: =$B$7*$F$24 -> 3.6 | C24: =$C$7*$F$24 -> 2.16 | D24: =$D$7*$F$24 -> 1.44 | E24: è | F24: 0.3
A25: 3rd | B25: =$B$7*$F$25 -> 2.4 | C25: =$C$7*$F$25 -> 1.44 | D25: =$D$7*$F$25 -> 0.96 | E25: è | F25: 0.2
A26: Totals | B26: =SUM(B23:B25) -> 12 | C26: =SUM(C23:C25) -> 7.2 | D26: =SUM(D22:D25) -> 4.8 | E26: =SUM(B26:D26) -> 24 | F26: =SUM(F23:F25) -> 1
A28: For 31-60 riders 4 places
A29: Placings | B29: 1D | C29: 2D | D29: 3D
A30: 1st | B30: =$B$7*$F$30 -> 5.04 | C30: =$C$7*$F$30 -> 3.024 | D30: =$D$7*$F$30 -> 2.016 | E30: è | F30: 0.42
A31: 2nd | B31: =$B$7*$F$31 -> 3.48 | C31: =$C$7*$F$31 -> 2.088 | D31: =$D$7*$F$31 -> 1.392 | E31: è | F31: 0.29
A32: 3rd | B32: =$B$7*$F$32 -> 2.28 | C32: =$C$7*$F$32 -> 1.368 | D32: =$D$7*$F$32 -> 0.912 | E32: è | F32: 0.19
A33: 4th | B33: =$B$7*$F$33 -> 1.2 | C33: =$C$7*$F$33 -> 0.72 | D33: =$D$7*$F$33 -> 0.48 | E33: è | F33: 0.1
A34: Totals | B34: =SUM(B30:B33) -> 12 | C34: =SUM(C30:C33) -> 7.2 | D34: =SUM(D30:D33) -> 4.8 | E34: =SUM(B34:D34) -> 24 | F34: =SUM(F30:F33) -> 1
A36: For 61-90 riders 5 places
A37: Placings | B37: 1D | C37: 2D | D37: 3D
A38: 1st | B38: =$B$7*$F$38 -> 4.56 | C38: =$C$7*$F$38 -> 2.736 | D38: =$D$7*$F$38 -> 1.824 | E38: è | F38: 0.38
A39: 2nd | B39: =$B$7*$F$39 -> 3.36 | C39: =$C$7*$F$39 -> 2.016 | D39: =$D$7*$F$39 -> 1.344 | E39: è | F39: 0.28
A40: 3rd | B40: =$B$7*$F$40 -> 2.16 | C40: =$C$7*$F$40 -> 1.296 | D40: =$D$7*$F$40 -> 0.864 | E40: è | F40: 0.18
A41: 4th | B41: =$B$7*$F$41 -> 1.2 | C41: =$C$7*$F$41 -> 0.72 | D41: =$D$7*$F$41 -> 0.48 | E41: è | F41: 0.1
A42: 5th | B42: =$B$7*$F$42 -> 0.72 | C42: =$C$7*$F$42 -> 0.432 | D42: =$D$7*$F$42 -> 0.288 | E42: è | F42: 0.06
A43: Totals | B43: =SUM(B38:B42) -> 12 | C43: =SUM(C38:C42) -> 7.2 | D43: =SUM(D38:D42) -> 4.8 | E43: =SUM(B43:D43) -> 24 | F43: =SUM(F38:F42) -> 1
A45: For 91-120 riders 6 places
A46: Placings | B46: 1D | C46: 2D | D46: 3D
A47: 1st | B47: =$B$7*$F$47 -> 4.32 | C47: =$C$7*$F$47 -> 2.592 | D47: =$D$7*$F$47 -> 1.728 | E47: è | F47: 0.36
A48: 2nd | B48: =$B$7*$F$48 -> 3.12 | C48: =$C$7*$F$48 -> 1.872 | D48: =$D$7*$F$48 -> 1.248 | E48: è | F48: 0.26
A49: 3rd | B49: =$B$7*$F$49 -> 1.92 | C49: =$C$7*$F$49 -> 1.152 | D49: =$D$7*$F$49 -> 0.768 | E49: è | F49: 0.16
A50: 4th | B50: =$B$7*$F$50 -> 1.2 | C50: =$C$7*$F$50 -> 0.72 | D50: =$D$7*$F$50 -> 0.48 | E50: è | F50: 0.1
A51: 5th | B51: =$B$7*$F$51 -> 0.84 | C51: =$C$7*$F$51 -> 0.504 | D51: =$D$7*$F$51 -> 0.336 | E51: è | F51: 0.07
A52: 6th | B52: =$B$7*$F$52 -> 0.6 | C52: =$C$7*$F$52 -> 0.36 | D52: =$D$7*$F$52 -> 0.24 | E52: è | F52: 0.05
A53: Totals | B53: =SUM(B47:B52) -> 12 | C53: =SUM(C47:C52) -> 7.2 | D53: =SUM(D47:D52) -> 4.8 | E53: =SUM(B53:D53) -> 24 | F53: =SUM(F47:F52) -> 1
A55: For 121-200 riders 7 places
A56: Placings | B56: 1D | C56: 2D | D56: 3D
A57: 1st | B57: =$B$7*$F$57 -> 3.12 | C57: =$C$7*$F$57 -> 1.872 | D57: =$D$7*$F$57 -> 1.248 | E57: è | F57: 0.26
A58: 2nd | B58: =$B$7*$F$58 -> 2.4 | C58: =$C$7*$F$58 -> 1.44 | D58: =$D$7*$F$58 -> 0.96 | E58: è | F58: 0.2
A59: 3rd | B59: =$B$7*$F$59 -> 1.8 | C59: =$C$7*$F$59 -> 1.08 | D59: =$D$7*$F$59 -> 0.72 | E59: è | F59: 0.15
A60: 4th | B60: =$B$7*$F$60 -> 1.44 | C60: =$C$7*$F$60 -> 0.864 | D60: =$D$7*$F$60 -> 0.576 | E60: è | F60: 0.12
A61: 5th | B61: =$B$7*$F$61 -> 1.2 | C61: =$C$7*$F$61 -> 0.72 | D61: =$D$7*$F$61 -> 0.48 | E61: è | F61: 0.1
A62: 6th | B62: =$B$7*$F$62 -> 1.08 | C62: =$C$7*$F$62 -> 0.648 | D62: =$D$7*$F$62 -> 0.432 | E62: è | F62: 0.09
A63: 7th | B63: =$B$7*$F$63 -> 0.96 | C63: =$C$7*$F$63 -> 0.576 | D63: =$D$7*$F$63 -> 0.384 | E63: è | F63: 0.08
A64: Totals | B64: =SUM(B57:B63) -> 12 | C64: =SUM(C57:C63) -> 7.2 | D64: =SUM(D57:D63) -> 4.8 | E64: =SUM(B64:D64) -> 24 | F64: =SUM(F57:F63) -> 1
A66: For 201 or more riders 8 places
A67: Placings | B67: 1D | C67: 2D | D67: 3D
A68: 1st | B68: =$B$7*0.24 -> 2.88 | C68: =$C$7*0.24 -> 1.728 | D68: =$D$7*0.24 -> 1.152 | E68: è | F68: 0.24
A69: 2nd | B69: =$B$7*0.18 -> 2.16 | C69: =$C$7*0.18 -> 1.296 | D69: =$D$7*0.18 -> 0.864 | E69: è | F69: 0.18
A70: 3rd | B70: =$B$7*0.15 -> 1.8 | C70: =$C$7*0.15 -> 1.08 | D70: =$D$7*0.15 -> 0.72 | E70: è | F70: 0.15
A71: 4th | B71: =$B$7*0.12 -> 1.44 | C71: =$C$7*0.12 -> 0.864 | D71: =$D$7*0.12 -> 0.576 | E71: è | F71: 0.12
A72: 5th | B72: =$B$7*0.1 -> 1.2 | C72: =$C$7*0.1 -> 0.72 | D72: =$D$7*0.1 -> 0.48 | E72: è | F72: 0.1
A73: 6th | B73: =$B$7*0.08 -> 0.96 | C73: =$C$7*0.08 -> 0.576 | D73: =$D$7*0.08 -> 0.384 | E73: è | F73: 0.08
A74: 7th | B74: =$B$7*0.07 -> 0.84 | C74: =$C$7*0.07 -> 0.504 | D74: =$D$7*0.07 -> 0.336 | E74: è | F74: 0.07
A75: 8th | B75: =$B$7*0.06 -> 0.72 | C75: =$C$7*0.06 -> 0.432 | D75: =$D$7*0.06 -> 0.288 | E75: è | F75: 0.06
A76: Totals | B76: =SUM(B68:B75) -> 12 | C76: =SUM(C68:C75) -> 7.2 | D76: =SUM(D68:D75) -> 4.8 | E76: =SUM(B76:D76) -> 24 | F76: =SUM(F68:F75) -> 1

Sheet 4D Payout BBR (hidden)
A1: 4D Payout BBR
A2: Entry Fee | B2: # Entries | C2: % Payback | D2: $ From Entry | E2: Added $ | F2: Total Payout
A3: 40 | B3: 200 | C3: 0.8 | D3: =$A$3*$C$3*$B$3 -> 6400 | E3: 1100 | F3: =($A$3*$C$3)*$B$3+$E$3 -> 7500
A5: % in each D | B5: 0.35 | C5: 0.3 | D5: 0.2 | E5: 0.15 | F5: Total % Payout | G5: =SUM(B5:E5) -> 1
B6: 1D | C6: 2D | D6: 3D | E6: 4D
B7: =(($A$3*$B$3*$C$3*0.35)+($E$3/4)) -> 2515 | C7: =(($A$3*$B$3*$C$3*0.3)+($E$3/4)) -> 2195 | D7: =(($A$3*$B$3*$C$3*0.2)+($E$3/4)) -> 1555 | E7: =(($A$3*$B$3*$C$3*0.15)+($E$3/4)) -> 1235
A8: Totals | B8: =SUM(B7) -> 2515 | C8: =SUM(C7) -> 2195 | D8: 1555 | E8: 1235 | F8: =SUM(B8:E8) -> 7500
A10: For 1-16 riders 1 place
A11: Placings | B11: 1D | C11: 2D | D11: 3D | E11: 4D
A12: 1st | B12: =$B$7*$G$12 -> 2515 | C12: =$C$7*$G$12 -> 2195 | D12: =$D$7*$G$12 -> 1555 | E12: =$E$7*$G$12 -> 1235 | F12: è | G12: 1
A13: Totals | B13: =SUM(B12:B12) -> 2515 | C13: =SUM(C12:C12) -> 2195 | D13: =SUM(D12:D12) -> 1555 | E13: =SUM(E12:E12) -> 1235 | F13: =SUM(B13:E13) -> 7500 | G13: =SUM(G12) -> 1
A15: For 17-33 riders 2 places
A16: Placings | B16: 1D | C16: 2D | D16: 3D | E16: 4D
A17: 1st | B17: =$B$7*$G$17 -> 1509 | C17: =$C$7*$G$17 -> 1317 | D17: =$D$7*$G$17 -> 933 | E17: =$E$7*$G$17 -> 741 | F17: è | G17: 0.6
A18: 2nd | B18: =$B$7*$G$18 -> 1006 | C18: =$C$7*$G$18 -> 878 | D18: =$D$7*$G$18 -> 622 | E18: =$E$7*$G$18 -> 494 | F18: è | G18: 0.4
A19: Totals | B19: =SUM(B17:B18) -> 2515 | C19: =SUM(C17:C18) -> 2195 | D19: =SUM(D17:D18) -> 1555 | E19: =SUM(E17:E18) -> 1235 | F19: =SUM(B19:E19) -> 7500 | G19: =SUM(G17:G18) -> 1
A21: For 34-66 riders 3 places
A22: Placings | B22: 1D | C22: 2D | D22: 3D | E22: 4D
A23: 1st | B23: =$B$7*$G$23 -> 1257.5 | C23: =$C$7*$G$23 -> 1097.5 | D23: =$D$7*$G$23 -> 777.5 | E23: =$E$7*$G$23 -> 617.5 | F23: è | G23: 0.5
A24: 2nd | B24: =$B$7*$G$24 -> 754.5 | C24: =$C$7*$G$24 -> 658.5 | D24: =$D$7*$G$24 -> 466.5 | E24: =$E$7*$G$24 -> 370.5 | F24: è | G24: 0.3
A25: 3rd | B25: =$B$7*$G$25 -> 503 | C25: =$C$7*$G$25 -> 439 | D25: =$D$7*$G$25 -> 311 | E25: =$E$7*$G$25 -> 247 | F25: è | G25: 0.2
A26: Totals | B26: =SUM(B23:B25) -> 2515 | C26: =SUM(C23:C25) -> 2195 | D26: =SUM(D23:D25) -> 1555 | E26: =SUM(E23:E25) -> 1235 | F26: =SUM(B26:E26) -> 7500 | G26: =SUM(G23:G25) -> 1
A28: For 97-95 riders 4 places
A29: Placings | B29: 1D | C29: 2D | D29: 3D | E29: 4D
A30: 1st | B30: =$B$7*$G$30 -> 1006 | C30: =$C$7*$G$30 -> 878 | D30: =$D$7*$G$30 -> 622 | E30: =$E$7*$G$30 -> 494 | F30: è | G30: 0.4
A31: 2nd | B31: =$B$7*$G$31 -> 754.5 | C31: =$C$7*$G$31 -> 658.5 | D31: =$D$7*$G$31 -> 466.5 | E31: =$E$7*$G$31 -> 370.5 | F31: è | G31: 0.3
A32: 3rd | B32: =$B$7*$G$32 -> 503 | C32: =$C$7*$G$32 -> 439 | D32: =$D$7*$G$32 -> 311 | E32: =$E$7*$G$32 -> 247 | F32: è | G32: 0.2
A33: 4th | B33: =$B$7*$G$33 -> 251.5 | C33: =$C$7*$G$33 -> 219.5 | D33: =$D$7*$G$33 -> 155.5 | E33: =$E$7*$G$33 -> 123.5 | F33: è | G33: 0.1
A34: Totals | B34: =SUM(B30:B33) -> 2515 | C34: =SUM(C30:C33) -> 2195 | D34: =SUM(D30:D33) -> 1555 | E34: =SUM(E30:E33) -> 1235 | F34: =SUM(B34:E34) -> 7500 | G34: =SUM(G30:G33) -> 1
A36: For 96-133 riders 5 places
A37: Placings | B37: 1D | C37: 2D | D37: 3D | E37: 4D
A38: 1st | B38: =$B$7*$G$38 -> 829.95 | C38: =$C$7*$G$38 -> 724.35 | D38: =$D$7*G38 -> 513.15 | E38: =$E$7*$G$38 -> 407.55 | F38: è | G38: 0.33
A39: 2nd | B39: =$B$7*$G$39 -> 679.05 | C39: =$C$7*$G$39 -> 592.65 | D39: =$D$7*$G$39 -> 419.85 | E39: =$E$7*$G$39 -> 333.45 | F39: è | G39: 0.27
A40: 3rd | B40: =$B$7*$G$40 -> 503 | C40: =$C$7*$G$40 -> 439 | D40: =$D$7*$G$40 -> 311 | E40: =$E$7*$G$40 -> 247 | F40: è | G40: 0.2
A41: 4th | B41: =$B$7*$G$41 -> 326.95 | C41: =$C$7*$G$41 -> 285.35 | D41: =$D$7*$G$41 -> 202.15 | E41: =$E$7*$G$41 -> 160.55 | F41: è | G41: 0.13
A42: 5th | B42: =$B$7*$G$42 -> 176.05 | C42: =$C$7*$G$42 -> 153.65 | D42: =$D$7*$G$42 -> 108.85 | E42: =$E$7*$G$42 -> 86.45 | F42: è | G42: 0.07
A43: Totals | B43: =SUM(B38:B42) -> 2515 | C43: =SUM(C38:C42) -> 2195 | D43: =SUM(D38:D42) -> 1555 | E43: =SUM(E38:E42) -> 1235 | F43: =SUM(B43:E43) -> 7500 | G43: =SUM(G38:G42) -> 1
A45: For 134-166 riders 6 places
A46: Placings | B46: 1D | C46: 2D | D46: 3D | E46: 4D
A47: 1st | B47: =$B$7*$G$47 -> 729.35 | C47: =$C$7*$G$47 -> 636.55 | D47: =$D$7*$G$47 -> 450.95 | E47: =$E$7*$G$47 -> 358.15 | F47: è | G47: 0.29
A48: 2nd | B48: =$B$7*$G$48 -> 603.6 | C48: =$C$7*$G$48 -> 526.8 | D48: =$D$7*$G$48 -> 373.2 | E48: =$E$7*$G$48 -> 296.4 | F48: è | G48: 0.24
A49: 3rd | B49: =$B$7*$G$49 -> 477.85 | C49: =$C$7*$G$49 -> 417.05 | D49: =$D$7*$G$49 -> 295.45 | E49: =$E$7*$G$49 -> 234.65 | F49: è | G49: 0.19
A50: 4th | B50: =$B$7*$G$50 -> 352.1 | C50: =$C$7*$G$50 -> 307.3 | D50: =$D$7*$G$50 -> 217.7 | E50: =$E$7*$G$50 -> 172.9 | F50: è | G50: 0.14
A51: 5th | B51: =$B$7*$G$51 -> 226.35 | C51: =$C$7*$G$51 -> 197.55 | D51: =$D$7*$G$51 -> 139.95 | E51: =$E$7*$G$51 -> 111.15 | F51: è | G51: 0.09
A52: 6th | B52: =$B$7*$G$52 -> 125.75 | C52: =$C$7*$G$52 -> 109.75 | D52: =$D$7*$G$52 -> 77.75 | E52: =$E$7*$G$52 -> 61.75 | F52: è | G52: 0.05
A53: Totals | B53: =SUM(B47:B52) -> 2515 | C53: =SUM(C47:C52) -> 2195 | D53: =SUM(D47:D52) -> 1555 | E53: =SUM(E47:E52) -> 1235 | F53: =SUM(B53:E53) -> 7500 | G53: =SUM(G47:G52) -> 1
A55: For 167-222 riders 8 places
A56: Placings | B56: 1D | C56: 2D | D56: 3D | E56: 4D
A57: 1st | B57: =$B$7*$G$57 -> 603.6 | C57: =$C$7*$G$57 -> 526.8 | D57: =$D$7*$G$57 -> 373.2 | E57: =$E$7*$G$57 -> 296.4 | F57: è | G57: 0.24
A58: 2nd | B58: =$B$7*$G$58 -> 503 | C58: =$C$7*$G$58 -> 439 | D58: =$D$7*$G$58 -> 311 | E58: =$E$7*$G$58 -> 247 | F58: è | G58: 0.2
A59: 3rd | B59: =$B$7*$G$59 -> 427.55 | C59: =$C$7*$G$59 -> 373.15 | D59: =$D$7*$G$59 -> 264.35 | E59: =$E$7*$G$59 -> 209.95 | F59: è | G59: 0.17
A60: 4th | B60: =$B$7*$G$60 -> 326.95 | C60: =$C$7*$G$60 -> 285.35 | D60: =$D$7*$G$60 -> 202.15 | E60: =$E$7*$G$60 -> 160.55 | F60: è | G60: 0.13
A61: 5th | B61: =$B$7*$G$61 -> 251.5 | C61: =$C$7*$G$61 -> 219.5 | D61: =$D$7*$G$61 -> 155.5 | E61: =$E$7*$G$61 -> 123.5 | F61: è | G61: 0.1
A62: 6th | B62: =$B$7*$G$62 -> 176.05 | C62: =$C$7*$G$62 -> 153.65 | D62: =$D$7*$G$62 -> 108.85 | E62: =$E$7*$G$62 -> 86.45 | F62: è | G62: 0.07
A63: 7th | B63: =$B$7*$G$63 -> 125.75 | C63: =$C$7*$G$63 -> 109.75 | D63: =$D$7*$G$63 -> 77.75 | E63: =$E$7*$G$63 -> 61.75 | F63: è | G63: 0.05
A64: 8th | B64: =$B$7*$G$64 -> 100.6 | C64: =$C$7*$G$64 -> 87.8 | D64: =$D$7*$G$64 -> 62.2 | E64: =$E$7*$G$64 -> 49.4 | F64: è | G64: 0.04
A65: Totals | B65: =SUM(B57:B64) -> 2515 | C65: =SUM(C57:C64) -> 2195 | D65: =SUM(D57:D64) -> 1555 | E65: =SUM(E57:E64) -> 1235 | F65: =SUM(B65:E65) -> 7500 | G65: =SUM(G57:G64) -> 1
A67: For 223-333 riders 10 places
A68: Placings | B68: 1D | C68: 2D | D68: 3D | E68: 4D
A69: 1st | B69: =$B$7*$G$69 -> 528.15 | C69: =$C$7*$G$69 -> 460.95 | D69: =$D$7*$G$69 -> 326.55 | E69: =$E$7*$G$69 -> 259.35 | F69: è | G69: 0.21
A70: 2nd | B70: =$B$7*$G$70 -> 452.7 | C70: =$C$7*$G$70 -> 395.1 | D70: =$D$7*$G$70 -> 279.9 | E70: =$E$7*$G$70 -> 222.3 | F70: è | G70: 0.18
A71: 3rd | B71: =$B$7*$G$71 -> 377.25 | C71: =$C$7*$G$71 -> 329.25 | D71: =$D$7*$G$71 -> 233.25 | E71: =$E$7*$G$71 -> 185.25 | F71: è | G71: 0.15
A72: 4th | B72: =$B$7*$G$72 -> 301.8 | C72: =$C$7*$G$72 -> 263.4 | D72: =$D$7*$G$72 -> 186.6 | E72: =$E$7*$G$72 -> 148.2 | F72: è | G72: 0.12
A73: 5th | B73: =$B$7*$G$73 -> 226.35 | C73: =$C$7*$G$73 -> 197.55 | D73: =$D$7*$G$73 -> 139.95 | E73: =$E$7*$G$73 -> 111.15 | F73: è | G73: 0.09
A74: 6th | B74: =$B$7*$G$74 -> 176.05 | C74: =$C$7*$G$74 -> 153.65 | D74: =$D$7*$G$74 -> 108.85 | E74: =$E$7*$G$74 -> 86.45 | F74: è | G74: 0.07
A75: 7th | B75: =$B$7*$G$75 -> 150.9 | C75: =$C$7*$G$75 -> 131.7 | D75: =$D$7*$G$75 -> 93.3 | E75: =$E$7*$G$75 -> 74.1 | F75: è | G75: 0.06
A76: 8th | B76: =$B$7*$G$76 -> 125.75 | C76: =$C$7*$G$76 -> 109.75 | D76: =$D$7*$G$76 -> 77.75 | E76: =$E$7*$G$76 -> 61.75 | F76: è | G76: 0.05
A77: 9th | B77: =$B$7*$G$77 -> 100.6 | C77: =$C$7*$G$77 -> 87.8 | D77: =$D$7*$G$77 -> 62.2 | E77: =$E$7*$G$77 -> 49.4 | F77: è | G77: 0.04
A78: 10th | B78: =$B$7*$G$78 -> 75.45 | C78: =$C$7*$G$78 -> 65.85 | D78: =$D$7*$G$78 -> 46.65 | E78: =$E$7*$G$78 -> 37.05 | F78: è | G78: 0.03
A79: Totals | B79: =SUM(B69:B78) -> 2515 | C79: =SUM(C69:C78) -> 2195 | D79: =SUM(D69:D78) -> 1555 | E79: =SUM(E69:E78) -> 1235 | F79: =B79+C79+D79+E79 -> 7500 | G79: =SUM(G69:G78) -> 1
A81: For 334-500 riders 12 places
A82: Placings | B82: 1D | C82: 2D | D82: 3D | E82: 4D
A83: 1st | B83: =$B$7*$G$83 -> 477.85 | C83: =$C$7*$G$83 -> 417.05 | D83: =$D$7*$G$83 -> 295.45 | E83: =$E$7*$G$83 -> 234.65 | F83: è | G83: 0.19
A84: 2nd | B84: =$B$7*$G$84 -> 377.25 | C84: =$C$7*$G$84 -> 329.25 | D84: =$D$7*$G$84 -> 233.25 | E84: =$E$7*$G$84 -> 185.25 | F84: è | G84: 0.15
A85: 3rd | B85: =$B$7*$G$85 -> 301.8 | C85: =$C$7*$G$85 -> 263.4 | D85: =$D$7*$G$85 -> 186.6 | E85: =$E$7*$G$85 -> 148.2 | F85: è | G85: 0.12
A86: 4th | B86: =$B$7*$G$86 -> 251.5 | C86: =$C$7*$G$86 -> 219.5 | D86: =$D$7*$G$86 -> 155.5 | E86: =$E$7*$G$86 -> 123.5 | F86: è | G86: 0.1
A87: 5th | B87: =$B$7*$G$87 -> 226.35 | C87: =$C$7*$G$87 -> 197.55 | D87: =$D$7*$G$87 -> 139.95 | E87: =$E$7*$G$87 -> 111.15 | F87: è | G87: 0.09
A88: 6th | B88: =$B$7*$G$88 -> 201.2 | C88: =$C$7*$G$88 -> 175.6 | D88: =$D$7*$G$88 -> 124.4 | E88: =$E$7*$G$88 -> 98.8 | F88: è | G88: 0.08
A89: 7th | B89: =$B$7*$G$89 -> 176.05 | C89: =$C$7*$G$89 -> 153.65 | D89: =$D$7*$G$89 -> 108.85 | E89: =$E$7*$G$89 -> 86.45 | F89: è | G89: 0.07
A90: 8th | B90: =$B$7*$G$90 -> 150.9 | C90: =$C$7*$G$90 -> 131.7 | D90: =$D$7*$G$90 -> 93.3 | E90: =$E$7*$G$90 -> 74.1 | F90: è | G90: 0.06
A91: 9th | B91: =$B$7*$G$91 -> 125.75 | C91: =$C$7*$G$91 -> 109.75 | D91: =$D$7*$G$91 -> 77.75 | E91: =$E$7*$G$91 -> 61.75 | F91: è | G91: 0.05
A92: 10th | B92: =$B$7*$G$92 -> 100.6 | C92: =$C$7*$G$92 -> 87.8 | D92: =$D$7*$G$92 -> 62.2 | E92: =$E$7*$G$92 -> 49.4 | F92: è | G92: 0.04
A93: 11th | B93: =$B$7*$G$93 -> 75.45 | C93: =$C$7*$G$93 -> 65.85 | D93: =$D$7*$G$93 -> 46.65 | E93: =$E$7*$G$93 -> 37.05 | F93: è | G93: 0.03
A94: 12th | B94: =$B$7*$G$94 -> 50.3 | C94: =$C$7*$G$94 -> 43.9 | D94: =$D$7*$G$94 -> 31.1 | E94: =$E$7*$G$94 -> 24.7 | F94: è | G94: 0.02
A95: Totals | B95: =SUM(B83:B94) -> 2515 | C95: =SUM(C83:C94) -> 2195 | D95: 1555 | E95: 1235 | F95: =B95+C95+D95+E95 -> 7500 | G95: =SUM(G83:G94) -> 1
A97: For 501-750 riders 15 places
A98: Placings | B98: 1D | C98: 2D | D98: 3D | E98: 4D
A99: 1st | B99: =$B$7*$G$99 -> 452.7 | C99: =$C$7*$G$99 -> 395.1 | D99: =$D$7*$G$99 -> 279.9 | E99: =$E$7*$G$99 -> 222.3 | F99: è | G99: 0.18
A100: 2nd | B100: =$B$7*$G$100 -> 377.25 | C100: =$C$7*$G$100 -> 329.25 | D100: =$D$7*$G$100 -> 233.25 | E100: =$E$7*$G$100 -> 185.25 | F100: è | G100: 0.15
A101: 3rd | B101: =$B$7*$G$101 -> 301.8 | C101: =$C$7*$G$101 -> 263.4 | D101: =$D$7*$G$101 -> 186.6 | E101: =$E$7*$G$101 -> 148.2 | F101: è | G101: 0.12
A102: 4th | B102: =$B$7*$G$102 -> 251.5 | C102: =$C$7*$G$102 -> 219.5 | D102: =$D$7*$G$102 -> 155.5 | E102: =$E$7*$G$102 -> 123.5 | F102: è | G102: 0.1
A103: 5th | B103: =$B$7*$G$103 -> 213.775 | C103: =$C$7*$G$103 -> 186.575 | D103: =$D$7*$G$103 -> 132.175 | E103: =$E$7*$G$103 -> 104.975 | F103: è | G103: 0.085
A104: 6th | B104: =$B$7*$G$104 -> 176.05 | C104: =$C$7*$G$104 -> 153.65 | D104: =$D$7*$G$104 -> 108.85 | E104: =$E$7*$G$104 -> 86.45 | F104: è | G104: 0.07
A105: 7th | B105: =$B$7*$G$105 -> 150.9 | C105: =$C$7*$G$105 -> 131.7 | D105: =$D$7*$G$105 -> 93.3 | E105: =$E$7*$G$105 -> 74.1 | F105: è | G105: 0.06
A106: 8th | B106: =$B$7*$G$106 -> 125.75 | C106: =$C$7*$G$106 -> 109.75 | D106: =$D$7*$G$106 -> 77.75 | E106: =$E$7*$G$106 -> 61.75 | F106: è | G106: 0.05
A107: 9th | B107: =$B$7*$G$107 -> 106.8875 | C107: =$C$7*$G$107 -> 93.2875 | D107: =$D$7*$G$107 -> 66.0875 | E107: =$E$7*$G$107 -> 52.4875 | F107: è | G107: 0.0425
A108: 10th | B108: =$B$7*$G$108 -> 88.025 | C108: =$C$7*$G$108 -> 76.825 | D108: =$D$7*$G$108 -> 54.425 | E108: =$E$7*$G$108 -> 43.225 | F108: è | G108: 0.035
A109: 11th | B109: =$B$7*$G$109 -> 75.45 | C109: =$C$7*$G$109 -> 65.85 | D109: =$D$7*$G$109 -> 46.65 | E109: =$E$7*$G$109 -> 37.05 | F109: è | G109: 0.03
A110: 12th | B110: =$B$7*$G$110 -> 62.875 | C110: =$C$7*$G$110 -> 54.875 | D110: =$D$7*$G$110 -> 38.875 | E110: =$E$7*$G$110 -> 30.875 | F110: è | G110: 0.025
A111: 13th | B111: =$B$7*$G$111 -> 50.3 | C111: =$C$7*$G$111 -> 43.9 | D111: =$D$7*$G$111 -> 31.1 | E111: =$E$7*$G$111 -> 24.7 | F111: è | G111: 0.02
A112: 14th | B112: =$B$7*$G$112 -> 44.0125 | C112: =$C$7*$G$112 -> 38.4125 | D112: =$D$7*$G$112 -> 27.2125 | E112: =$E$7*$G$112 -> 21.6125 | F112: è | G112: 0.0175
A113: 15th | B113: =$B$7*$G$113 -> 37.725 | C113: =$C$7*$G$113 -> 32.925 | D113: =$D$7*$G$113 -> 23.325 | E113: =$E$7*$G$113 -> 18.525 | F113: è | G113: 0.015
A114: Totals | B114: =SUM(B99:B113) -> 2515 | C114: =SUM(C99:C113) -> 2195 | D114: 1555 | E114: 1235 | F114: =B114+C114+D114+E114 -> 7500 | G114: =SUM(G99:G113) -> 1
A116: For 751-1200 riders 20 places
A117: Placings | B117: 1D | C117: 2D | D117: 3D | E117: 4D
A118: 1st | B118: =$B$7*$G$118 -> 352.1 | C118: =$C$7*$G$118 -> 307.3 | D118: =$D$7*$G$118 -> 217.7 | E118: =$E$7*$G$118 -> 172.9 | F118: è | G118: 0.14
A119: 2nd | B119: =$B$7*$G$119 -> 276.65 | C119: =$C$7*$G$119 -> 241.45 | D119: =$D$7*$G$119 -> 171.05 | E119: =$E$7*$G$119 -> 135.85 | F119: è | G119: 0.11
A120: 3rd | B120: =$B$7*$G$120 -> 226.35 | C120: =$C$7*$G$120 -> 197.55 | D120: =$D$7*$G$120 -> 139.95 | E120: =$E$7*$G$120 -> 111.15 | F120: è | G120: 0.09
A121: 4th | B121: =$B$7*$G$121 -> 193.655 | C121: =$C$7*$G$121 -> 169.015 | D121: =$D$7*$G$121 -> 119.735 | E121: =$E$7*$G$121 -> 95.095 | F121: è | G121: 0.077
A122: 5th | B122: =$B$7*$G$122 -> 176.05 | C122: =$C$7*$G$122 -> 153.65 | D122: =$D$7*$G$122 -> 108.85 | E122: =$E$7*$G$122 -> 86.45 | F122: è | G122: 0.07
A123: 6th | B123: =$B$7*$G$123 -> 163.475 | C123: =$C$7*$G$123 -> 142.675 | D123: =$D$7*$G$123 -> 101.075 | E123: =$E$7*$G$123 -> 80.275 | F123: è | G123: 0.065
A124: 7th | B124: =$B$7*$G$124 -> 150.9 | C124: =$C$7*$G$124 -> 131.7 | D124: =$D$7*$G$124 -> 93.3 | E124: =$E$7*$G$124 -> 74.1 | F124: è | G124: 0.06
A125: 8th | B125: =$B$7*$G$125 -> 138.325 | C125: =$C$7*$G$125 -> 120.725 | D125: =$D$7*$G$125 -> 85.525 | E125: =$E$7*$G$125 -> 67.925 | F125: è | G125: 0.055
A126: 9th | B126: =$B$7*$G$126 -> 125.75 | C126: =$C$7*$G$126 -> 109.75 | D126: =$D$7*$G$126 -> 77.75 | E126: =$E$7*$G$126 -> 61.75 | F126: è | G126: 0.05
A127: 10th | B127: =$B$7*$G$127 -> 113.175 | C127: =$C$7*$G$127 -> 98.775 | D127: =$D$7*$G$127 -> 69.975 | E127: =$E$7*$G$127 -> 55.575 | F127: è | G127: 0.045
A128: 11th | B128: =$B$7*$G$128 -> 100.6 | C128: =$C$7*$G$128 -> 87.8 | D128: =$D$7*$G$128 -> 62.2 | E128: =$E$7*$G$128 -> 49.4 | F128: è | G128: 0.04
A129: 12th | B129: =$B$7*$G$129 -> 93.055 | C129: =$C$7*$G$129 -> 81.215 | D129: =$D$7*$G$129 -> 57.535 | E129: =$E$7*$G$129 -> 45.695 | F129: è | G129: 0.037
A130: 13th | B130: =$B$7*$G$130 -> 82.995 | C130: =$C$7*$G$130 -> 72.435 | D130: =$D$7*$G$130 -> 51.315 | E130: =$E$7*$G$130 -> 40.755 | F130: è | G130: 0.033
A131: 14th | B131: =$B$7*$G$131 -> 72.935 | C131: =$C$7*$G$131 -> 63.655 | D131: =$D$7*$G$131 -> 45.095 | E131: =$E$7*$G$131 -> 35.815 | F131: è | G131: 0.029
A132: 15th | B132: =$B$7*$G$132 -> 62.875 | C132: =$C$7*$G$132 -> 54.875 | D132: =$D$7*$G$132 -> 38.875 | E132: =$E$7*$G$132 -> 30.875 | F132: è | G132: 0.025
A133: 16th | B133: =$B$7*$G$133 -> 52.815 | C133: =$C$7*$G$133 -> 46.095 | D133: =$D$7*$G$133 -> 32.655 | E133: =$E$7*$G$133 -> 25.935 | F133: è | G133: 0.021
A134: 17th | B134: =$B$7*$G$134 -> 42.755 | C134: =$C$7*$G$134 -> 37.315 | D134: =$D$7*$G$134 -> 26.435 | E134: =$E$7*$G$134 -> 20.995 | F134: è | G134: 0.017
A135: 18th | B135: =$B$7*$G$135 -> 35.21 | C135: =$C$7*$G$135 -> 30.73 | D135: =$D$7*$G$135 -> 21.77 | E135: =$E$7*$G$135 -> 17.29 | F135: è | G135: 0.014
A136: 19th | B136: =$B$7*$G$136 -> 30.18 | C136: =$C$7*$G$136 -> 26.34 | D136: =$D$7*$G$136 -> 18.66 | E136: =$E$7*$G$136 -> 14.82 | F136: è | G136: 0.012
A137: 20th | B137: =$B$7*$G$137 -> 25.15 | C137: =$C$7*$G$137 -> 21.95 | D137: =$D$7*$G$137 -> 15.55 | E137: =$E$7*$G$137 -> 12.35 | F137: è | G137: 0.01
A138: Totals | B138: =SUM(B118:B137) -> 2515 | C138: =SUM(C118:C137) -> 2195 | D138: 1555 | E138: 1235 | F138: =B138+C138+D138+E138 -> 7500 | G138: =SUM(G118:G137) -> 1
A140: For 1201 or More riders 30 places
A141: Placings | B141: 1D | C141: 2D | D141: 3D | E141: 4D
A142: 1st | B142: =$B$7*$G$142 -> 301.8 | C142: =$C$7*$G$142 -> 263.4 | D142: =$D$7*$G$142 -> 186.6 | E142: =$E$7*$G$142 -> 148.2 | F142: è | G142: 0.12
A143: 2nd | B143: =$B$7*$G$143 -> 238.925 | C143: =$C$7*$G$143 -> 208.525 | D143: =$D$7*$G$143 -> 147.725 | E143: =$E$7*$G$143 -> 117.325 | F143: è | G143: 0.095
A144: 3rd | B144: =$B$7*$G$144 -> 183.595 | C144: =$C$7*$G$144 -> 160.235 | D144: =$D$7*$G$144 -> 113.515 | E144: =$E$7*$G$144 -> 90.155 | F144: è | G144: 0.073
A145: 4th | B145: =$B$7*$G$145 -> 155.93 | C145: =$C$7*$G$145 -> 136.09 | D145: =$D$7*$G$145 -> 96.41 | E145: =$E$7*$G$145 -> 76.57 | F145: è | G145: 0.062
A146: 5th | B146: =$B$7*$G$146 -> 125.75 | C146: =$C$7*$G$146 -> 109.75 | D146: =$D$7*$G$146 -> 77.75 | E146: =$E$7*$G$146 -> 61.75 | F146: è | G146: 0.05
A147: 6th | B147: =$B$7*$G$147 -> 113.175 | C147: =$C$7*$G$147 -> 98.775 | D147: =$D$7*$G$147 -> 69.975 | E147: =$E$7*$G$147 -> 55.575 | F147: è | G147: 0.045
A148: 7th | B148: =$B$7*$G$148 -> 108.145 | C148: =$C$7*$G$148 -> 94.385 | D148: =$D$7*$G$148 -> 66.865 | E148: =$E$7*$G$148 -> 53.105 | F148: è | G148: 0.043
A149: 8th | B149: =$B$7*$G$149 -> 100.6 | C149: =$C$7*$G$149 -> 87.8 | D149: =$D$7*$G$149 -> 62.2 | E149: =$E$7*$G$149 -> 49.4 | F149: è | G149: 0.04
A150: 9th | B150: =$B$7*$G$150 -> 93.055 | C150: =$C$7*$G$150 -> 81.215 | D150: =$D$7*$G$150 -> 57.535 | E150: =$E$7*$G$150 -> 45.695 | F150: è | G150: 0.037
A151: 10th | B151: =$B$7*$G$151 -> 88.025 | C151: =$C$7*$G$151 -> 76.825 | D151: =$D$7*$G$151 -> 54.425 | E151: =$E$7*$G$151 -> 43.225 | F151: è | G151: 0.035
A152: 11th | B152: =$B$7*$G$152 -> 82.995 | C152: =$C$7*$G$152 -> 72.435 | D152: =$D$7*$G$152 -> 51.315 | E152: =$E$7*$G$152 -> 40.755 | F152: è | G152: 0.033
A153: 12th | B153: =$B$7*$G$153 -> 77.965 | C153: =$C$7*$G$153 -> 68.045 | D153: =$D$7*$G$153 -> 48.205 | E153: =$E$7*$G$153 -> 38.285 | F153: è | G153: 0.031
A154: 13th | B154: =$B$7*$G$154 -> 72.935 | C154: =$C$7*$G$154 -> 63.655 | D154: =$D$7*$G$154 -> 45.095 | E154: =$E$7*$G$154 -> 35.815 | F154: è | G154: 0.029
A155: 14th | B155: =$B$7*$G$155 -> 67.905 | C155: =$C$7*$G$155 -> 59.265 | D155: =$D$7*$G$155 -> 41.985 | E155: =$E$7*$G$155 -> 33.345 | F155: è | G155: 0.027
A156: 15th | B156: =$B$7*$G$156 -> 62.875 | C156: =$C$7*$G$156 -> 54.875 | D156: =$D$7*$G$156 -> 38.875 | E156: =$E$7*$G$156 -> 30.875 | F156: è | G156: 0.025
A157: 16th | B157: =$B$7*$G$157 -> 60.36 | C157: =$C$7*$G$157 -> 52.68 | D157: =$D$7*$G$157 -> 37.32 | E157: =$E$7*$G$157 -> 29.64 | F157: è | G157: 0.024
A158: 17th | B158: =$B$7*$G$158 -> 57.845 | C158: =$C$7*$G$158 -> 50.485 | D158: =$D$7*$G$158 -> 35.765 | E158: =$E$7*$G$158 -> 28.405 | F158: è | G158: 0.023
A159: 18th | B159: =$B$7*$G$159 -> 55.33 | C159: =$C$7*$G$159 -> 48.29 | D159: =$D$7*$G$159 -> 34.21 | E159: =$E$7*$G$159 -> 27.17 | F159: è | G159: 0.022
A160: 19th | B160: =$B$7*$G$160 -> 52.815 | C160: =$C$7*$G$160 -> 46.095 | D160: =$D$7*$G$160 -> 32.655 | E160: =$E$7*$G$160 -> 25.935 | F160: è | G160: 0.021
A161: 20th | B161: =$B$7*$G$161 -> 50.3 | C161: =$C$7*$G$161 -> 43.9 | D161: =$D$7*$G$161 -> 31.1 | E161: =$E$7*$G$161 -> 24.7 | F161: è | G161: 0.02
A162: 21st | B162: =$B$7*$G$162 -> 47.785 | C162: =$C$7*$G$162 -> 41.705 | D162: =$D$7*$G$162 -> 29.545 | E162: =$E$7*$G$162 -> 23.465 | F162: è | G162: 0.019
A163: 22nd | B163: =$B$7*$G$163 -> 45.27 | C163: =$C$7*$G$163 -> 39.51 | D163: =$D$7*$G$163 -> 27.99 | E163: =$E$7*$G$163 -> 22.23 | F163: è | G163: 0.018
A164: 23rd | B164: =$B$7*$G$164 -> 42.755 | C164: =$C$7*$G$164 -> 37.315 | D164: =$D$7*$G$164 -> 26.435 | E164: =$E$7*$G$164 -> 20.995 | F164: è | G164: 0.017
A165: 24th | B165: =$B$7*$G$165 -> 40.24 | C165: =$C$7*$G$165 -> 35.12 | D165: =$D$7*$G$165 -> 24.88 | E165: =$E$7*$G$165 -> 19.76 | F165: è | G165: 0.016
A166: 25th | B166: =$B$7*$G$166 -> 37.725 | C166: =$C$7*$G$166 -> 32.925 | D166: =$D$7*$G$166 -> 23.325 | E166: =$E$7*$G$166 -> 18.525 | F166: è | G166: 0.015
A167: 26th | B167: =$B$7*$G$167 -> 35.21 | C167: =$C$7*$G$167 -> 30.73 | D167: =$D$7*$G$167 -> 21.77 | E167: =$E$7*$G$167 -> 17.29 | F167: è | G167: 0.014
A168: 27th | B168: =$B$7*$G$168 -> 32.695 | C168: =$C$7*$G$168 -> 28.535 | D168: =$D$7*$G$168 -> 20.215 | E168: =$E$7*$G$168 -> 16.055 | F168: è | G168: 0.013
A169: 28th | B169: =$B$7*$G$169 -> 30.18 | C169: =$C$7*$G$169 -> 26.34 | D169: =$D$7*$G$169 -> 18.66 | E169: =$E$7*$G$169 -> 14.82 | F169: è | G169: 0.012
A170: 29th | B170: =$B$7*$G$170 -> 27.665 | C170: =$C$7*$G$170 -> 24.145 | D170: =$D$7*$G$170 -> 17.105 | E170: =$E$7*$G$170 -> 13.585 | F170: è | G170: 0.011
A171: 30th | B171: =$B$7*$G$171 -> 25.15 | C171: =$C$7*$G$171 -> 21.95 | D171: =$D$7*$G$171 -> 15.55 | E171: =$E$7*$G$171 -> 12.35 | F171: è | G171: 0.01
A172: Totals | B172: =SUM(B142:B171) -> 2515 | C172: =SUM(C142:C171) -> 2195 | D172: =SUM(D142:D171) -> 1555 | E172: =SUM(E142:E171) -> 1235 | F172: =B172+C172+D172+E172 -> 7500 | G172: =SUM(G142:G171) -> 1

Sheet 5D Payout BBR
A1: 5D Payout BBR
A2: Entry Fee | B2: # Entries | C2: % Payback | D2: $ From Entry | E2: Added $ | F2: Total Payout | G2: Total $ Held
A3: 50 | B3: 317 | C3: 0.8 | D3: =$A$3*$C$3*$B$3 -> 12680 | E3: 2000 | F3: =($A$3*$C$3)*$B$3+$E$3 -> 14680 | G3: =$A$3*(100%-$C$3)*$B$3 -> 3170
A5: % in each D | B5: 0.3 | C5: 0.25 | D5: 0.2 | E5: 0.15 | F5: 0.1 | G5: Total % Payout | H5: =SUM(B5:F5) -> 1
B6: 1D | C6: 2D | D6: 3D | E6: 4D | F6: 5D
B7: =(($A$3*$B$3*$C$3*$B$5)+($E$3*$B$5)) -> 4404 | C7: =(($A$3*$B$3*$C$3*$C$5)+($E$3*$C$5)) -> 3670 | D7: =(($A$3*$B$3*$C$3*$D$5)+($E$3*$D$5)) -> 2936 | E7: =(($A$3*$B$3*$C$3*$E$5)+($E$3*$E$5)) -> 2202 | F7: =(($A$3*$B$3*$C$3*$F$5)+($E$3*$F$5)) -> 1468
A8: Totals | B8: =SUM(B7) -> 4404 | C8: =SUM(C7) -> 3670 | D8: 2936 | E8: 2202 | F8: 1468 | G8: =SUM(B8:F8) -> 14680
A10: For 1-25 riders 1 place
A11: Placings | B11: 1D | C11: 2D | D11: 3D | E11: 4D | F11: 5D
A12: 1st | B12: =$B$7*$H$12 -> 4404 | C12: =$C$7*$H$12 -> 3670 | D12: =$D$7*$H$12 -> 2936 | E12: =$E$7*$H$12 -> 2202 | F12: =$F$7*$H$12 -> 1468 | G12: è | H12: 1
A13: Totals | B13: =SUM(B12:B12) -> 4404 | C13: =SUM(C12:C12) -> 3670 | D13: =SUM(D12:D12) -> 2936 | E13: =SUM(E12:E12) -> 2202 | F13: =SUM(F12) -> 1468 | G13: =SUM(B13:F13) -> 14680 | H13: =SUM(H12) -> 1
A15: For 26-50 riders 2 places
A16: Placings | B16: 1D | C16: 2D | D16: 3D | E16: 4D | F16: 5D
A17: 1st | B17: =$B$7*$H$17 -> 2642.4 | C17: =$C$7*$H$17 -> 2202 | D17: =$D$7*$H$17 -> 1761.6 | E17: =$E$7*$H$17 -> 1321.2 | F17: =$F$7*$H$17 -> 880.8 | G17: è | H17: 0.6
A18: 2nd | B18: =$B$7*$H$18 -> 1761.6 | C18: =$C$7*$H$18 -> 1468 | D18: =$D$7*$H$18 -> 1174.4 | E18: =$E$7*$H$18 -> 880.8 | F18: =$F$7*$H$18 -> 587.2 | G18: è | H18: 0.4
A19: Totals | B19: =SUM(B17:B18) -> 4404 | C19: =SUM(C17:C18) -> 3670 | D19: =SUM(D17:D18) -> 2936 | E19: =SUM(E17:E18) -> 2202 | F19: =SUM(F17:F18) -> 1468 | G19: =SUM(B19:F19) -> 14680 | H19: =SUM(H17:H18) -> 1
A21: For 51-100 riders 3 places
A22: Placings | B22: 1D | C22: 2D | D22: 3D | E22: 4D | F22: 5D
A23: 1st | B23: =$B$7*$H$23 -> 2202 | C23: =$C$7*$H$23 -> 1835 | D23: =$D$7*$H$23 -> 1468 | E23: =$E$7*$H$23 -> 1101 | F23: =$F$7*$H$23 -> 734 | G23: è | H23: 0.5
A24: 2nd | B24: =$B$7*$H$24 -> 1321.2 | C24: =$C$7*$H$24 -> 1101 | D24: =$D$7*$H$24 -> 880.8 | E24: =$E$7*$H$24 -> 660.6 | F24: =$F$7*$H$24 -> 440.4 | G24: è | H24: 0.3
A25: 3rd | B25: =$B$7*$H$25 -> 880.8 | C25: =$C$7*$H$25 -> 734 | D25: =$D$7*$H$25 -> 587.2 | E25: =$E$7*$H$25 -> 440.4 | F25: =$F$7*$H$25 -> 293.6 | G25: è | H25: 0.2
A26: Totals | B26: =SUM(B23:B25) -> 4404 | C26: =SUM(C23:C25) -> 3670 | D26: =SUM(D23:D25) -> 2936 | E26: =SUM(E23:E25) -> 2202 | F26: =SUM(F23:F25) -> 1468 | G26: =SUM(B26:F26) -> 14680 | H26: =SUM(H23:H25) -> 1
A28: For 101-143 riders 4 places
A29: Placings | B29: 1D | C29: 2D | D29: 3D | E29: 4D | F29: 5D
A30: 1st | B30: =$B$7*$H$30 -> 1761.6 | C30: =$C$7*$H$30 -> 1468 | D30: =$D$7*$H$30 -> 1174.4 | E30: =$E$7*$H$30 -> 880.8 | F30: =$F$7*$H$30 -> 587.2 | G30: è | H30: 0.4
A31: 2nd | B31: =$B$7*$H$31 -> 1321.2 | C31: =$C$7*$H$31 -> 1101 | D31: =$D$7*$H$31 -> 880.8 | E31: =$E$7*$H$31 -> 660.6 | F31: =$F$7*$H$31 -> 440.4 | G31: è | H31: 0.3
A32: 3rd | B32: =$B$7*$H$32 -> 880.8 | C32: =$C$7*$H$32 -> 734 | D32: =$D$7*$H$32 -> 587.2 | E32: =$E$7*$H$32 -> 440.4 | F32: =$F$7*$H$32 -> 293.6 | G32: è | H32: 0.2
A33: 4th | B33: =$B$7*$H$33 -> 440.4 | C33: =$C$7*$H$33 -> 367 | D33: =$D$7*$H$33 -> 293.6 | E33: =$E$7*$H$33 -> 220.2 | F33: =$F$7*$H$33 -> 146.8 | G33: è | H33: 0.1
A34: Totals | B34: =SUM(B30:B33) -> 4404 | C34: =SUM(C30:C33) -> 3670 | D34: =SUM(D30:D33) -> 2936 | E34: =SUM(E30:E33) -> 2202 | F34: =SUM(F30:F33) -> 1468 | G34: =SUM(B34:F34) -> 14680 | H34: =SUM(H30:H33) -> 1
A36: For 144-200 riders 5 places
A37: Placings | B37: 1D | C37: 2D | D37: 3D | E37: 4D | F37: 5D
A38: 1st | B38: =$B$7*$H$38 -> 1453.32 | C38: =$C$7*$H$38 -> 1211.1 | D38: =$D$7*$H$38 -> 968.88 | E38: =$E$7*$H$38 -> 726.66 | F38: =$F$7*$H$38 -> 484.44 | G38: è | H38: 0.33
A39: 2nd | B39: =$B$7*$H$39 -> 1189.08 | C39: =$C$7*$H$39 -> 990.9 | D39: =$D$7*$H$39 -> 792.72 | E39: =$E$7*$H$39 -> 594.54 | F39: =$F$7*$H$39 -> 396.36 | G39: è | H39: 0.27
A40: 3rd | B40: =$B$7*$H$40 -> 880.8 | C40: =$C$7*$H$40 -> 734 | D40: =$D$7*$H$40 -> 587.2 | E40: =$E$7*$H$40 -> 440.4 | F40: =$F$7*$H$40 -> 293.6 | G40: è | H40: 0.2
A41: 4th | B41: =$B$7*$H$41 -> 572.52 | C41: =$C$7*$H$41 -> 477.1 | D41: =$D$7*$H$41 -> 381.68 | E41: =$E$7*$H$41 -> 286.26 | F41: =$F$7*$H$41 -> 190.84 | G41: è | H41: 0.13
A42: 5th | B42: =$B$7*$H$42 -> 308.28 | C42: =$C$7*$H$42 -> 256.9 | D42: =$D$7*$H$42 -> 205.52 | E42: =$E$7*$H$42 -> 154.14 | F42: =$F$7*$H$42 -> 102.76 | G42: è | H42: 0.07
A43: Totals | B43: =SUM(B38:B42) -> 4404 | C43: =SUM(C38:C42) -> 3670 | D43: =SUM(D38:D42) -> 2936 | E43: =SUM(E38:E42) -> 2202 | F43: =SUM(F38:F42) -> 1468 | G43: =SUM(B43:F43) -> 14680 | H43: =SUM(H38:H42) -> 1
A45: For 201-250 riders 6 places
A46: Placings | B46: 1D | C46: 2D | D46: 3D | E46: 4D | F46: 5D
A47: 1st | B47: =$B$7*$H$47 -> 1277.16 | C47: =$C$7*$H$47 -> 1064.3 | D47: =$D$7*$H$47 -> 851.44 | E47: =$E$7*$H$47 -> 638.58 | F47: =$F$7*$H$47 -> 425.72 | G47: è | H47: 0.29
A48: 2nd | B48: =$B$7*$H$48 -> 1056.96 | C48: =$C$7*$H$48 -> 880.8 | D48: =$D$7*$H$48 -> 704.64 | E48: =$E$7*$H$48 -> 528.48 | F48: =$F$7*$H$48 -> 352.32 | G48: è | H48: 0.24
A49: 3rd | B49: =$B$7*$H$49 -> 836.76 | C49: =$C$7*$H$49 -> 697.3 | D49: =$D$7*$H$49 -> 557.84 | E49: =$E$7*$H$49 -> 418.38 | F49: =$F$7*$H$49 -> 278.92 | G49: è | H49: 0.19
A50: 4th | B50: =$B$7*$H$50 -> 616.56 | C50: =$C$7*$H$50 -> 513.8 | D50: =$D$7*$H$50 -> 411.04 | E50: =$E$7*$H$50 -> 308.28 | F50: =$F$7*$H$50 -> 205.52 | G50: è | H50: 0.14
A51: 5th | B51: =$B$7*$H$51 -> 396.36 | C51: =$C$7*$H$51 -> 330.3 | D51: =$D$7*$H$51 -> 264.24 | E51: =$E$7*$H$51 -> 198.18 | F51: =$F$7*$H$51 -> 132.12 | G51: è | H51: 0.09
A52: 6th | B52: =$B$7*$H$52 -> 220.2 | C52: =$C$7*$H$52 -> 183.5 | D52: =$D$7*$H$52 -> 146.8 | E52: =$E$7*$H$52 -> 110.1 | F52: =$F$7*$H$52 -> 73.4 | G52: è | H52: 0.05
A53: Totals | B53: =SUM(B47:B52) -> 4404 | C53: =SUM(C47:C52) -> 3670 | D53: =SUM(D47:D52) -> 2936 | E53: =SUM(E47:E52) -> 2202 | F53: =SUM(F47:F52) -> 1468 | G53: =SUM(B53:F53) -> 14680 | H53: =SUM(H47:H52) -> 1
A55: For 251-333 riders 8 places
A56: Placings | B56: 1D | C56: 2D | D56: 3D | E56: 4D | F56: 5D
A57: 1st | B57: =$B$7*$H$57 -> 1056.96 | C57: =$C$7*$H$57 -> 880.8 | D57: =$D$7*$H$57 -> 704.64 | E57: =$E$7*$H$57 -> 528.48 | F57: =$F$7*$H$57 -> 352.32 | G57: è | H57: 0.24
A58: 2nd | B58: =$B$7*$H$58 -> 880.8 | C58: =$C$7*$H$58 -> 734 | D58: =$D$7*$H$58 -> 587.2 | E58: =$E$7*$H$58 -> 440.4 | F58: =$F$7*$H$58 -> 293.6 | G58: è | H58: 0.2
A59: 3rd | B59: =$B$7*$H$59 -> 748.68 | C59: =$C$7*$H$59 -> 623.9 | D59: =$D$7*$H$59 -> 499.12 | E59: =$E$7*$H$59 -> 374.34 | F59: =$F$7*$H$59 -> 249.56 | G59: è | H59: 0.17
A60: 4th | B60: =$B$7*$H$60 -> 572.52 | C60: =$C$7*$H$60 -> 477.1 | D60: =$D$7*$H$60 -> 381.68 | E60: =$E$7*$H$60 -> 286.26 | F60: =$F$7*$H$60 -> 190.84 | G60: è | H60: 0.13
A61: 5th | B61: =$B$7*$H$61 -> 440.4 | C61: =$C$7*$H$61 -> 367 | D61: =$D$7*$H$61 -> 293.6 | E61: =$E$7*$H$61 -> 220.2 | F61: =$F$7*$H$61 -> 146.8 | G61: è | H61: 0.1
A62: 6th | B62: =$B$7*$H$62 -> 308.28 | C62: =$C$7*$H$62 -> 256.9 | D62: =$D$7*$H$62 -> 205.52 | E62: =$E$7*$H$62 -> 154.14 | F62: =$F$7*$H$62 -> 102.76 | G62: è | H62: 0.07
A63: 7th | B63: =$B$7*$H$63 -> 220.2 | C63: =$C$7*$H$63 -> 183.5 | D63: =$D$7*$H$63 -> 146.8 | E63: =$E$7*$H$63 -> 110.1 | F63: =$F$7*$H$63 -> 73.4 | G63: è | H63: 0.05
A64: 8th | B64: =$B$7*$H$64 -> 176.16 | C64: =$C$7*$H$64 -> 146.8 | D64: =$D$7*$H$64 -> 117.44 | E64: =$E$7*$H$64 -> 88.08 | F64: =$F$7*$H$64 -> 58.72 | G64: è | H64: 0.04
A65: Totals | B65: =SUM(B57:B64) -> 4404 | C65: =SUM(C57:C64) -> 3670 | D65: =SUM(D57:D64) -> 2936 | E65: =SUM(E57:E64) -> 2202 | F65: =SUM(F57:F64) -> 1468 | G65: =SUM(B65:F65) -> 14680 | H65: =SUM(H57:H64) -> 1
A67: For 334-500 riders 10 places
A68: Placings | B68: 1D | C68: 2D | D68: 3D | E68: 4D | F68: 5D
A69: 1st | B69: =$B$7*$H$69 -> 924.84 | C69: =$C$7*$H$69 -> 770.7 | D69: =$D$7*$H$69 -> 616.56 | E69: =$E$7*$H$69 -> 462.42 | F69: =$F$7*$H$69 -> 308.28 | G69: è | H69: 0.21
A70: 2nd | B70: =$B$7*$H$70 -> 792.72 | C70: =$C$7*$H$70 -> 660.6 | D70: =$D$7*$H$70 -> 528.48 | E70: =$E$7*$H$70 -> 396.36 | F70: =$F$7*$H$70 -> 264.24 | G70: è | H70: 0.18
A71: 3rd | B71: =$B$7*$H$71 -> 660.6 | C71: =$C$7*$H$71 -> 550.5 | D71: =$D$7*$H$71 -> 440.4 | E71: =$E$7*$H$71 -> 330.3 | F71: =$F$7*$H$71 -> 220.2 | G71: è | H71: 0.15
A72: 4th | B72: =$B$7*$H$72 -> 528.48 | C72: =$C$7*$H$72 -> 440.4 | D72: =$D$7*$H$72 -> 352.32 | E72: =$E$7*$H$72 -> 264.24 | F72: =$F$7*$H$72 -> 176.16 | G72: è | H72: 0.12
A73: 5th | B73: =$B$7*$H$73 -> 396.36 | C73: =$C$7*$H$73 -> 330.3 | D73: =$D$7*$H$73 -> 264.24 | E73: =$E$7*$H$73 -> 198.18 | F73: =$F$7*$H$73 -> 132.12 | G73: è | H73: 0.09
A74: 6th | B74: =$B$7*$H$74 -> 308.28 | C74: =$C$7*$H$74 -> 256.9 | D74: =$D$7*$H$74 -> 205.52 | E74: =$E$7*$H$74 -> 154.14 | F74: =$F$7*$H$74 -> 102.76 | G74: è | H74: 0.07
A75: 7th | B75: =$B$7*$H$75 -> 264.24 | C75: =$C$7*$H$75 -> 220.2 | D75: =$D$7*$H$75 -> 176.16 | E75: =$E$7*$H$75 -> 132.12 | F75: =$F$7*$H$75 -> 88.08 | G75: è | H75: 0.06
A76: 8th | B76: =$B$7*$H$76 -> 220.2 | C76: =$C$7*$H$76 -> 183.5 | D76: =$D$7*$H$76 -> 146.8 | E76: =$E$7*$H$76 -> 110.1 | F76: =$F$7*$H$76 -> 73.4 | G76: è | H76: 0.05
A77: 9th | B77: =$B$7*$H$77 -> 176.16 | C77: =$C$7*$H$77 -> 146.8 | D77: =$D$7*$H$77 -> 117.44 | E77: =$E$7*$H$77 -> 88.08 | F77: =$F$7*$H$77 -> 58.72 | G77: è | H77: 0.04
A78: 10th | B78: =$B$7*$H$78 -> 132.12 | C78: =$C$7*$H$78 -> 110.1 | D78: =$D$7*$H$78 -> 88.08 | E78: =$E$7*$H$78 -> 66.06 | F78: =$F$7*$H$78 -> 44.04 | G78: è | H78: 0.03
A79: Totals | B79: =SUM(B69:B78) -> 4404 | C79: =SUM(C69:C78) -> 3670 | D79: 2936 | E79: 2202 | F79: 1468 | G79: =SUM(B79:F79) -> 14680 | H79: =SUM(H69:H78) -> 1
A81: For 501-666 riders 12 places
A82: Placings | B82: 1D | C82: 2D | D82: 3D | E82: 4D | F82: 5D
A83: 1st | B83: =$B$7*$H$83 -> 836.76 | C83: =$C$7*$H$83 -> 697.3 | D83: =$D$7*$H$83 -> 557.84 | E83: =$E$7*$H$83 -> 418.38 | F83: =$F$7*$H$83 -> 278.92 | G83: è | H83: 0.19
A84: 2nd | B84: =$B$7*$H$84 -> 660.6 | C84: =$C$7*$H$84 -> 550.5 | D84: =$D$7*$H$84 -> 440.4 | E84: =$E$7*$H$84 -> 330.3 | F84: =$F$7*$H$84 -> 220.2 | G84: è | H84: 0.15
A85: 3rd | B85: =$B$7*$H$85 -> 528.48 | C85: =$C$7*$H$85 -> 440.4 | D85: =$D$7*$H$85 -> 352.32 | E85: =$E$7*$H$85 -> 264.24 | F85: =$F$7*$H$85 -> 176.16 | G85: è | H85: 0.12
A86: 4th | B86: =$B$7*$H$86 -> 440.4 | C86: =$C$7*$H$86 -> 367 | D86: =$D$7*$H$86 -> 293.6 | E86: =$E$7*$H$86 -> 220.2 | F86: =$F$7*$H$86 -> 146.8 | G86: è | H86: 0.1
A87: 5th | B87: =$B$7*$H$87 -> 396.36 | C87: =$C$7*$H$87 -> 330.3 | D87: =$D$7*$H$87 -> 264.24 | E87: =$E$7*$H$87 -> 198.18 | F87: =$F$7*$H$87 -> 132.12 | G87: è | H87: 0.09
A88: 6th | B88: =$B$7*$H$88 -> 352.32 | C88: =$C$7*$H$88 -> 293.6 | D88: =$D$7*$H$88 -> 234.88 | E88: =$E$7*$H$88 -> 176.16 | F88: =$F$7*$H$88 -> 117.44 | G88: è | H88: 0.08
A89: 7th | B89: =$B$7*$H$89 -> 308.28 | C89: =$C$7*$H$89 -> 256.9 | D89: =$D$7*$H$89 -> 205.52 | E89: =$E$7*$H$89 -> 154.14 | F89: =$F$7*$H$89 -> 102.76 | G89: è | H89: 0.07
A90: 8th | B90: =$B$7*$H$90 -> 264.24 | C90: =$C$7*$H$90 -> 220.2 | D90: =$D$7*$H$90 -> 176.16 | E90: =$E$7*$H$90 -> 132.12 | F90: =$F$7*$H$90 -> 88.08 | G90: è | H90: 0.06
A91: 9th | B91: =$B$7*$H$91 -> 220.2 | C91: =$C$7*$H$91 -> 183.5 | D91: =$D$7*$H$91 -> 146.8 | E91: =$E$7*$H$91 -> 110.1 | F91: =$F$7*$H$91 -> 73.4 | G91: è | H91: 0.05
A92: 10th | B92: =$B$7*$H$92 -> 176.16 | C92: =$C$7*$H$92 -> 146.8 | D92: =$D$7*$H$92 -> 117.44 | E92: =$E$7*$H$92 -> 88.08 | F92: =$F$7*$H$92 -> 58.72 | G92: è | H92: 0.04
A93: 11th | B93: =$B$7*$H$93 -> 132.12 | C93: =$C$7*$H$93 -> 110.1 | D93: =$D$7*$H$93 -> 88.08 | E93: =$E$7*$H$93 -> 66.06 | F93: =$F$7*$H$93 -> 44.04 | G93: è | H93: 0.03
A94: 12th | B94: =$B$7*$H$94 -> 88.08 | C94: =$C$7*$H$94 -> 73.4 | D94: =$D$7*$H$94 -> 58.72 | E94: =$E$7*$H$94 -> 44.04 | F94: =$F$7*$H$94 -> 29.36 | G94: è | H94: 0.02
A95: Totals | B95: =SUM(B83:B94) -> 4404 | C95: =SUM(C83:C94) -> 3670 | D95: =SUM(D83:D94) -> 2936 | E95: =SUM(E83:E94) -> 2202 | F95: =SUM(F83:F94) -> 1468 | G95: =SUM(B95:F95) -> 14680 | H95: =SUM(H83:H94) -> 1
A97: For 667-1000 riders 15 places
A98: Placings | B98: 1D | C98: 2D | D98: 3D | E98: 4D | F98: 5D
A99: 1st | B99: =$B$7*$H$99 -> 792.72 | C99: =$C$7*$H$99 -> 660.6 | D99: =$D$7*$H$99 -> 528.48 | E99: =$E$7*$H$99 -> 396.36 | F99: =$F$7*$H$99 -> 264.24 | G99: è | H99: 0.18
A100: 2nd | B100: =$B$7*$H$100 -> 660.6 | C100: =$C$7*$H$100 -> 550.5 | D100: =$D$7*$H$100 -> 440.4 | E100: =$E$7*$H$100 -> 330.3 | F100: =$F$7*$H$100 -> 220.2 | G100: è | H100: 0.15
A101: 3rd | B101: =$B$7*$H$101 -> 528.48 | C101: =$C$7*$H$101 -> 440.4 | D101: =$D$7*$H$101 -> 352.32 | E101: =$E$7*$H$101 -> 264.24 | F101: =$F$7*$H$101 -> 176.16 | G101: è | H101: 0.12
A102: 4th | B102: =$B$7*$H$102 -> 440.4 | C102: =$C$7*$H$102 -> 367 | D102: =$D$7*$H$102 -> 293.6 | E102: =$E$7*$H$102 -> 220.2 | F102: =$F$7*$H$102 -> 146.8 | G102: è | H102: 0.1
A103: 5th | B103: =$B$7*$H$103 -> 374.34 | C103: =$C$7*$H$103 -> 311.95 | D103: =$D$7*$H$103 -> 249.56 | E103: =$E$7*$H$103 -> 187.17 | F103: =$F$7*$H$103 -> 124.78 | G103: è | H103: 0.085
A104: 6th | B104: =$B$7*$H$104 -> 308.28 | C104: =$C$7*$H$104 -> 256.9 | D104: =$D$7*$H$104 -> 205.52 | E104: =$E$7*$H$104 -> 154.14 | F104: =$F$7*$H$104 -> 102.76 | G104: è | H104: 0.07
A105: 7th | B105: =$B$7*$H$105 -> 264.24 | C105: =$C$7*$H$105 -> 220.2 | D105: =$D$7*$H$105 -> 176.16 | E105: =$E$7*$H$105 -> 132.12 | F105: =$F$7*$H$105 -> 88.08 | G105: è | H105: 0.06
A106: 8th | B106: =$B$7*$H$106 -> 220.2 | C106: =$C$7*$H$106 -> 183.5 | D106: =$D$7*$H$106 -> 146.8 | E106: =$E$7*$H$106 -> 110.1 | F106: =$F$7*$H$106 -> 73.4 | G106: è | H106: 0.05
A107: 9th | B107: =$B$7*$H$107 -> 187.17 | C107: =$C$7*$H$107 -> 155.975 | D107: =$D$7*$H$107 -> 124.78 | E107: =$E$7*$H$107 -> 93.585 | F107: =$F$7*$H$107 -> 62.39 | G107: è | H107: 0.0425
A108: 10th | B108: =$B$7*$H$108 -> 154.14 | C108: =$C$7*$H$108 -> 128.45 | D108: =$D$7*$H$108 -> 102.76 | E108: =$E$7*$H$108 -> 77.07 | F108: =$F$7*$H$108 -> 51.38 | G108: è | H108: 0.035
A109: 11th | B109: =$B$7*$H$109 -> 132.12 | C109: =$C$7*$H$109 -> 110.1 | D109: =$D$7*$H$109 -> 88.08 | E109: =$E$7*$H$109 -> 66.06 | F109: =$F$7*$H$109 -> 44.04 | G109: è | H109: 0.03
A110: 12th | B110: =$B$7*$H$110 -> 110.1 | C110: =$C$7*$H$110 -> 91.75 | D110: =$D$7*$H$110 -> 73.4 | E110: =$E$7*$H$110 -> 55.05 | F110: =$F$7*$H$110 -> 36.7 | G110: è | H110: 0.025
A111: 13th | B111: =$B$7*$H$111 -> 88.08 | C111: =$C$7*$H$111 -> 73.4 | D111: =$D$7*$H$111 -> 58.72 | E111: =$E$7*$H$111 -> 44.04 | F111: =$F$7*$H$111 -> 29.36 | G111: è | H111: 0.02
A112: 14th | B112: =$B$7*$H$112 -> 77.07 | C112: =$C$7*$H$112 -> 64.225 | D112: =$D$7*$H$112 -> 51.38 | E112: =$E$7*$H$112 -> 38.535 | F112: =$F$7*$H$112 -> 25.69 | G112: è | H112: 0.0175
A113: 15th | B113: =$B$7*$H$113 -> 66.06 | C113: =$C$7*$H$113 -> 55.05 | D113: =$D$7*$H$113 -> 44.04 | E113: =$E$7*$H$113 -> 33.03 | F113: =$F$7*$H$113 -> 22.02 | G113: è | H113: 0.015
A114: Totals | B114: =SUM(B99:B113) -> 4404 | C114: =SUM(C99:C113) -> 3670 | D114: =SUM(D99:D113) -> 2936 | E114: =SUM(E99:E113) -> 2202 | F114: =SUM(F99:F113) -> 1468 | G114: =SUM(B114:F114) -> 14680 | H114: =SUM(H99:H113) -> 1
A116: For 1001-1500 riders 20 places
A117: Placings | B117: 1D | C117: 2D | D117: 3D | E117: 4D | F117: 5D
A118: 1st | B118: =$B$7*$H$118 -> 616.56 | C118: =$C$7*$H$118 -> 513.8 | D118: =$D$7*$H$118 -> 411.04 | E118: =$E$7*$H$118 -> 308.28 | F118: =$F$7*$H$118 -> 205.52 | G118: è | H118: 0.14
A119: 2nd | B119: =$B$7*$H$119 -> 484.44 | C119: =$C$7*$H$119 -> 403.7 | D119: =$D$7*$H$119 -> 322.96 | E119: =$E$7*$H$119 -> 242.22 | F119: =$F$7*$H$119 -> 161.48 | G119: è | H119: 0.11
A120: 3rd | B120: =$B$7*$H$120 -> 396.36 | C120: =$C$7*$H$120 -> 330.3 | D120: =$D$7*$H$120 -> 264.24 | E120: =$E$7*$H$120 -> 198.18 | F120: =$F$7*$H$120 -> 132.12 | G120: è | H120: 0.09
A121: 4th | B121: =$B$7*$H$121 -> 339.108 | C121: =$C$7*$H$121 -> 282.59 | D121: =$D$7*$H$121 -> 226.072 | E121: =$E$7*$H$121 -> 169.554 | F121: =$F$7*$H$121 -> 113.036 | G121: è | H121: 0.077
A122: 5th | B122: =$B$7*$H$122 -> 308.28 | C122: =$C$7*$H$122 -> 256.9 | D122: =$D$7*$H$122 -> 205.52 | E122: =$E$7*$H$122 -> 154.14 | F122: =$F$7*$H$122 -> 102.76 | G122: è | H122: 0.07
A123: 6th | B123: =$B$7*$H$123 -> 286.26 | C123: =$C$7*$H$123 -> 238.55 | D123: =$D$7*$H$123 -> 190.84 | E123: =$E$7*$H$123 -> 143.13 | F123: =$F$7*$H$123 -> 95.42 | G123: è | H123: 0.065
A124: 7th | B124: =$B$7*$H$124 -> 264.24 | C124: =$C$7*$H$124 -> 220.2 | D124: =$D$7*$H$124 -> 176.16 | E124: =$E$7*$H$124 -> 132.12 | F124: =$F$7*$H$124 -> 88.08 | G124: è | H124: 0.06
A125: 8th | B125: =$B$7*$H$125 -> 242.22 | C125: =$C$7*$H$125 -> 201.85 | D125: =$D$7*$H$125 -> 161.48 | E125: =$E$7*$H$125 -> 121.11 | F125: =$F$7*$H$125 -> 80.74 | G125: è | H125: 0.055
A126: 9th | B126: =$B$7*$H$126 -> 220.2 | C126: =$C$7*$H$126 -> 183.5 | D126: =$D$7*$H$126 -> 146.8 | E126: =$E$7*$H$126 -> 110.1 | F126: =$F$7*$H$126 -> 73.4 | G126: è | H126: 0.05
A127: 10th | B127: =$B$7*$H$127 -> 198.18 | C127: =$C$7*$H$127 -> 165.15 | D127: =$D$7*$H$127 -> 132.12 | E127: =$E$7*$H$127 -> 99.09 | F127: =$F$7*$H$127 -> 66.06 | G127: è | H127: 0.045
A128: 11th | B128: =$B$7*$H$128 -> 176.16 | C128: =$C$7*$H$128 -> 146.8 | D128: =$D$7*$H$128 -> 117.44 | E128: =$E$7*$H$128 -> 88.08 | F128: =$F$7*$H$128 -> 58.72 | G128: è | H128: 0.04
A129: 12th | B129: =$B$7*$H$129 -> 162.948 | C129: =$C$7*$H$129 -> 135.79 | D129: =$D$7*$H$129 -> 108.632 | E129: =$E$7*$H$129 -> 81.474 | F129: =$F$7*$H$129 -> 54.316 | G129: è | H129: 0.037
A130: 13th | B130: =$B$7*$H$130 -> 145.332 | C130: =$C$7*$H$130 -> 121.11 | D130: =$D$7*$H$130 -> 96.888 | E130: =$E$7*$H$130 -> 72.666 | F130: =$F$7*$H$130 -> 48.444 | G130: è | H130: 0.033
A131: 14th | B131: =$B$7*$H$131 -> 127.716 | C131: =$C$7*$H$131 -> 106.43 | D131: =$D$7*$H$131 -> 85.144 | E131: =$E$7*$H$131 -> 63.858 | F131: =$F$7*$H$131 -> 42.572 | G131: è | H131: 0.029
A132: 15th | B132: =$B$7*$H$132 -> 110.1 | C132: =$C$7*$H$132 -> 91.75 | D132: =$D$7*$H$132 -> 73.4 | E132: =$E$7*$H$132 -> 55.05 | F132: =$F$7*$H$132 -> 36.7 | G132: è | H132: 0.025
A133: 16th | B133: =$B$7*$H$133 -> 92.484 | C133: =$C$7*$H$133 -> 77.07 | D133: =$D$7*$H$133 -> 61.656 | E133: =$E$7*$H$133 -> 46.242 | F133: =$F$7*$H$133 -> 30.828 | G133: è | H133: 0.021
A134: 17th | B134: =$B$7*$H$134 -> 74.868 | C134: =$C$7*$H$134 -> 62.39 | D134: =$D$7*$H$134 -> 49.912 | E134: =$E$7*$H$134 -> 37.434 | F134: =$F$7*$H$134 -> 24.956 | G134: è | H134: 0.017
A135: 18th | B135: =$B$7*$H$135 -> 61.656 | C135: =$C$7*$H$135 -> 51.38 | D135: =$D$7*$H$135 -> 41.104 | E135: =$E$7*$H$135 -> 30.828 | F135: =$F$7*$H$135 -> 20.552 | G135: è | H135: 0.014
A136: 19th | B136: =$B$7*$H$136 -> 52.848 | C136: =$C$7*$H$136 -> 44.04 | D136: =$D$7*$H$136 -> 35.232 | E136: =$E$7*$H$136 -> 26.424 | F136: =$F$7*$H$136 -> 17.616 | G136: è | H136: 0.012
A137: 20th | B137: =$B$7*$H$137 -> 44.04 | C137: =$C$7*$H$137 -> 36.7 | D137: =$D$7*$H$137 -> 29.36 | E137: =$E$7*$H$137 -> 22.02 | F137: =$F$7*$H$137 -> 14.68 | G137: è | H137: 0.01
A138: Totals | B138: =SUM(B118:B137) -> 4404 | C138: =SUM(C118:C137) -> 3670 | D138: 2936 | E138: 2202 | F138: 1468 | G138: =SUM(B138:F138) -> 14680 | H138: =SUM(H118:H137) -> 1
A140: For 1501 or More riders 30 places
A141: Placings | B141: 1D | C141: 2D | D141: 3D | E141: 4D | F141: 5D
A142: 1st | B142: =$B$7*$H142 -> 528.48 | C142: =$C$7*$H142 -> 440.4 | D142: =$D$7*$H142 -> 352.32 | E142: =$E$7*$H142 -> 264.24 | F142: =$F$7*$H142 -> 176.16 | G142: è | H142: 0.12
A143: 2nd | B143: =$B$7*$H143 -> 418.38 | C143: 348.65 | D143: 278.92 | E143: 209.19 | F143: 139.46 | G143: è | H143: 0.095
A144: 3rd | B144: =$B$7*$H144 -> 321.492 | C144: 267.91 | D144: 214.328 | E144: 160.746 | F144: 107.164 | G144: è | H144: 0.073
A145: 4th | B145: =$B$7*$H145 -> 273.048 | C145: 227.54 | D145: 182.032 | E145: 136.524 | F145: 91.016 | G145: è | H145: 0.062
A146: 5th | B146: 220.2 | C146: 183.5 | D146: 146.8 | E146: 110.1 | F146: 73.4 | G146: è | H146: 0.05
A147: 6th | B147: 198.18 | C147: 165.15 | D147: 132.12 | E147: 99.09 | F147: 66.06 | G147: è | H147: 0.045
A148: 7th | B148: 189.372 | C148: 157.81 | D148: 126.248 | E148: 94.686 | F148: 63.124 | G148: è | H148: 0.043
A149: 8th | B149: 176.16 | C149: 146.8 | D149: 117.44 | E149: 88.08 | F149: 58.72 | G149: è | H149: 0.04
A150: 9th | B150: 162.948 | C150: 135.79 | D150: 108.632 | E150: 81.474 | F150: 54.316 | G150: è | H150: 0.037
A151: 10th | B151: 154.14 | C151: 128.45 | D151: 102.76 | E151: 77.07 | F151: 51.38 | G151: è | H151: 0.035
A152: 11th | B152: 145.332 | C152: 121.11 | D152: 96.888 | E152: 72.666 | F152: 48.444 | G152: è | H152: 0.033
A153: 12th | B153: 136.524 | C153: 113.77 | D153: 91.016 | E153: 68.262 | F153: 45.508 | G153: è | H153: 0.031
A154: 13th | B154: 127.716 | C154: 106.43 | D154: 85.144 | E154: 63.858 | F154: 42.572 | G154: è | H154: 0.029
A155: 14th | B155: 118.908 | C155: 99.09 | D155: 79.272 | E155: 59.454 | F155: 39.636 | G155: è | H155: 0.027
A156: 15th | B156: 110.1 | C156: 91.75 | D156: 73.4 | E156: 55.05 | F156: 36.7 | G156: è | H156: 0.025
A157: 16th | B157: 105.696 | C157: 88.08 | D157: 70.464 | E157: 52.848 | F157: 35.232 | G157: è | H157: 0.024
A158: 17th | B158: 101.292 | C158: 84.41 | D158: 67.528 | E158: 50.646 | F158: 33.764 | G158: è | H158: 0.023
A159: 18th | B159: 96.888 | C159: 80.74 | D159: 64.592 | E159: 48.444 | F159: 32.296 | G159: è | H159: 0.022
A160: 19th | B160: 92.484 | C160: 77.07 | D160: 61.656 | E160: 46.242 | F160: 30.828 | G160: è | H160: 0.021
A161: 20th | B161: 88.08 | C161: 73.4 | D161: 58.72 | E161: 44.04 | F161: 29.36 | G161: è | H161: 0.02
A162: 21st | B162: 83.676 | C162: 69.73 | D162: 55.784 | E162: 41.838 | F162: 27.892 | G162: è | H162: 0.019
A163: 22nd | B163: 79.272 | C163: 66.06 | D163: 52.848 | E163: 39.636 | F163: 26.424 | G163: è | H163: 0.018
A164: 23rd | B164: 74.868 | C164: 62.39 | D164: 49.912 | E164: 37.434 | F164: 24.956 | G164: è | H164: 0.017
A165: 24th | B165: 70.464 | C165: 58.72 | D165: 46.976 | E165: 35.232 | F165: 23.488 | G165: è | H165: 0.016
A166: 25th | B166: 66.06 | C166: 55.05 | D166: 44.04 | E166: 33.03 | F166: 22.02 | G166: è | H166: 0.015
A167: 26th | B167: 61.656 | C167: 51.38 | D167: 41.104 | E167: 30.828 | F167: 20.552 | G167: è | H167: 0.014
A168: 27th | B168: 57.252 | C168: 47.71 | D168: 38.168 | E168: 28.626 | F168: 19.084 | G168: è | H168: 0.013
A169: 28th | B169: 52.848 | C169: 44.04 | D169: 35.232 | E169: 26.424 | F169: 17.616 | G169: è | H169: 0.012
A170: 29th | B170: 48.444 | C170: 40.37 | D170: 32.296 | E170: 24.222 | F170: 16.148 | G170: è | H170: 0.011
A171: 30th | B171: 44.04 | C171: 36.7 | D171: 29.36 | E171: 22.02 | F171: 14.68 | G171: è | H171: 0.01
A172: Totals | B172: =SUM(B142:B171) -> 4404 | C172: =SUM(C142:C171) -> 3670 | D172: 2936 | E172: 2202 | F172: 1468 | G172: =SUM(B172:F172) -> 14680 | H172: =SUM(H142:H171) -> 1

Sheet DON'T TOUCH (hidden)
A2: Yes | C2: S | D2: 5 | E2: X
C3: A | D3: 10
C4: Y | D4: 15
C5: P | D5: BP
D6: SCR
